Workbook

Sheet Rippe Q2i 4S (hidden)

Sheet Elementkonfigurationen (hidden)
D1: Modelle | E1: Z-Lage
A2: Rippe_Q3 | C2: Rippe_Q3 | D2: geschlossen | E2: Z0P0Nsi | F2: 150 | G2: 170 | H2: 190 | I2: 210 | J2: 230 | K2: 250 | L2: 270 | M2: 290 | N2: 310 | O2: 330 | P2: 350 | Q2: 370 | R2: 390 | S2: 410 | T2: 430 | U2: 450
A3: Rippe_Q3_r25 | D3: akustik | E3: Z0P0 | F3: 150 | G3: 170 | H3: 190 | I3: 210 | J3: 230 | K3: 250 | L3: 270 | M3: 290
A4: Rippe_Q3_r50 | E4: Z26P0 | F4: 150 | G4: 170 | H4: 190 | I4: 210 | J4: 230 | K4: 250 | L4: 270 | M4: 290 | N4: 310 | O4: 330 | P4: 350 | Q4: 370 | R4: 390 | S4: 410 | T4: 430 | U4: 450
A5: Block_Q | E5: Z26P26 | F5: 150 | G5: 170 | H5: 190 | I5: 210 | J5: 230 | K5: 250 | L5: 270 | M5: 290 | N5: 310 | O5: 330 | P5: 350 | Q5: 370 | R5: 390 | S5: 410 | T5: 430 | U5: 450
A6: Block_Q3 | E6: Z26P53 | G6: 170 | H6: 190 | I6: 210 | J6: 230 | K6: 250 | L6: 270 | M6: 290 | N6: 310 | O6: 330 | P6: 350 | Q6: 370 | R6: 390 | S6: 410 | T6: 430 | U6: 450
A7: Akustik_klassik_Q | E7: Z53P0 | G7: 170 | H7: 190 | I7: 210 | J7: 230 | K7: 250 | L7: 270 | M7: 290 | N7: 310 | O7: 330 | P7: 350 | Q7: 370 | R7: 390 | S7: 410 | T7: 430 | U7: 450
A8: Akustik_klassik_Q3 | E8: Z53P26 | G8: 170 | H8: 190 | I8: 210 | J8: 230 | K8: 250 | L8: 270 | M8: 290 | N8: 310 | O8: 330 | P8: 350 | Q8: 370 | R8: 390 | S8: 410 | T8: 430 | U8: 450
A9: Rippe_Q2i | E9: Z53P53 | I9: 210 | J9: 230 | K9: 250 | L9: 270 | M9: 290 | N9: 310 | O9: 330 | P9: 350 | Q9: 370 | R9: 390 | S9: 410 | T9: 430 | U9: 450
E10: Z80P0 | H10: 190 | I10: 210 | J10: 230 | K10: 250 | L10: 270 | M10: 290 | N10: 310 | O10: 330 | P10: 350 | Q10: 370 | R10: 390 | S10: 410 | T10: 430 | U10: 450
E11: Z80P26 | I11: 210 | J11: 230 | K11: 250 | L11: 270 | M11: 290 | N11: 310 | O11: 330 | P11: 350 | Q11: 370 | R11: 390 | S11: 410 | T11: 430 | U11: 450
E12: Z80P53 | J12: 230 | K12: 250 | L12: 270 | M12: 290 | N12: 310 | O12: 330 | P12: 350 | Q12: 370 | R12: 390 | S12: 410 | T12: 430 | U12: 450
D13: Modelle | E13: Z-Lage
A14: Verschraubung normal | C14: Rippe_Q3_r25 | D14: geschlossen | E14: Z0P0Nsi | F14: 150 | G14: 170 | H14: 190 | I14: 210 | J14: 230 | K14: 250 | L14: 270 | M14: 290
A15: 2 | D15: akustik | E15: Z0P0 | F15: 150 | G15: 170 | H15: 190 | I15: 210 | J15: 230 | K15: 250 | L15: 270 | M15: 290
A16: 3 | E16: Z26P0 | F16: 150 | G16: 170 | H16: 190 | I16: 210 | J16: 230 | K16: 250 | L16: 270 | M16: 290
E17: Z26P26 | F17: 150 | G17: 170 | H17: 190 | I17: 210 | J17: 230 | K17: 250 | L17: 270 | M17: 290
E18: Z26P53 | I18: 210 | J18: 230 | K18: 250 | L18: 270 | M18: 290
E19: Z53P0 | G19: 170 | H19: 190 | I19: 210 | J19: 230 | K19: 250 | L19: 270 | M19: 290
A20: 2 | E20: Z53P26 | I20: 210 | J20: 230 | K20: 250 | L20: 270 | M20: 290
A21: 4 | E21: Z53P53 | I21: 210 | J21: 230 | K21: 250 | L21: 270 | M21: 290
E22: Z80P0 | I22: 210 | J22: 230 | K22: 250 | L22: 270 | M22: 290
E23: Z80P26 | J23: 230 | K23: 250 | L23: 270 | M23: 290
D24: Modelle | E24: Z-Lage
C25: Rippe_Q3_r50 | D25: geschlossen | E25: Z0P0Nsi | H25: 190 | I25: 210 | J25: 230 | K25: 250 | L25: 270 | M25: 290
D26: akustik | E26: Z0P0 | H26: 190 | I26: 210 | J26: 230 | K26: 250 | L26: 270 | M26: 290
E27: Z26P0 | H27: 190 | I27: 210 | J27: 230 | K27: 250 | L27: 270 | M27: 290
E28: Z26P26 | I28: 210 | J28: 230 | K28: 250 | L28: 270 | M28: 290
E29: Z26P53 | I29: 210 | J29: 230 | K29: 250 | L29: 270 | M29: 290
E30: Z53P0 | I30: 210 | J30: 230 | K30: 250 | L30: 270 | M30: 290
E31: Z53P26 | I31: 210 | J31: 230 | K31: 250 | L31: 270 | M31: 290
E32: Z53P53 | J32: 230 | K32: 250 | L32: 270 | M32: 290
E33: Z80P0 | J33: 230 | K33: 250 | L33: 270 | M33: 290
E34: Z80P26 | J34: 230 | K34: 250 | L34: 270 | M34: 290
D35: Modelle | E35: Z-Lage
C36: Block_Q | D36: geschlossen | E36: Z0P0Nsi | H36: 110 | I36: 130
D37: akustik | E37: Z0P0 | F37: 70 | G37: 90 | H37: 110 | I37: 130
D38: Modelle | E38: Z-Lage
C39: Block_Q3 | D39: geschlossen | E39: Z0P0Nsi | F39: 150 | G39: 170 | H39: 190 | I39: 210 | J39: 230 | K39: 250 | L39: 270 | M39: 290 | N39: 310 | O39: 330 | P39: 350 | Q39: 370 | R39: 390 | S39: 410 | T39: 430 | U39: 450
D40: akustik | E40: Z0P0 | F40: 150 | G40: 170 | H40: 190 | I40: 210 | J40: 230 | K40: 250 | L40: 270 | M40: 290 | N40: 310 | O40: 330 | P40: 350 | Q40: 370 | R40: 390 | S40: 410 | T40: 430 | U40: 450
E41: Z26P0 | F41: 150 | G41: 170 | H41: 190 | I41: 210 | J41: 230 | K41: 250 | L41: 270 | M41: 290 | N41: 310 | O41: 330 | P41: 350 | Q41: 370 | R41: 390 | S41: 410 | T41: 430 | U41: 450
E42: Z26P26 | G42: 170 | H42: 190 | I42: 210 | J42: 230 | K42: 250 | L42: 270 | M42: 290 | N42: 310 | O42: 330 | P42: 350 | Q42: 370 | R42: 390 | S42: 410 | T42: 430 | U42: 450
E43: Z26P53 | H43: 190 | I43: 210 | J43: 230 | K43: 250 | L43: 270 | M43: 290 | N43: 310 | O43: 330 | P43: 350 | Q43: 370 | R43: 390 | S43: 410 | T43: 430 | U43: 450
E44: Z53P0 | G44: 170 | H44: 190 | I44: 210 | J44: 230 | K44: 250 | L44: 270 | M44: 290 | N44: 310 | O44: 330 | P44: 350 | Q44: 370 | R44: 390 | S44: 410 | T44: 430 | U44: 450
E45: Z53P26 | H45: 190 | I45: 210 | J45: 230 | K45: 250 | L45: 270 | M45: 290 | N45: 310 | O45: 330 | P45: 350 | Q45: 370 | R45: 390 | S45: 410 | T45: 430 | U45: 450
E46: Z53P53 | I46: 210 | J46: 230 | K46: 250 | L46: 270 | M46: 290 | N46: 310 | O46: 330 | P46: 350 | Q46: 370 | R46: 390 | S46: 410 | T46: 430 | U46: 450
E47: Z80P0 | H47: 190 | I47: 210 | J47: 230 | K47: 250 | L47: 270 | M47: 290 | N47: 310 | O47: 330 | P47: 350 | Q47: 370 | R47: 390 | S47: 410 | T47: 430 | U47: 450
E48: Z80P26 | J48: 230 | K48: 250 | L48: 270 | M48: 290 | N48: 310 | O48: 330 | P48: 350 | Q48: 370 | R48: 390 | S48: 410 | T48: 430 | U48: 450
E49: Z80P53 | K49: 250 | L49: 270 | M49: 290 | N49: 310 | O49: 330 | P49: 350 | Q49: 370 | R49: 390 | S49: 410 | T49: 430 | U49: 450
D52: Modelle | E52: Z-Lage
C53: Akustik_klassik_Q | D53: akustik | E53: Z0K0 | F53: 90 | G53: 110 | H53: 130 | I53: 150
E54: Z0K50l | F54: 90 | G54: 110 | H54: 130 | I54: 150
E55: Z0K50g | F55: 90 | G55: 110 | H55: 130 | I55: 150
D56: Modelle | E56: Z-Lage
C57: Akustik_klassik_Q3 | D57: akustik | E57: Z0K0 | H57: 130 | I57: 150 | J57: 170 | K57: 190 | L57: 210 | M57: 230 | N57: 250 | O57: 270 | P57: 290 | Q57: 310 | R57: 330 | S57: 350 | T57: 370 | U57: 390 | V57: 410 | W57: 430 | X57: 450
E58: Z0K50l | H58: 130 | I58: 150 | J58: 170 | K58: 190 | L58: 210 | M58: 230 | N58: 250 | O58: 270 | P58: 290 | Q58: 310 | R58: 330 | S58: 350 | T58: 370 | U58: 390 | V58: 410 | W58: 430 | X58: 450
E59: Z0K50g | H59: 130 | I59: 150 | J59: 170 | K59: 190 | L59: 210 | M59: 230 | N59: 250 | O59: 270 | P59: 290 | Q59: 310 | R59: 330 | S59: 350 | T59: 370 | U59: 390 | V59: 410 | W59: 430 | X59: 450
D62: Modelle | E62: Z-Lage
C63: Rippe_Q2i | D63: geschlossen | E63: Z26P0_i120 | F63: 170 | G63: 190 | H63: 210 | I63: 230 | J63: 250 | K63: 270 | L63: 290
E64: Z26P0_i160 | F64: 170 | G64: 190 | H64: 210 | I64: 230 | J64: 250 | K64: 270 | L64: 290
E65: Z26P0_i200 | H65: 210 | I65: 230 | J65: 250 | K65: 270 | L65: 290
E66: Z53P0_i120 | G66: 190 | H66: 210 | I66: 230 | J66: 250 | K66: 270 | L66: 290
E67: Z53P0_i160 | G67: 190 | H67: 210 | I67: 230 | J67: 250 | K67: 270 | L67: 290
E68: Z53P0_i200 | H68: 210 | I68: 230 | J68: 250 | K68: 270 | L68: 290
E69: Z80P0_i120 | I69: 230 | J69: 250 | K69: 270 | L69: 290
E70: Z80P0_i160 | I70: 230 | J70: 250 | K70: 270 | L70: 290
E71: Z80P0_i200 | I71: 230 | J71: 250 | K71: 270 | L71: 290

Sheet kmod+gamma+Trag.keit (hidden)
C2: Klasse | D2: GL 24h | E2: GL 28h | F2: GL 32h | G2: GL 36h | H2: C 18 | I2: C 22 | J2: C 24 | K2: C 27 | L2: C 30
C3: Widerstandskennlinien (MPa)
B4: Biegefestigkeit | C4: Flexion longitudinale fm,k | D4: 24 | E4: 28 | F4: 32 | G4: 36 | H4: 18 | I4: 22 | J4: 24 | K4: 27 | L4: 30
B5: Zugfestigkeit in Faserrichtung | C5: Traction longitudinale ft,o,k | D5: 16.5 | E5: 19.5 | F5: 22.5 | G5: 26 | H5: 11 | I5: 13 | J5: 14 | K5: 16 | L5: 18
B6: Druckfestigkeit in Faserrichtung | C6: Compression longitudinale fc,o,k | D6: 24 | E6: 26.5 | F6: 29 | G6: 31 | H6: 18 | I6: 20 | J6: 21 | K6: 22 | L6: 23
B7: Schubfestigkeit | C7: Cisaillement longitudinal fv,k | D7: 2.7 | E7: 3.2 | F7: 3.8 | G7: 4.3 | H7: 2 | I7: 2.4 | J7: 2.5 | K7: 2.8 | L7: 3
B8: Druckfestigkeit quer zur Faser | C8: Compressiontransversale fc,90,k | D8: 2.7 | E8: 3 | F8: 3.3 | G8: 3.6 | H8: 2.2 | I8: 2.4 | J8: 2.5 | K8: 2.6 | L8: 2.7
B9: Zugfestigkeitrechtwinklig in Faserrichtung | C9: Traction transversale ft,90,k | D9: 0.4 | E9: 0.45 | F9: 0.5 | G9: 0.6 | H9: 0.5 | I9: 0.5 | J9: 0.5 | K9: 0.6 | L9: 0.6
C10: Elastizitätsmodul (MPa)
B11: Mittelwert eines Elastizitätsmoduls | C11: Module longitudinal moyen E0,mean | D11: 11600 | E11: 12600 | F11: 13700 | G11: 14700 | H11: 9000 | I11: 10000 | J11: 11000 | K11: 11500 | L11: 12000
B12: 5% Quantilwert eines Elastizitätsmoduls | C12: Module longitudinal 5% E0,05 | D12: 9400 | E12: 10200 | F12: 11100 | G12: 11900 | H12: 6000 | I12: 6700 | J12: 7400 | K12: 7700 | L12: 8000
B13: Mittelwert des Schubmoduls | C13: Module de cisaillement moyen Gmean | D13: 750 | E13: 780 | F13: 850 | G13: 910 | H13: 560 | I13: 630 | J13: 690 | K13: 720 | L13: 750
B14: Rohdichte | C14: Masse volumique carractéristique en Kg/m3 ρk | D14: 380 | E14: 410 | F14: 430 | G14: 450 | H14: 320 | I14: 340 | J14: 350 | K14: 370 | L14: 380
C17: Leztgrenze Stand (ELU) | D17: γM | G17: γM
C18: Brettschichtholz | D18: 1.25 | F18: Erdbeben | G18: 1
C19: Vollholz | D19: 1.3
C20: Sperrholz,OSB,LVL | D20: 1.2
C21: Dienstgrenze Stand (ELS) | D21: 1
K22: FMK | L22: 24
K23: l | L23: 20000 | M23: IY | N23: =(L24*L25^3)/12 -> 2250000000
C24: Zeit ordnen | D24: Zeit | E24: Beispiel | G24: kmod & Dienst Ordnen | K24: b | L24: 1000 | M24: PI | N24: =PI() -> 3.141592654
G25: 1 et 2 | H25: 3 | K25: h | L25: 300 | M25: s | N25: =L24*L25 -> 300000
C26: Ständig | D26: Länger als 10 Jahren | E26: Eigengewicht | G26: 0.6 | H26: 0.5 | K26: e005 | L26: 9400
C27: Lang | D27: 6 Monaten - 10 Jahren | E27: Lagerstoffe | G27: 0.7 | H27: 0.55
C28: Mittel | D28: 1 Woche - 6 Monaten | E28: Verkehrslasten | G28: 0.8 | H28: 0.65 | K28: SIGMA CRIT | L28: =(0.78*L24^2)/(L25*0.9*L23)*L26 -> 1357.777778
C29: Kurz | D29: Kürzer als 1 Woche | E29: Schnee | G29: 0.9 | H29: 0.7 | K29: GAMMA REL | L29: =(L22/L28)^0.5 -> 0.1329508973
C30: Kurz / Sehr Kurz | D30: / | E30: Wind | G30: 1 | H30: 0.8
C31: Sehr Kurz | D31: / | E31: außergewöhnliche Einwirkung | G31: 1.1 | H31: 0.9

Sheet Rippe Q3 (hidden)
A1: Scheibenkennwerte Rippe Q3
A3: Anmerkung: | D3: Die Scheibenkennwerte beziehen sich auf einen Laufmeter Element. Die Elementbreite bE = 0,625m
I5: =_xlfn.XLOOKUP('Eingabe und Ergebnis'!DM18,INDIRECT("tab_H1"&'Eingabe und Ergebnis'!DM16),(_xlfn.XLOOKUP('Eingabe und Ergebnis'!DM17,INDIRECT("tab_Z1"&'Eingabe und Ergebnis'!DM16),INDIRECT("tab_"&'Eingabe und Ergebnis'!DM16)))) -> 49
A6: Rippe Q3
A7: Elementhöhe | G7: 150 | H7: 170 | I7: 190 | J7: 210 | K7: 230 | L7: 250 | M7: 270 | N7: 290 | O7: 310 | P7: 330 | Q7: 350 | R7: 370 | S7: 390 | T7: 410 | U7: 430 | V7: 450 | W7: 470 | X7: [mm]
A8: Rippe | B8: Q3 | C8: Z0P0Nsi | F8: VR,k,xy | G8: 31.8 | H8: 31.8 | I8: 31.8 | J8: 31.8 | K8: 31.8 | L8: 31.8 | M8: 31.8 | N8: 31.8 | O8: 31.8 | P8: 31.8 | Q8: 31.8 | R8: 31.8 | S8: 31.8 | T8: 31.8 | U8: 31.8 | V8: 31.8 | X8: [kN]
C9: ="GA "&C8 -> GA Z0P0Nsi | F9: GAef | G9: 34916 | H9: 34916 | I9: 34916 | J9: 34916 | K9: 34916 | L9: 34916 | M9: 34916 | N9: 34916 | O9: 34916 | P9: 34916 | Q9: 34916 | R9: 34916 | S9: 34916 | T9: 34916 | U9: 34916 | V9: 34916 | X9: [kN]
F10: Iz | G10: 80.44682156 | H10: 95.1232174 | I10: 109.7996132 | J10: 124.6427453 | K10: 139.3191411 | L10: 153.9955369 | M10: 168.6719328 | N10: 183.5150648 | O10: 208.0687151 | P10: 222.7451109 | Q10: 237.5456443 | R10: 258.4873109 | S10: 279.4289776 | T10: 300.3706443 | U10: 321.3123109 | V10: 342.2539776 | W10: 0 | X10: [10^3*cm4]
C11: ="M "&C8 -> M Z0P0Nsi | F11: MR,k,z | G11: 49.50573635 | H11: 58.53736455 | I11: 67.56899276 | J11: 76.70322786 | K11: 85.73485607 | L11: 94.76648427 | M11: 103.7981125 | N11: 112.9323476 | O11: 128.0422862 | P11: 137.0739144 | Q11: 146.1819349 | R11: 159.0691144 | S11: 171.9562939 | T11: 184.8434734 | U11: 197.7306529 | V11: 210.6178324 | W11: 0 | X11: [kNm]
A12: Rippe | B12: Q3 | C12: Z0P0 | F12: VR,k,y | G12: 33.1 | H12: 33.1 | I12: 33.1 | J12: 33.1 | K12: 33.1 | L12: 33.1 | M12: 33.1 | N12: 33.1 | X12: [kN]
C13: ="GA "&C12 -> GA Z0P0 | F13: GAef | G13: 14203 | H13: 14203 | I13: 14203 | J13: 14203 | K13: 14203 | L13: 14203 | M13: 14203 | N13: 14203 | X13: [kN]
F14: Iz | G14: 143.0554042 | H14: 157.7318001 | I14: 172.4081959 | J14: 187.2513279 | K14: 201.9277238 | L14: 216.6041196 | M14: 231.2805154 | N14: 246.1236475 | O14: 0 | P14: 0 | Q14: 0 | R14: 0 | S14: 0 | T14: 0 | U14: 0 | V14: 0 | W14: 0 | X14: [10^3*cm4]
C15: ="M "&C12 -> M Z0P0 | F15: MR,k,z | G15: 88.03409491 | H15: 97.06572311 | I15: 106.0973513 | J15: 115.2315864 | K15: 124.2632146 | L15: 133.2948428 | M15: 142.326471 | N15: 151.4607061 | O15: 0 | P15: 0 | Q15: 0 | R15: 0 | S15: 0 | T15: 0 | U15: 0 | V15: 0 | W15: 0 | X15: [kNm]
A16: Rippe | B16: Q3 | C16: Z26P0 | F16: VR,k,y | G16: 49 | H16: 49 | I16: 49 | J16: 49 | K16: 49 | L16: 49 | M16: 49 | N16: 49 | O16: 49 | P16: 49 | Q16: 49 | R16: 49 | S16: 49 | T16: 49 | U16: 49 | V16: 49 | X16: [kN]
C17: ="GA "&C16 -> GA Z26P0 | F17: GAef | G17: 29741 | H17: 29741 | I17: 29741 | J17: 29741 | K17: 29741 | L17: 29741 | M17: 29741 | N17: 29741 | O17: 29741 | P17: 29741 | Q17: 29741 | R17: 29741 | S17: 29741 | T17: 29741 | U17: 29741 | V17: 29741 | X17: [kN]
F18: Iz | G18: 119.6848138 | H18: 134.3612096 | I18: 149.0376054 | J18: 163.7140012 | K18: 178.5571333 | L18: 193.2335291 | M18: 207.909925 | N18: 222.5863208 | O18: 247.3067073 | P18: 261.9831031 | Q18: 276.659499 | R18: 297.6011656 | S18: 318.5428323 | T18: 339.484499 | U18: 360.4261656 | V18: 381.3678323 | W18: 0 | X18: [10^3*cm4]
C19: ="M "&C16 -> M Z26P0 | F19: MR,k,z | G19: 73.65219308 | H19: 82.68382128 | I19: 91.71544949 | J19: 100.7470777 | K19: 109.8813128 | L19: 118.912941 | M19: 127.9445692 | N19: 136.9761974 | O19: 152.1887429 | P19: 161.2203712 | Q19: 170.2519994 | R19: 183.1391788 | S19: 196.0263583 | T19: 208.9135378 | U19: 221.8007173 | V19: 234.6878968 | W19: 0 | X19: [kNm]
A20: Rippe | B20: Q3 | C20: Z26P26 | F20: VR,k,y | G20: 27.1 | H20: 27.1 | I20: 27.1 | J20: 27.1 | K20: 27.1 | L20: 27.1 | M20: 27.1 | N20: 27.1 | O20: 27.1 | P20: 27.1 | Q20: 27.1 | R20: 27.1 | S20: 27.1 | T20: 27.1 | U20: 27.1 | V20: 27.1 | X20: [kN]
C21: ="GA "&C20 -> GA Z26P26 | F21: GAef | G21: 29741 | H21: 29741 | I21: 29741 | J21: 29741 | K21: 29741 | L21: 29741 | M21: 29741 | N21: 29741 | O21: 29741 | P21: 29741 | Q21: 29741 | R21: 29741 | S21: 29741 | T21: 29741 | U21: 29741 | V21: 29741 | X21: [kN]
F22: Iz | G22: 137.7749257 | H22: 152.4513215 | I22: 167.1277174 | J22: 181.8041132 | K22: 196.480509 | L22: 211.3236411 | M22: 226.0000369 | N22: 240.6764327 | O22: 265.3968192 | P22: 280.0732151 | Q22: 294.7496109 | R22: 315.6912776 | S22: 336.6329442 | T22: 357.5746109 | U22: 378.5162776 | V22: 399.4579442 | W22: 0 | X22: [10^3*cm4]
C23: ="M "&C20 -> M Z26P26 | F23: MR,k,z | G23: 84.78456965 | H23: 93.81619786 | I23: 102.8478261 | J23: 111.8794543 | K23: 120.9110825 | L23: 130.0453176 | M23: 139.0769458 | N23: 148.108574 | O23: 163.3211195 | P23: 172.3527477 | Q23: 181.3843759 | R23: 194.2715554 | S23: 207.1587349 | T23: 220.0459144 | U23: 232.9330939 | V23: 245.8202734 | W23: 0 | X23: [kNm]
A24: Rippe | B24: Q3 | C24: Z26P53 | F24: VR,k,y | H24: 27.1 | I24: 27.1 | J24: 27.1 | K24: 27.1 | L24: 27.1 | M24: 27.1 | N24: 27.1 | O24: 27.1 | P24: 27.1 | Q24: 27.1 | R24: 27.1 | S24: 27.1 | T24: 27.1 | U24: 27.1 | V24: 27.1 | X24: [kN]
C25: ="GA "&C24 -> GA Z26P53 | F25: GAef | H25: 29741 | I25: 29741 | J25: 29741 | K25: 29741 | L25: 29741 | M25: 29741 | N25: 29741 | O25: 29741 | P25: 29741 | Q25: 29741 | R25: 29741 | S25: 29741 | T25: 29741 | U25: 29741 | V25: 29741 | X25: [kN]
F26: Iz | G26: 0 | H26: 168.3738627 | I26: 183.0502585 | J26: 197.7266544 | K26: 214.7373572 | L26: 229.413753 | M26: 244.0901488 | N26: 258.7665447 | O26: 283.4869312 | P26: 298.163327 | Q26: 312.8397228 | R26: 333.7813895 | S26: 354.7230562 | T26: 375.6647228 | U26: 396.6063895 | V26: 417.5480562 | W26: 0 | X26: [10^3*cm4]
C27: ="M "&C24 -> M Z26P53 | F27: MR,k,z | G27: 0 | H27: 103.6146847 | I27: 112.6463129 | J27: 121.6779411 | K27: 132.1460659 | L27: 141.1776942 | M27: 150.2093224 | N27: 159.2409506 | O27: 174.4534961 | P27: 183.4851243 | Q27: 192.5167525 | R27: 205.403932 | S27: 218.2911115 | T27: 231.178291 | U27: 244.0654705 | V27: 256.9526499 | W27: 0 | X27: [kNm]
A28: Rippe | B28: Q3 | C28: Z53P0 | F28: VR,k,y | H28: 37.5 | I28: 37.5 | J28: 37.5 | K28: 37.5 | L28: 37.5 | M28: 37.5 | N28: 37.5 | O28: 37.5 | P28: 37.5 | Q28: 37.5 | R28: 37.5 | S28: 37.5 | T28: 37.5 | U28: 37.5 | V28: 37.5 | X28: [kN]
C29: ="GA "&C28 -> GA Z53P0 | F29: GAef | H29: 41169 | I29: 41169 | J29: 41169 | K29: 41169 | L29: 41169 | M29: 41169 | N29: 41169 | O29: 41169 | P29: 41169 | Q29: 41169 | R29: 41169 | S29: 41169 | T29: 41169 | U29: 41169 | V29: 41169 | X29: [kN]
F30: Iz | G30: 0 | H30: 168.8293731 | I30: 183.505769 | J30: 198.1821648 | K30: 213.0252968 | L30: 227.7016927 | M30: 242.3780885 | N30: 257.0544843 | O30: 281.7748708 | P30: 296.4512667 | Q30: 311.1276625 | R30: 332.0693292 | S30: 353.0109958 | T30: 373.9526625 | U30: 394.8943292 | V30: 415.8359958 | W30: 0 | X30: [10^3*cm4]
C31: ="M "&C28 -> M Z53P0 | F31: MR,k,z | G31: 0 | H31: 103.8949988 | I31: 112.9266271 | J31: 121.9582553 | K31: 131.0924904 | L31: 140.1241186 | M31: 149.1557468 | N31: 158.187375 | O31: 173.3999205 | P31: 182.4315487 | Q31: 191.4631769 | R31: 204.3503564 | S31: 217.2375359 | T31: 230.1247154 | U31: 243.0118949 | V31: 255.8990744 | W31: 0 | X31: [kNm]
A32: Rippe | B32: Q3 | C32: Z53P26 | F32: VR,k,y | H32: 37.5 | I32: 37.5 | J32: 37.5 | K32: 37.5 | L32: 37.5 | M32: 37.5 | N32: 37.5 | O32: 37.5 | P32: 37.5 | Q32: 37.5 | R32: 37.5 | S32: 37.5 | T32: 37.5 | U32: 37.5 | V32: 37.5 | X32: [kN]
C33: ="GA "&C32 -> GA Z53P26 | F33: GAef | H33: 41169 | I33: 41169 | J33: 41169 | K33: 41169 | L33: 41169 | M33: 41169 | N33: 41169 | O33: 41169 | P33: 41169 | Q33: 41169 | R33: 41169 | S33: 41169 | T33: 41169 | U33: 41169 | V33: 41169 | X33: [kN]
F34: Iz | G34: 0 | H34: 184.7519143 | I34: 199.4283101 | J34: 214.104706 | K34: 231.1154088 | L34: 245.7918046 | M34: 260.4682004 | N34: 275.1445963 | O34: 299.8649828 | P34: 314.5413786 | Q34: 329.2177744 | R34: 350.1594411 | S34: 371.1011078 | T34: 392.0427744 | U34: 412.9844411 | V34: 433.9261078 | W34: 0 | X34: [10^3*cm4]
C35: ="M "&C32 -> M Z53P26 | F35: MR,k,z | G35: 0 | H35: 113.6934857 | I35: 122.7251139 | J35: 131.7567421 | K35: 142.2248669 | L35: 151.2564951 | M35: 160.2881233 | N35: 169.3197516 | O35: 184.5322971 | P35: 193.5639253 | Q35: 202.5955535 | R35: 215.482733 | S35: 228.3699125 | T35: 241.257092 | U35: 254.1442714 | V35: 267.0314509 | W35: 0 | X35: [kNm]
A36: Rippe | B36: Q3 | C36: Z53P53 | F36: VR,k,y | J36: 37.5 | K36: 37.5 | L36: 37.5 | M36: 37.5 | N36: 37.5 | O36: 37.5 | P36: 37.5 | Q36: 37.5 | R36: 37.5 | S36: 37.5 | T36: 37.5 | U36: 37.5 | V36: 37.5 | X36: [kN]
C37: ="GA "&C36 -> GA Z53P53 | F37: GAef | J37: 41169 | K37: 41169 | L37: 41169 | M37: 41169 | N37: 41169 | O37: 41169 | P37: 41169 | Q37: 41169 | R37: 41169 | S37: 41169 | T37: 41169 | U37: 41169 | V37: 41169 | X37: [kN]
F38: Iz | G38: 0 | H38: 0 | I38: 0 | J38: 236.1429124 | K38: 249.2055207 | L38: 263.8819165 | M38: 278.5583124 | N38: 293.2347082 | O38: 317.9550947 | P38: 332.6314905 | Q38: 347.3078864 | R38: 368.249553 | S38: 389.1912197 | T38: 410.1328864 | U38: 431.074553 | V38: 452.0162197 | W38: 0 | X38: [10^3*cm4]
C39: ="M "&C36 -> M Z53P53 | F39: MR,k,z | G39: 0 | H39: 0 | I39: 0 | J39: 145.3187153 | K39: 153.3572435 | L39: 162.3888717 | M39: 171.4204999 | N39: 180.4521281 | O39: 195.6646737 | P39: 204.6963019 | Q39: 213.7279301 | R39: 226.6151096 | S39: 239.502289 | T39: 252.3894685 | U39: 265.276648 | V39: 278.1638275 | W39: 0 | X39: [kNm]
A40: Rippe | B40: Q3 | C40: Z80P0 | F40: VR,k,y | I40: 48.1 | J40: 48.1 | K40: 48.1 | L40: 48.1 | M40: 48.1 | N40: 48.1 | O40: 48.1 | P40: 48.1 | Q40: 48.1 | R40: 48.1 | S40: 48.1 | T40: 48.1 | U40: 48.1 | V40: 48.1 | X40: [kN]
C41: ="GA "&C40 -> GA Z80P0 | F41: GAef | I41: 52813 | J41: 52813 | K41: 52813 | L41: 52813 | M41: 52813 | N41: 52813 | O41: 52813 | P41: 52813 | Q41: 52813 | R41: 52813 | S41: 52813 | T41: 52813 | U41: 52813 | V41: 52813 | X41: [kN]
F42: Iz | G42: 0 | H42: 0 | I42: 216.2899682 | J42: 230.9663641 | K42: 247.9770669 | L42: 262.6534627 | M42: 277.3298585 | N42: 292.0062544 | O42: 316.7692396 | P42: 331.4456354 | Q42: 346.1220313 | R42: 367.0636979 | S42: 388.0053646 | T42: 408.9470313 | U42: 429.8886979 | V42: 450.8303646 | W42: 0 | X42: [10^3*cm4]
C43: ="M "&C40 -> M Z80P0 | F43: MR,k,z | G43: 0 | H43: 0 | I43: 133.1015189 | J43: 142.1331471 | K43: 152.6012719 | L43: 161.6329001 | M43: 170.6645283 | N43: 179.6961565 | O43: 194.9349167 | P43: 203.9665449 | Q43: 212.9981731 | R43: 225.8853526 | S43: 238.7725321 | T43: 251.6597115 | U43: 264.546891 | V43: 277.4340705 | W43: 0 | X43: [kNm]
A44: Rippe | B44: Q3 | C44: Z80P26 | F44: VR,k,y | J44: 48.1 | K44: 48.1 | L44: 48.1 | M44: 48.1 | N44: 48.1 | O44: 48.1 | P44: 48.1 | Q44: 48.1 | R44: 48.1 | S44: 48.1 | T44: 48.1 | U44: 48.1 | V44: 48.1 | X44: [kN]
C45: ="GA "&C44 -> GA Z80P26 | F45: GAef | J45: 52813 | K45: 52813 | L45: 52813 | M45: 52813 | N45: 52813 | O45: 52813 | P45: 52813 | Q45: 52813 | R45: 52813 | S45: 52813 | T45: 52813 | U45: 52813 | V45: 52813 | X45: [kN]
F46: Iz | G46: 0 | H46: 0 | I46: 0 | J46: 257.2374762 | K46: 270.3000845 | L46: 284.9764804 | M46: 299.6528762 | N46: 314.329272 | O46: 339.0922572 | P46: 353.7686531 | Q46: 368.4450489 | R46: 389.3867156 | S46: 410.3283822 | T46: 431.2700489 | U46: 452.2117156 | V46: 473.1533822 | W46: 0 | X46: [10^3*cm4]
C47: ="M "&C44 -> M Z80P26 | F47: MR,k,z | G47: 0 | H47: 0 | I47: 0 | J47: 158.2999854 | K47: 166.3385136 | L47: 175.3701418 | M47: 184.40177 | N47: 193.4333982 | O47: 208.6721583 | P47: 217.7037865 | Q47: 226.7354147 | R47: 239.6225942 | S47: 252.5097737 | T47: 265.3969532 | U47: 278.2841327 | V47: 291.1713122 | W47: 0 | X47: [kNm]
A48: Rippe | B48: Q3 | C48: Z80P53 | F48: VR,k,y | K48: 48.1 | L48: 48.1 | M48: 48.1 | N48: 48.1 | O48: 48.1 | P48: 48.1 | Q48: 48.1 | R48: 48.1 | S48: 48.1 | T48: 48.1 | U48: 48.1 | V48: 48.1 | X48: [kN]
C49: ="GA "&C48 -> GA Z80P53 | F49: GAef | K49: 52813 | L49: 52813 | M49: 52813 | N49: 52813 | O49: 52813 | P49: 52813 | Q49: 52813 | R49: 52813 | S49: 52813 | T49: 52813 | U49: 52813 | V49: 52813 | X49: [kN]
F50: Iz | G50: 0 | H50: 0 | I50: 0 | J50: 0 | K50: 292.6231022 | L50: 307.299498 | M50: 321.9758939 | N50: 336.4855535 | O50: 361.4152749 | P50: 376.0916707 | Q50: 390.7680666 | R50: 411.7097332 | S50: 432.6513999 | T50: 453.5930666 | U50: 474.5347332 | V50: 495.4763999 | W50: 0 | X50: [10^3*cm4]
C51: ="M "&C48 -> M Z80P53 | F51: MR,k,z | G51: 0 | H51: 0 | I51: 0 | J51: 0 | K51: 180.0757552 | L51: 189.1073834 | M51: 198.1390116 | N51: 207.0680329 | O51: 222.4093999 | P51: 231.4410281 | Q51: 240.4726564 | R51: 253.3598358 | S51: 266.2470153 | T51: 279.1341948 | U51: 292.0213743 | V51: 304.9085538 | W51: 0 | X51: [kNm]
A53: Rippe Q3-r25
A54: Elementhöhe | G54: 150 | H54: 170 | I54: 190 | J54: 210 | K54: 230 | L54: 250 | M54: 270 | N54: 290 | O54: 310 | P54: [mm]
A55: Rippe | B55: Q3 | C55: Z0P0Nsi | F55: VR,k,xy | G55: 31.8 | H55: 31.8 | I55: 31.8 | J55: 31.8 | K55: 31.8 | L55: 31.8 | M55: 31.8 | N55: 31.8 | P55: [kN]
C56: ="GA "&C55 -> GA Z0P0Nsi | F56: GAef | G56: 34916 | H56: 34916 | I56: 34916 | J56: 34916 | K56: 34916 | L56: 34916 | M56: 34916 | N56: 34916 | P56: [kN]
F57: Iz | G57: 52.4291849 | H57: 67.10558073 | I57: 81.41506667 | J57: 96.0914625 | K57: 110.7678583 | L57: 125.4442542 | M57: 139.7537401 | N57: 154.4301359 | O57: 0 | P57: [10^3*cm4]
C58: ="M "&C55 -> M Z0P0Nsi | F58: MR,k,z | G58: 32.26411378 | H58: 41.29574199 | I58: 50.10157949 | J58: 59.13320769 | K58: 68.1648359 | L58: 77.1964641 | M58: 86.0023016 | N58: 95.03392981 | O58: 0 | P58: [kNm]
A59: Rippe | B59: Q3 | C59: Z0P0 | F59: VR,k,y | G59: 33.1 | H59: 33.1 | I59: 33.1 | J59: 33.1 | K59: 33.1 | L59: 33.1 | M59: 33.1 | N59: 33.1 | P59: [kN]
C60: ="GA "&C59 -> GA Z0P0 | F60: GAef | G60: 14203 | H60: 14203 | I60: 14203 | J60: 14203 | K60: 14203 | L60: 14203 | M60: 14203 | N60: 14203 | P60: [kN]
F61: Iz | G61: 114.1473488 | H61: 128.8237446 | I61: 144.0236493 | J61: 158.7000452 | K61: 173.376441 | L61: 188.0528368 | M61: 202.3623228 | N61: 217.0387186 | O61: 0 | P61: [10^3*cm4]
C62: ="M "&C59 -> M Z0P0 | F62: MR,k,z | G62: 70.24452234 | H62: 79.27615055 | I62: 88.62993805 | J62: 97.66156625 | K62: 106.6931945 | L62: 115.7248227 | M62: 124.5306602 | N62: 133.5622884 | O62: 0 | P62: [kNm]
A63: Rippe | B63: Q3 | C63: Z26P0 | F63: VR,k,y | G63: 27.1 | H63: 27.1 | I63: 27.1 | J63: 27.1 | K63: 27.1 | L63: 27.1 | M63: 27.1 | N63: 27.1 | P63: [kN]
C64: ="GA "&C63 -> GA Z26P0 | F64: GAef | G64: 29741 | H64: 29741 | I64: 29741 | J64: 29741 | K64: 29741 | L64: 29741 | M64: 29741 | N64: 29741 | P64: [kN]
F65: Iz | G65: 91.66717708 | H65: 106.3435729 | I65: 121.0199688 | J65: 135.3294547 | K65: 150.0058505 | L65: 164.6822464 | M65: 179.3586422 | N65: 193.6681281 | O65: 0 | P65: [10^3*cm4]
C66: ="M "&C63 -> M Z26P0 | F66: MR,k,z | G66: 56.41057051 | H66: 65.44219872 | I66: 74.47382692 | J66: 83.27966442 | K66: 92.31129263 | L66: 101.3429208 | M66: 110.374549 | N66: 119.1803865 | O66: 0 | P66: [kNm]
A67: Rippe | B67: Q3 | C67: Z26Z26 | F67: VR,k,y | G67: 27.1 | H67: 27.1 | I67: 27.1 | J67: 27.1 | K67: 27.1 | L67: 27.1 | M67: 27.1 | N67: 27.1 | P67: [kN]
C68: ="GA "&C67 -> GA Z26Z26 | F68: GAef | G68: 29741 | H68: 29741 | I68: 29741 | J68: 29741 | K68: 29741 | L68: 29741 | M68: 29741 | N68: 29741 | P68: [kN]
F69: Iz | G69: 108.8668703 | H69: 123.5432661 | I69: 138.2196619 | J69: 153.4195666 | K69: 168.0959625 | L69: 182.7723583 | M69: 197.4487541 | N69: 211.7582401 | O69: 0 | P69: [10^3*cm4]
C70: ="M "&C67 -> M Z26Z26 | F70: MR,k,z | G70: 66.99499709 | H70: 76.02662529 | I70: 85.0582535 | J70: 94.412041 | K70: 103.4436692 | L70: 112.4752974 | M70: 121.5069256 | N70: 130.3127631 | O70: 0 | P70: [kNm]
A71: Rippe | B71: Q3 | C71: Z26P53 | F71: VR,k,y | J71: 27.1 | K71: 27.1 | L71: 27.1 | M71: 27.1 | N71: 27.1 | P71: [kN]
C72: ="GA "&C71 -> GA Z26P53 | F72: GAef | J72: 29741 | K72: 29741 | L72: 29741 | M72: 29741 | N72: 29741 | P72: [kN]
F73: Iz | G73: 0 | H73: 0 | I73: 0 | J73: 171.5096786 | K73: 186.1860744 | L73: 200.8624702 | M73: 215.5388661 | N73: 229.848352 | O73: 0 | P73: [10^3*cm4]
C74: ="M "&C71 -> M Z26P53 | F74: MR,k,z | G74: 0 | H74: 0 | I74: 0 | J74: 105.5444176 | K74: 114.5760458 | L74: 123.607674 | M74: 132.6393022 | N74: 141.4451397 | O74: 0 | P74: [kNm]
A75: Rippe | B75: Q3 | C75: Z53P0 | F75: VR,k,y | H75: 37.5 | I75: 37.5 | J75: 37.5 | K75: 37.5 | L75: 37.5 | M75: 37.5 | N75: 37.5 | P75: [kN]
C76: ="GA "&C75 -> GA Z53P0 | F76: GAef | H76: 41169 | I76: 41169 | J76: 41169 | K76: 41169 | L76: 41169 | M76: 41169 | N76: 41169 | P76: [kN]
F77: Iz | G77: 0 | H77: 139.9213177 | I77: 154.5977135 | J77: 169.7976182 | K77: 184.4740141 | L77: 199.1504099 | M77: 213.8268057 | N77: 228.1362917 | O77: 0 | P77: [10^3*cm4]
C78: ="M "&C75 -> M Z53P0 | F78: MR,k,z | G78: 0 | H78: 86.10542628 | I78: 95.13705449 | J78: 104.490842 | K78: 113.5224702 | L78: 122.5540984 | M78: 131.5857266 | N78: 140.3915641 | O78: 0 | P78: [kNm]
A79: Rippe | B79: Q3 | C79: Z53P26 | F79: VR,k,y | J79: 37.5 | K79: 37.5 | L79: 37.5 | M79: 37.5 | N79: 37.5 | P79: [kN]
C80: ="GA "&C79 -> GA Z53P26 | F80: GAef | J80: 41169 | K80: 41169 | L80: 41169 | M80: 41169 | N80: 41169 | P80: [kN]
F81: Iz | G81: 0 | H81: 0 | I81: 0 | J81: 187.8877302 | K81: 202.564126 | L81: 217.2405218 | M81: 231.9169177 | N81: 246.2264036 | O81: 0 | P81: [10^3*cm4]
C82: ="M "&C79 -> M Z53P26 | F82: MR,k,z | G82: 0 | H82: 0 | I82: 0 | J82: 115.6232186 | K82: 124.6548468 | L82: 133.686475 | M82: 142.7181032 | N82: 151.5239407 | O82: 0 | P82: [kNm]
A83: Rippe | B83: Q3 | C83: Z53P53 | F83: VR,k,y | J83: 37.5 | K83: 37.5 | L83: 37.5 | M83: 37.5 | N83: 37.5 | P83: [kN]
C84: ="GA "&C83 -> GA Z53P53 | F84: GAef | J84: 41169 | K84: 41169 | L84: 41169 | M84: 41169 | N84: 41169 | P84: [kN]
F85: Iz | G85: 0 | H85: 0 | I85: 0 | J85: 205.9778421 | K85: 220.6542379 | L85: 235.3306338 | M85: 250.0070296 | N85: 264.3165155 | O85: 0 | P85: [10^3*cm4]
C86: ="M "&C83 -> M Z53P53 | F86: MR,k,z | G86: 0 | H86: 0 | I86: 0 | J86: 126.7555951 | K86: 135.7872233 | L86: 144.8188515 | M86: 153.8504798 | N86: 162.6563173 | O86: 0 | P86: [kNm]
A87: Rippe | B87: Q3 | C87: Z80P0 | F87: VR,k,y | J87: 48.1 | K87: 48.1 | L87: 48.1 | M87: 48.1 | N87: 48.1 | P87: [kN]
C88: ="GA "&C87 -> GA Z80P0 | F88: GAef | J88: 52813 | K88: 52813 | L88: 52813 | M88: 52813 | N88: 52813 | P88: [kN]
F89: Iz | G89: 0 | H89: 0 | I89: 0 | J89: 205.2830344 | K89: 219.9594302 | L89: 234.635826 | M89: 249.3122219 | N89: 263.6217078 | O89: 0 | P89: [10^3*cm4]
C90: ="M "&C87 -> M Z80P0 | F90: MR,k,z | G90: 0 | H90: 0 | I90: 0 | J90: 126.3280212 | K90: 135.3596494 | L90: 144.3912776 | M90: 153.4229058 | N90: 162.2287433 | O90: 0 | P90: [kNm]
A91: Rippe | B91: Q3 | C91: Z80P26 | F91: VR,k,y | K91: 48.1 | L91: 48.1 | M91: 48.1 | N91: 48.1 | P91: [kN]
C92: ="GA "&C91 -> GA Z80P26 | F92: GAef | K92: 52813 | L92: 52813 | M92: 52813 | N92: 52813 | P92: [kN]
F93: Iz | G93: 0 | H93: 0 | I93: 0 | J93: 0 | K93: 242.2824479 | L93: 256.9588437 | M93: 271.6352395 | N93: 285.9447255 | O93: 0 | P93: [10^3*cm4]
C94: ="M "&C91 -> M Z80P26 | F94: MR,k,z | G94: 0 | H94: 0 | I94: 0 | J94: 0 | K94: 149.096891 | L94: 158.1285192 | M94: 167.1601474 | N94: 175.9659849 | O94: 0 | P94: [kNm]
A95: Rippe | B95: Q3 | C95: Z80P53 | F95: VR,k,y | K95: 48.1 | L95: 48.1 | M95: 48.1 | N95: 48.1 | P95: [kN]
C96: ="GA "&C95 -> GA Z80P53 | F96: GAef | K96: 52813 | L96: 52813 | M96: 52813 | N96: 52813 | P96: [kN]
F97: Iz | G97: 0 | H97: 0 | I97: 0 | J97: 0 | K97: 263.7150468 | L97: 278.3914426 | M97: 293.0678385 | N97: 308.2677431 | O97: 0 | P97: [10^3*cm4]
C98: ="M "&C95 -> M Z80P53 | F98: MR,k,z | G98: 0 | H98: 0 | I98: 0 | J98: 0 | K98: 162.2861826 | L98: 171.3178108 | M98: 180.349439 | N98: 189.7032265 | O98: 0 | P98: [kNm]
A100: Rippe Q3-r50
A101: Elementhöhe | G101: 190 | H101: 210 | I101: 230 | J101: 250 | K101: 270 | L101: 290 | M101: 310 | N101: [mm]
A102: Rippe | B102: Q3 | C102: Z0P0Nsi | F102: VR,k,xy | G102: 31.8 | H102: 31.8 | I102: 31.8 | J102: 31.8 | K102: 31.8 | L102: 31.8 | N102: [kN]
C103: ="GA "&C102 -> GA Z0P0Nsi | F103: GAef | G103: 34916 | H103: 34916 | I103: 34916 | J103: 34916 | K103: 34916 | L103: 34916 | N103: [kN]
F104: Iz | G104: 61.96884219 | H104: 76.64523802 | I104: 91.32163385 | J104: 105.9980297 | K104: 120.3075156 | L104: 134.9839115 | M104: 0 | N104: [10^3*cm4]
C105: ="M "&C102 -> M Z0P0Nsi | F105: MR,k,z | G105: 38.13467212 | H105: 47.16630032 | I105: 56.19792853 | J105: 65.22955673 | K105: 74.03539423 | L105: 83.06702244 | M105: 0 | N105: [kNm]
A106: Rippe | B106: Q3 | C106: Z0P0 | F106: VR,k,y | G106: 33.1 | H106: 33.1 | I106: 33.1 | J106: 33.1 | K106: 33.1 | L106: 33.1 | N106: [kN]
C107: ="GA "&C106 -> GA Z0P0 | F107: GAef | G107: 14203 | H107: 14203 | I107: 14203 | J107: 14203 | K107: 14203 | L107: 14203 | N107: [kN]
F108: Iz | G108: 124.5774249 | H108: 139.2538207 | I108: 153.9302165 | J108: 168.6066124 | K108: 182.9160983 | L108: 197.5924941 | M108: 0 | N108: [10^3*cm4]
C109: ="M "&C106 -> M Z0P0 | F109: MR,k,z | G109: 76.66303068 | H109: 85.69465888 | I109: 94.72628709 | J109: 103.7579153 | K109: 112.5637528 | L109: 121.595381 | M109: 0 | N109: [kNm]
A110: Rippe | B110: Q3 | C110: Z26P0 | F110: VR,k,y | G110: 27.1 | H110: 27.1 | I110: 27.1 | J110: 27.1 | K110: 27.1 | L110: 27.1 | N110: [kN]
C111: ="GA "&C110 -> GA Z26P0 | F111: GAef | G111: 29741 | H111: 29741 | I111: 29741 | J111: 29741 | K111: 29741 | L111: 29741 | N111: [kN]
F112: Iz | G112: 100.6833255 | H112: 115.8832302 | I112: 130.559626 | J112: 145.2360219 | K112: 159.9124177 | L112: 174.2219036 | M112: 0 | N112: [10^3*cm4]
C113: ="M "&C110 -> M Z26P0 | F113: MR,k,z | G113: 61.95896955 | H113: 71.31275705 | I113: 80.34438526 | J113: 89.37601346 | K113: 98.40764167 | L113: 107.2134792 | M113: 0 | N113: [kNm]
A114: Rippe | B114: Q3 | C114: Z26Z26 | F114: VR,k,y | H114: 27.1 | I114: 27.1 | J114: 27.1 | K114: 27.1 | L114: 27.1 | N114: [kN]
C115: ="GA "&C114 -> GA Z26Z26 | F115: GAef | H115: 29741 | I115: 29741 | J115: 29741 | K115: 29741 | L115: 29741 | N115: [kN]
F116: Iz | G116: 0 | H116: 133.9733421 | I116: 148.649738 | J116: 163.3261338 | K116: 178.0025296 | L116: 192.3120156 | M116: 0 | N116: [10^3*cm4]
C117: ="M "&C114 -> M Z26Z26 | F117: MR,k,z | G117: 0 | H117: 82.44513363 | I117: 91.47676183 | J117: 100.50839 | K117: 109.5400182 | L117: 118.3458557 | M117: 0 | N117: [kNm]
A118: Rippe | B118: Q3 | C118: Z26P53 | F118: VR,k,y | H118: 27.1 | I118: 27.1 | J118: 27.1 | K118: 27.1 | L118: 27.1 | N118: [kN]
C119: ="GA "&C118 -> GA Z26P53 | F119: GAef | H119: 29741 | I119: 29741 | J119: 29741 | K119: 29741 | L119: 29741 | N119: [kN]
F120: Iz | G120: 0 | H120: 152.0634541 | I120: 166.7398499 | J120: 181.4162457 | K120: 196.0926416 | L120: 210.4021275 | M120: 0 | N120: [10^3*cm4]
C121: ="M "&C118 -> M Z26P53 | F121: MR,k,z | G121: 0 | H121: 93.5775102 | I121: 102.6091384 | J121: 111.6407666 | K121: 120.6723948 | L121: 129.4782323 | M121: 0 | N121: [kNm]
A122: Rippe | B122: Q3 | C122: Z53P0 | F122: VR,k,y | H122: 37.5 | I122: 37.5 | J122: 37.5 | K122: 37.5 | L122: 37.5 | N122: [kN]
C123: ="GA "&C122 -> GA Z53P0 | F123: GAef | H123: 41169 | I123: 41169 | J123: 41169 | K123: 41169 | L123: 41169 | N123: [kN]
F124: Iz | G124: 0 | H124: 150.3513937 | I124: 165.0277896 | J124: 179.7041854 | K124: 194.3805812 | L124: 208.6900672 | M124: 0 | N124: [10^3*cm4]
C125: ="M "&C122 -> M Z53P0 | F125: MR,k,z | G125: 0 | H125: 92.52393462 | I125: 101.5555628 | J125: 110.587191 | K125: 119.6188192 | L125: 128.4246567 | M125: 0 | N125: [kNm]
A126: Rippe | B126: Q3 | C126: Z53P26 | F126: VR,k,y | H126: 37.5 | I126: 37.5 | J126: 37.5 | K126: 37.5 | L126: 37.5 | N126: [kN]
C127: ="GA "&C126 -> GA Z53P26 | F127: GAef | H127: 41169 | I127: 41169 | J127: 41169 | K127: 41169 | L127: 41169 | N127: [kN]
F128: Iz | G128: 0 | H128: 168.4415057 | I128: 183.1179015 | J128: 197.7942974 | K128: 212.4706932 | L128: 226.7801791 | M128: 0 | N128: [10^3*cm4]
C129: ="M "&C126 -> M Z53P26 | F129: MR,k,z | G129: 0 | H129: 103.6563112 | I129: 112.6879394 | J129: 121.7195676 | K129: 130.7511958 | L129: 139.5570333 | M129: 0 | N129: [kNm]
A130: Rippe | B130: Q3 | C130: Z53P53 | F130: VR,k,y | H130: 37.5 | I130: 37.5 | J130: 37.5 | K130: 37.5 | L130: 37.5 | N130: [kN]
C131: ="GA "&C130 -> GA Z53P53 | F131: GAef | H131: 41169 | I131: 41169 | J131: 41169 | K131: 41169 | L131: 41169 | N131: [kN]
F132: Iz | G132: 0 | H132: 0 | I132: 200.3175947 | J132: 214.9939905 | K132: 229.6703864 | L132: 244.8702911 | M132: 0 | N132: [10^3*cm4]
C133: ="M "&C130 -> M Z53P53 | F133: MR,k,z | G133: 0 | H133: 0 | I133: 123.272366 | J133: 132.3039942 | K133: 141.3356224 | L133: 150.6894099 | M133: 0 | N133: [kNm]
A134: Rippe | B134: Q3 | C134: Z80P0 | F134: VR,k,y | I134: 48.1 | J134: 48.1 | K134: 48.1 | L134: 48.1 | N134: [kN]
C135: ="GA "&C134 -> GA Z80P0 | F135: GAef | I135: 52813 | J135: 52813 | K135: 52813 | L135: 52813 | N135: [kN]
F136: Iz | H136: 0 | I136: 200.5132057 | J136: 215.1896016 | K136: 229.8659974 | L136: 244.1754833 | M136: 0 | N136: [10^3*cm4]
C137: ="M "&C134 -> M Z80P0 | F137: MR,k,z | G137: 0 | H137: 0 | I137: 123.392742 | J137: 132.4243702 | K137: 141.4559984 | L137: 150.2618359 | M137: 0 | N137: [kNm]
A138: Rippe | B138: Q3 | C138: Z80P26 | F138: VR,k,y | I138: 48.1 | J138: 48.1 | K138: 48.1 | L138: 48.1 | N138: [kN]
C139: ="GA "&C138 -> GA Z80P26 | F139: GAef | I139: 52813 | J139: 52813 | K139: 52813 | L139: 52813 | N139: [kN]
F140: Iz | G140: 0 | H140: 0 | I140: 221.9458046 | J140: 236.6222005 | K140: 251.2985963 | L140: 266.498501 | M140: 0 | N140: [10^3*cm4]
C141: ="M "&C138 -> M Z80P26 | F141: MR,k,z | G141: 0 | H141: 0 | I141: 136.5820336 | J141: 145.6136618 | K141: 154.64529 | L141: 163.9990775 | M141: 0 | N141: [kNm]

Sheet Block Q3 (hidden)
A1: Scheibenkennwerte Block Q3
A4: Anmerkung: | D4: Die Scheibenkennwerte beziehen sich auf einen Laufmeter Element. Die Elementbreite bE = 0,625m
A8: Block Q3
A9: Elementhöhe | G9: 150 | H9: 170 | I9: 190 | J9: 210 | K9: 230 | L9: 250 | M9: 270 | N9: 290 | O9: 310 | P9: 330 | Q9: 350 | R9: 370 | S9: 390 | T9: 410 | U9: 430 | V9: 450 | W9: 470 | X9: [mm]
A10: Block | B10: Q3 | C10: Z0P0Nsi | F10: VR,k,xy | G10: 29 | H10: 29 | I10: 29 | J10: 29 | K10: 29 | L10: 29 | M10: 29 | N10: 29 | O10: 29 | P10: 29 | Q10: 29 | R10: 29 | S10: 29 | T10: 29 | U10: 29 | V10: 29 | X10: [kN]
C11: ="GA "&C10 -> GA Z0P0Nsi | F11: GAef | G11: 39095 | H11: 39095 | I11: 39095 | J11: 39095 | K11: 39095 | L11: 39095 | M11: 39095 | N11: 39095 | O11: 39095 | P11: 39095 | Q11: 39095 | R11: 39095 | S11: 39095 | T11: 39095 | U11: 39095 | V11: 39095 | X11: [kN]
F12: Iz | G12: 79.27205069 | H12: 100.4013265 | I12: 121.5306024 | J12: 142.734576 | K12: 163.8638518 | L12: 184.9931276 | M12: 206.1224035 | N12: 227.3263771 | O12: 282.1154756 | P12: 303.2447514 | Q12: 324.5701088 | R12: 348.6872963 | S12: 372.8044838 | T12: 396.9216713 | U12: 421.0388588 | V12: 445.1560463 | W12: 0 | X12: [103*cm4]
C13: ="M "&C10 -> M Z0P0Nsi | F13: MR,k,z | G13: 40.57801498 | H13: 51.39373204 | I13: 62.2094491 | J13: 73.0634027 | K13: 83.87911976 | L13: 94.69483682 | M13: 105.5105539 | N13: 116.3645075 | O13: 144.4101155 | P13: 155.2258325 | Q13: 166.1419204 | R13: 178.4870986 | S13: 190.8322769 | T13: 203.1774551 | U13: 215.5226334 | V13: 227.8678116 | W13: 0 | X13: [kNm]
A14: Block | B14: Q3 | C14: Z0P0 | F14: VR,k,y | G14: 31.9 | H14: 31.9 | I14: 31.9 | J14: 31.9 | K14: 31.9 | L14: 31.9 | M14: 31.9 | N14: 31.9 | O14: 31.9 | P14: 31.9 | Q14: 31.9 | R14: 31.9 | S14: 31.9 | T14: 31.9 | U14: 31.9 | V14: 31.9 | X14: [kN]
C15: ="GA "&C14 -> GA Z0P0 | F15: GAef | G15: 16323 | H15: 16323 | I15: 16323 | J15: 16323 | K15: 16323 | L15: 16323 | M15: 16323 | N15: 16323 | O15: 16323 | P15: 16323 | Q15: 16323 | R15: 16323 | S15: 16323 | T15: 16323 | U15: 16323 | V15: 16323 | X15: [kN]
F16: Iz | G16: 108.8511594 | H16: 129.9804353 | I16: 151.1097111 | J16: 172.3136847 | K16: 193.4429606 | L16: 214.5722364 | M16: 235.7015122 | N16: 256.9054859 | O16: 311.6945844 | P16: 332.8238602 | Q16: 354.1492175 | R16: 378.266405 | S16: 402.3835925 | T16: 426.50078 | U16: 450.6179675 | V16: 474.735155 | W16: 0 | X16: [103*cm4]
C17: ="M "&C14 -> M Z0P0 | F17: MR,k,z | G17: 55.71905785 | H17: 66.53477491 | I17: 77.35049198 | J17: 88.20444557 | K17: 99.02016263 | L17: 109.8358797 | M17: 120.6515968 | N17: 131.5055504 | O17: 159.5511584 | P17: 170.3668754 | Q17: 181.2829633 | R17: 193.6281415 | S17: 205.9733198 | T17: 218.318498 | U17: 230.6636762 | V17: 243.0088545 | W17: 0 | X17: [kNm]
A18: Block | B18: Q3 | C18: Z26P0 | F18: VR,k,y | G18: 25.1 | H18: 25.1 | I18: 25.1 | J18: 25.1 | K18: 25.1 | L18: 25.1 | M18: 25.1 | N18: 25.1 | O18: 25.1 | P18: 25.1 | Q18: 25.1 | R18: 25.1 | S18: 25.1 | T18: 25.1 | U18: 25.1 | V18: 25.1 | X18: [kN]
C19: ="GA "&C18 -> GA Z26P0 | F19: GAef | G19: 33920 | H19: 33920 | I19: 33920 | J19: 33920 | K19: 33920 | L19: 33920 | M19: 33920 | N19: 33920 | O19: 33920 | P19: 33920 | Q19: 33920 | R19: 33920 | S19: 33920 | T19: 33920 | U19: 33920 | V19: 33920 | X19: [kN]
F20: Iz | G20: 110.0132373 | H20: 131.1425131 | I20: 152.271789 | J20: 173.4010648 | K20: 194.6050384 | L20: 215.7343143 | M20: 236.8635901 | N20: 257.9928659 | O20: 312.8566622 | P20: 333.9859381 | Q20: 355.1152139 | R20: 379.2324014 | S20: 403.3495889 | T20: 427.4667764 | U20: 451.5839639 | V20: 475.7011514 | W20: 0 | X20: [103*cm4]
C21: ="M "&C18 -> M Z26P0 | F21: MR,k,z | G21: 56.31390575 | H21: 67.12962281 | I21: 77.94533988 | J21: 88.76105694 | K21: 99.61501053 | L21: 110.4307276 | M21: 121.2464447 | N21: 132.0621617 | O21: 160.1460063 | P21: 170.9617233 | Q21: 181.7774404 | R21: 194.1226186 | S21: 206.4677969 | T21: 218.8129751 | U21: 231.1581534 | V21: 243.5033316 | W21: 0 | X21: [kNm]
A22: Block | B22: Q3 | C22: Z26P26 | F22: VR,k,y | H22: 25.1 | I22: 25.1 | J22: 25.1 | K22: 25.1 | L22: 25.1 | M22: 25.1 | N22: 25.1 | O22: 25.1 | P22: 25.1 | Q22: 25.1 | R22: 25.1 | S22: 25.1 | T22: 25.1 | U22: 25.1 | V22: 25.1 | X22: [kN]
C23: ="GA "&C22 -> GA Z26P26 | F23: GAef | H23: 33920 | I23: 33920 | J23: 33920 | K23: 33920 | L23: 33920 | M23: 33920 | N23: 33920 | O23: 33920 | P23: 33920 | Q23: 33920 | R23: 33920 | S23: 33920 | T23: 33920 | U23: 33920 | V23: 33920 | X23: [kN]
F24: Iz | G24: 0 | H24: 132.9680273 | I24: 154.0973031 | J24: 175.2265789 | K24: 196.4305525 | L24: 217.5598284 | M24: 238.6891042 | N24: 259.81838 | O24: 314.6821763 | P24: 335.8114522 | Q24: 356.940728 | R24: 381.0579155 | S24: 405.175103 | T24: 429.2922905 | U24: 453.409478 | V24: 477.5266655 | W24: 0 | X24: [103*cm4]
C25: ="M "&C22 -> M Z26P26 | F25: MR,k,z | G25: 0 | H25: 68.06407245 | I25: 78.87978951 | J25: 89.69550658 | K25: 100.5494602 | L25: 111.3651772 | M25: 122.1808943 | N25: 132.9966114 | O25: 161.0804559 | P25: 171.896173 | Q25: 182.71189 | R25: 195.0570683 | S25: 207.4022465 | T25: 219.7474248 | U25: 232.092603 | V25: 244.4377812 | W25: 0 | X25: [kNm]
A26: Block | B26: Q3 | C26: Z26P53 | F26: VR,k,y | I26: 25.1 | J26: 25.1 | K26: 25.1 | L26: 25.1 | M26: 25.1 | N26: 25.1 | O26: 25.1 | P26: 25.1 | Q26: 25.1 | R26: 25.1 | S26: 25.1 | T26: 25.1 | U26: 25.1 | V26: 25.1 | X26: [kN]
C27: ="GA "&C26 -> GA Z26P53 | F27: GAef | I27: 33920 | J27: 33920 | K27: 33920 | L27: 33920 | M27: 33920 | N27: 33920 | O27: 33920 | P27: 33920 | Q27: 33920 | R27: 33920 | S27: 33920 | T27: 33920 | U27: 33920 | V27: 33920 | X27: [kN]
F28: Iz | G28: 0 | H28: 0 | I28: 153.3689276 | J28: 174.4982035 | K28: 196.6732484 | L28: 217.8025242 | M28: 238.9318 | N28: 260.0610759 | O28: 314.9248722 | P28: 336.054148 | Q28: 357.1834238 | R28: 381.3006113 | S28: 405.4177988 | T28: 429.5349863 | U28: 453.6521738 | V28: 477.7693613 | W28: 0 | X28: [103*cm4]
C29: ="M "&C26 -> M Z26P53 | F29: MR,k,z | G29: 0 | H29: 0 | I29: 78.5069465 | J29: 89.32266356 | K29: 100.673692 | L29: 111.4894091 | M29: 122.3051262 | N29: 133.1208432 | O29: 161.2046878 | P29: 172.0204048 | Q29: 182.8361219 | R29: 195.1813001 | S29: 207.5264784 | T29: 219.8716566 | U29: 232.2168349 | V29: 244.5620131 | W29: 0 | X29: [kNm]
A30: Block | B30: Q3 | C30: Z53P0 | F30: VR,k,y | H30: 33.6 | I30: 33.6 | J30: 33.6 | K30: 33.6 | L30: 33.6 | M30: 33.6 | N30: 33.6 | O30: 33.6 | P30: 33.6 | Q30: 33.6 | R30: 33.6 | S30: 33.6 | T30: 33.6 | U30: 33.6 | V30: 33.6 | X30: [kN]
C31: ="GA "&C30 -> GA Z53P0 | F31: GAef | H31: 45348 | I31: 45348 | J31: 45348 | K31: 45348 | L31: 45348 | M31: 45348 | N31: 45348 | O31: 45348 | P31: 45348 | Q31: 45348 | R31: 45348 | S31: 45348 | T31: 45348 | U31: 45348 | V31: 45348 | X31: [kN]
F32: Iz | G32: 0 | H32: 155.0166851 | I32: 176.145961 | J32: 197.2752368 | K32: 218.4792104 | L32: 239.6084862 | M32: 260.7377621 | N32: 281.8670379 | O32: 336.7308342 | P32: 357.86011 | Q32: 378.9893859 | R32: 403.1065734 | S32: 427.2237609 | T32: 451.3409484 | U32: 475.4581359 | V32: 499.5753234 | W32: 0 | X32: [103*cm4]
C33: ="M "&C30 -> M Z53P0 | F33: MR,k,z | G33: 0 | H33: 79.35040554 | I33: 90.16612261 | J33: 100.9818397 | K33: 111.8357933 | L33: 122.6515103 | M33: 133.4672274 | N33: 144.2829445 | O33: 172.366789 | P33: 183.182506 | Q33: 193.9982231 | R33: 206.3434014 | S33: 218.6885796 | T33: 231.0337578 | U33: 243.3789361 | V33: 255.7241143 | W33: 0 | X33: [kNm]
A34: Block | B34: Q3 | C34: Z53P26 | F34: VR,k,y | I34: 33.6 | J34: 33.6 | K34: 33.6 | L34: 33.6 | M34: 33.6 | N34: 33.6 | O34: 33.6 | P34: 33.6 | Q34: 33.6 | R34: 33.6 | S34: 33.6 | T34: 33.6 | U34: 33.6 | V34: 33.6 | X34: [kN]
C35: ="GA "&C34 -> GA Z53P26 | F35: GAef | I35: 45348 | J35: 45348 | K35: 45348 | L35: 45348 | M35: 45348 | N35: 45348 | O35: 45348 | P35: 45348 | Q35: 45348 | R35: 45348 | S35: 45348 | T35: 45348 | U35: 45348 | V35: 45348 | X35: [kN]
F36: Iz | G36: 0 | H36: 0 | I36: 177.0004038 | J36: 198.1296796 | K36: 220.3047245 | L36: 241.4340004 | M36: 262.5632762 | N36: 283.692552 | O36: 338.5563483 | P36: 359.6856241 | Q36: 380.8149 | R36: 404.9320875 | S36: 429.049275 | T36: 453.1664625 | U36: 477.28365 | V36: 501.4008375 | W36: 0 | X36: [103*cm4]
C37: ="M "&C34 -> M Z53P26 | F37: MR,k,z | G37: 0 | H37: 0 | I37: 90.60349736 | J37: 101.4192144 | K37: 112.7702429 | L37: 123.58596 | M37: 134.401677 | N37: 145.2173941 | O37: 173.3012386 | P37: 184.1169557 | Q37: 194.9326727 | R37: 207.277851 | S37: 219.6230292 | T37: 231.9682075 | U37: 244.3133857 | V37: 256.658564 | W37: 0 | X37: [kNm]
A38: Block | B38: Q3 | C38: Z53P53 | F38: VR,k,y | J38: 33.6 | K38: 33.6 | L38: 33.6 | M38: 33.6 | N38: 33.6 | O38: 33.6 | P38: 33.6 | Q38: 33.6 | R38: 33.6 | S38: 33.6 | T38: 33.6 | U38: 33.6 | V38: 33.6 | X38: [kN]
C39: ="GA "&C38 -> GA Z53P53 | F39: GAef | J39: 45348 | K39: 45348 | L39: 45348 | M39: 45348 | N39: 45348 | O39: 45348 | P39: 45348 | Q39: 45348 | R39: 45348 | S39: 45348 | T39: 45348 | U39: 45348 | V39: 45348 | X39: [kN]
F40: Iz | G40: 0 | H40: 0 | I40: 0 | J40: 220.5474204 | K40: 220.5474204 | L40: 241.6766962 | M40: 262.805972 | N40: 283.9352479 | O40: 338.7990441 | P40: 359.92832 | Q40: 381.0575958 | R40: 405.1747833 | S40: 429.2919708 | T40: 453.4091583 | U40: 477.5263458 | V40: 501.6435333 | W40: 0 | X40: [103*cm4]
C41: ="M "&C38 -> M Z53P53 | F41: MR,k,z | G41: 0 | H41: 0 | I41: 0 | J41: 112.8944748 | K41: 112.8944748 | L41: 123.7101918 | M41: 134.5259089 | N41: 145.341626 | O41: 173.4254705 | P41: 184.2411876 | Q41: 195.0569046 | R41: 207.4020829 | S41: 219.7472611 | T41: 232.0924394 | U41: 244.4376176 | V41: 256.7827958 | W41: 0 | X41: [kNm]
A42: Block | B42: Q3 | C42: Z80P0 | F42: VR,k,y | I42: 42.2 | J42: 42.2 | K42: 42.2 | L42: 42.2 | M42: 42.2 | N42: 42.2 | O42: 42.2 | P42: 42.2 | Q42: 42.2 | R42: 42.2 | S42: 42.2 | T42: 42.2 | U42: 42.2 | V42: 42.2 | X42: [kN]
C43: ="GA "&C42 -> GA Z80P0 | F43: GAef | I43: 56992 | J43: 56992 | K43: 56992 | L43: 56992 | M43: 56992 | N43: 56992 | O43: 56992 | P43: 56992 | Q43: 56992 | R43: 56992 | S43: 56992 | T43: 56992 | U43: 56992 | V43: 56992 | X43: [kN]
F44: Iz | G44: 0 | H44: 0 | I44: 199.4248199 | J44: 220.5540958 | K44: 242.7291407 | L44: 263.8584165 | M44: 284.9876923 | N44: 306.1169682 | O44: 360.8593808 | P44: 381.9886566 | Q44: 403.1179324 | R44: 427.2351199 | S44: 451.3523074 | T44: 475.4694949 | U44: 499.5866824 | V44: 523.7038699 | W44: 0 | X44: [103*cm4]
C45: ="M "&C42 -> M Z80P0 | F45: MR,k,z | G45: 0 | H45: 0 | I45: 102.0821747 | J45: 112.8978918 | K45: 124.2489203 | L45: 135.0646373 | M45: 145.8803544 | N45: 156.6960715 | O45: 184.7177817 | P45: 195.5334988 | Q45: 206.3492159 | R45: 218.6943941 | S45: 231.0395724 | T45: 243.3847506 | U45: 255.7299288 | V45: 268.0751071 | W45: 0 | X45: [kNm]
A46: Block | B46: Q3 | C46: Z80P26 | F46: VR,k,y | K46: 42.2 | L46: 42.2 | M46: 42.2 | N46: 42.2 | O46: 42.2 | P46: 42.2 | Q46: 42.2 | R46: 42.2 | S46: 42.2 | T46: 42.2 | U46: 42.2 | V46: 42.2 | X46: [kN]
C47: ="GA "&C46 -> GA Z80P26 | F47: GAef | K47: 56992 | L47: 56992 | M47: 56992 | N47: 56992 | O47: 56992 | P47: 56992 | Q47: 56992 | R47: 56992 | S47: 56992 | T47: 56992 | U47: 56992 | V47: 56992 | X47: [kN]
F48: Iz | G48: 0 | H48: 0 | I48: 0 | J48: 0 | K48: 248.871433 | L48: 270.0007088 | M48: 291.1299847 | N48: 312.2592605 | O48: 367.0016731 | P48: 388.1309489 | Q48: 409.2602248 | R48: 433.3774123 | S48: 457.4945998 | T48: 481.6117873 | U48: 505.7289748 | V48: 529.8461623 | W48: 0 | X48: [103*cm4]
C49: ="M "&C46 -> M Z80P26 | F49: MR,k,z | G49: 0 | H49: 0 | I49: 0 | J49: 0 | K49: 127.3930553 | L49: 138.2087724 | M49: 149.0244894 | N49: 159.8402065 | O49: 187.8619168 | P49: 198.6776338 | Q49: 209.4933509 | R49: 221.8385291 | S49: 234.1837074 | T49: 246.5288856 | U49: 258.8740639 | V49: 271.2192421 | W49: 0 | X49: [kNm]
A50: Block | B50: Q3 | C50: Z80P53 | F50: VR,k,y | L50: 42.2 | M50: 42.2 | N50: 42.2 | O50: 42.2 | P50: 42.2 | Q50: 42.2 | R50: 42.2 | S50: 42.2 | T50: 42.2 | U50: 42.2 | V50: 42.2 | X50: [kN]
C51: ="GA "&C50 -> GA Z80P53 | F51: GAef | L51: 56992 | M51: 56992 | N51: 56992 | O51: 56992 | P51: 56992 | Q51: 56992 | R51: 56992 | S51: 56992 | T51: 56992 | U51: 56992 | V51: 56992 | X51: [kN]
F52: Iz | G52: 0 | H52: 0 | I52: 0 | J52: 0 | K52: 0 | L52: 274.5601829 | M52: 295.6894587 | N52: 316.8187346 | O52: 371.5611472 | P52: 392.690423 | Q52: 413.8196988 | R52: 437.9368863 | S52: 462.0540738 | T52: 486.1712613 | U52: 510.2884488 | V52: 534.4056363 | W52: 0 | X52: [103*cm4]
C53: ="M "&C50 -> M Z80P53 | F53: MR,k,z | G53: 0 | H53: 0 | I53: 0 | J53: 0 | K53: 0 | L53: 140.5426896 | M53: 151.3584067 | N53: 162.1741237 | O53: 190.195834 | P53: 201.0115511 | Q53: 211.8272681 | R53: 224.1724464 | S53: 236.5176246 | T53: 248.8628029 | U53: 261.2079811 | V53: 273.5531594 | W53: 0 | X53: [kNm]

Sheet Block Q (hidden)
A1: Scheibenkennwerte Block Q
A4: Anmerkung: | D4: Die Scheibenkennwerte beziehen sich auf einen Laufmeter Element. Die Elementbreite bE = 0,625m
A7: Block Q
A8: Elementhöhe | G8: 70 | H8: 90 | I8: 110 | J8: 130 | K8: 150 | L8: [mm]
A9: Block | B9: Q | C9: Z0P0Nsi | F9: VR,k,xy | I9: 22.2 | J9: 22.2 | L9: [kN]
C10: ="GA "&C9 -> GA Z0P0Nsi | F10: GAef | I10: 46079 | J10: 46079 | L10: [kN]
F11: Iz | G11: 0 | H11: 0 | I11: 79.10598958 | J11: 116.8515073 | K11: 0 | L11: [103*cm4]
C12: ="M "&C9 -> M Z0P0Nsi | F12: MR,k,z | G12: 0 | H12: 0 | I12: 42.35119901 | J12: 62.55912438 | K12: 0 | L12: [kNm]
A13: Block | B13: Q | C13: Z0P0 | F13: VR,k,y | G13: 23.7 | H13: 23.7 | I13: 23.7 | J13: 23.7 | L13: [kN]
C14: ="GA "&C13 -> GA Z0P0 | F14: GAef | G14: 25950 | H14: 25950 | I14: 25950 | J14: 25950 | L14: [kN]
F15: Iz | G15: 58.7050968 | H15: 96.5172168 | I15: 134.3293368 | J15: 166.9525663 | K15: 0 | L15: [103*cm4]
C16: ="M "&C13 -> M Z0P0 | F16: MR,k,z | G16: 31.42911492 | H16: 51.67269733 | I16: 71.91627974 | J16: 89.38187108 | K16: 0 | L16: [kNm]

Sheet Akustik (hidden)
A1: Scheibenkennwerte Akustik klassik
A4: Anmerkung: | D4: Die Scheibenkennwerte beziehen sich auf einen Laufmeter Element. Die Elementbreite bE = 0,625m
A6: Akustik Q
A7: Elementhöhe | G7: 90 | H7: 110 | I7: 130 | J7: 150 | K7: 170 | L7: 190 | M7: 210 | N7: 230 | O7: 250 | P7: 270 | Q7: 290 | R7: 310 | S7: 330 | T7: 350 | U7: 370 | V7: 390 | W7: 410 | X7: 430 | Y7: 450 | Z7: [mm]
A8: Akustik | B8: Q | C8: klassik | D8: Z0k50l | F8: VR,k,xy | G8: 14.58 | H8: 21.52 | I8: 21.52 | J8: 21.52 | Z8: [kN]
D9: ="GA "&D8 -> GA Z0k50l | F9: GAef | G9: 2486.2185 | H9: 2486.2185 | I9: 2486.2185 | J9: 2486.2185 | Z9: [kN]
F10: Iz | G10: 93.2 | H10: 124.9 | I10: 156.6 | J10: 188.3 | Z10: [103*cm4]
D11: ="M "&D8 -> M Z0k50l | F11: MR,k,z | G11: 47.47 | H11: 63.6 | I11: 79.73 | J11: 95.86 | Z11: [kNm]
A12: Akustik | B12: Q | C12: klassik | D12: Z0k50g | F12: VR,k,y | G12: 14.58 | H12: 21.52 | I12: 21.52 | J12: 21.52 | Z12: [kN]
D13: ="GA "&D12 -> GA Z0k50g | F13: GAef | G13: 2486.2185 | H13: 2486.2185 | I13: 2486.2185 | J13: 2486.2185 | Z13: [kN]
F14: Iz | G14: 93.2 | H14: 124.9 | I14: 156.6 | J14: 188.3 | Z14: [103*cm4]
D15: ="M "&D12 -> M Z0k50g | F15: MR,k,z | G15: 47.47 | H15: 63.6 | I15: 79.73 | J15: 95.86 | Z15: [kNm]
A16: Akustik | B16: Q | C16: klassik | D16: Z0k0 | F16: VR,k,y | G16: 14.58 | H16: 21.52 | I16: 21.52 | J16: 21.52 | Z16: [kN]
D17: ="GA "&D16 -> GA Z0k0 | F17: GAef | G17: 4972.437 | H17: 4972.437 | I17: 4972.437 | J17: 4972.437 | Z17: [kN]
F18: Iz | G18: 93.2 | H18: 124.9 | I18: 156.6 | J18: 188.3 | Z18: [103*cm4]
D19: ="M "&D16 -> M Z0k0 | F19: MR,k,z | G19: 47.47 | H19: 63.6 | I19: 79.73 | J19: 95.86 | Z19: [kNm]
A21: Akustik Q3
A22: Elementhöhe | G22: 90 | H22: 110 | I22: 130 | J22: 150 | K22: 170 | L22: 190 | M22: 210 | N22: 230 | O22: 250 | P22: 270 | Q22: 290 | R22: 310 | S22: 330 | T22: 350 | U22: 370 | V22: 390 | W22: 410 | X22: 430 | Y22: 450 | Z22: [mm]
A23: Akustik | B23: Q3 | C23: klassik | D23: Z0k50l | F23: VR,k,xy | I23: 35.57 | J23: 35.57 | K23: 35.57 | L23: 35.57 | M23: 35.57 | N23: 35.57 | O23: 35.57 | P23: 35.57 | Q23: 35.57 | R23: 7.87 | S23: 7.87 | T23: 7.87 | U23: 7.87 | V23: 7.87 | W23: 7.87 | X23: 7.87 | Y23: 7.87 | Z23: [kN]
D24: ="GA "&D23 -> GA Z0k50l | F24: GAef | I24: 3098 | J24: 3098 | K24: 3098 | L24: 3098 | M24: 3098 | N24: 3098 | O24: 3098 | P24: 3098 | Q24: 3098 | R24: 3098 | S24: 3098 | T24: 3098 | U24: 3098 | V24: 3098 | W24: 3098 | X24: 3098 | Y24: 3098 | Z24: [kN]
F25: Iz | I25: 112.2 | J25: 131.2 | K25: 150.1 | L25: 169.1 | M25: 188.1 | N25: 207.1 | O25: 226 | P25: 245 | Q25: 264 | R25: 348.5 | S25: 367.4 | T25: 386.4 | U25: 418.1 | V25: 449.8 | W25: 481.5 | X25: 513.15 | Y25: 544.8 | Z25: [103*cm4]
D26: ="M "&D23 -> M Z0k50l | F26: MR,k,z | I26: 57.13 | J26: 66.78 | K26: 76.44 | L26: 86.09 | M26: 95.75 | N26: 105.41 | O26: 115.06 | P26: 124.72 | Q26: 134.38 | R26: 177.41 | S26: 187.06 | T26: 196.72 | U26: 212.85 | V26: 228.98 | W26: 245.11 | X26: 261.24 | Y26: 277.37 | Z26: [kNm]
A27: Akustik | B27: Q3 | C27: klassik | D27: Z0k50g | F27: VR,k,y | I27: 35.57 | J27: 35.57 | K27: 35.57 | L27: 35.57 | M27: 35.57 | N27: 35.57 | O27: 35.57 | P27: 35.57 | Q27: 35.57 | R27: 7.87 | S27: 7.87 | T27: 7.87 | U27: 7.87 | V27: 7.87 | W27: 7.87 | X27: 7.87 | Y27: 7.87 | Z27: [kN]
D28: ="GA "&D27 -> GA Z0k50g | F28: GAef | I28: 3098 | J28: 3098 | K28: 3098 | L28: 3098 | M28: 3098 | N28: 3098 | O28: 3098 | P28: 3098 | Q28: 3098 | R28: 3098 | S28: 3098 | T28: 3098 | U28: 3098 | V28: 3098 | W28: 3098 | X28: 3098 | Y28: 3098 | Z28: [kN]
F29: Iz | I29: 112.2 | J29: 131.2 | K29: 150.1 | L29: 169.1 | M29: 188.1 | N29: 207.1 | O29: 226 | P29: 245 | Q29: 264 | R29: 348.5 | S29: 367.4 | T29: 386.4 | U29: 418.1 | V29: 449.8 | W29: 481.5 | X29: 513.15 | Y29: 544.8 | Z29: [103*cm4]
D30: ="M "&D27 -> M Z0k50g | F30: MR,k,z | I30: 57.13 | J30: 66.78 | K30: 76.44 | L30: 86.09 | M30: 95.75 | N30: 105.41 | O30: 115.06 | P30: 124.72 | Q30: 134.38 | R30: 177.41 | S30: 187.06 | T30: 196.72 | U30: 212.85 | V30: 228.98 | W30: 245.11 | X30: 261.24 | Y30: 277.37 | Z30: [kNm]
A31: Akustik | B31: Q3 | C31: klassik | D31: Z0k0 | F31: VR,k,y | I31: 35.57 | J31: 35.57 | K31: 35.57 | L31: 35.57 | M31: 35.57 | N31: 35.57 | O31: 35.57 | P31: 35.57 | Q31: 35.57 | R31: 7.87 | S31: 7.87 | T31: 7.87 | U31: 7.87 | V31: 7.87 | W31: 7.87 | X31: 7.87 | Y31: 7.87 | Z31: [kN]
D32: ="GA "&D31 -> GA Z0k0 | F32: GAef | I32: 5092 | J32: 5092 | K32: 5092 | L32: 5092 | M32: 5092 | N32: 5092 | O32: 5092 | P32: 5092 | Q32: 5092 | R32: 5092 | S32: 5092 | T32: 5092 | U32: 5092 | V32: 5092 | W32: 5092 | X32: 5092 | Y32: 5092 | Z32: [kN]
F33: Iz | I33: 112.2 | J33: 131.2 | K33: 150.1 | L33: 169.1 | M33: 188.1 | N33: 207.1 | O33: 226 | P33: 245 | Q33: 264 | R33: 348.5 | S33: 367.4 | T33: 386.4 | U33: 418.1 | V33: 449.8 | W33: 481.5 | X33: 513.15 | Y33: 544.8 | Z33: [103*cm4]
D34: ="M "&D31 -> M Z0k0 | F34: MR,k,z | I34: 57.13 | J34: 66.78 | K34: 76.44 | L34: 86.09 | M34: 95.75 | N34: 105.41 | O34: 115.06 | P34: 124.72 | Q34: 134.38 | R34: 177.41 | S34: 187.06 | T34: 196.72 | U34: 212.85 | V34: 228.98 | W34: 245.11 | X34: 261.24 | Y34: 277.37 | Z34: [kNm]

Sheet Lösung (hidden)
A1: Mögliche Lösung
A3: 1 | B3: der Quertragfähigkeit
B5: Nehmen Sie mit unsere technischen Abteilung Kontakt auf (Tel : 07755 / 9200-0 )
A7: 2 | B7: der Momenttragfähigkeit beim Lastfall 1
B9: Nehmen Sie mit unsere technischen Abteilung Kontakt auf (Tel : 07755 / 9200-0 )
A11: 3 | B11: der Momenttragfähigkeit beim Lastfall 2
B13: Nehmen Sie mit unsere technischen Abteilung Kontakt auf (Tel : 07755 / 9200-0 )
A15: 4 | B15: der Schubtragfähigkeit der Koppelbrett
B16: Wählen Sie ein Koppelbrett aus Sperrholz, bzw. dreischichtplatte
B17: Nehmen Sie mit unsere technischen Abteilung Kontakt auf (Tel : 07755 / 9200-0 )
A19: 5 | B19: der Klammern im Koppelbrett
B20: Wählen Sie einen kleineren Klammerabstand
A23: 6 | B23: der Verbindungsmittel Scheibe an Randgurt parallel zur Elementspannrichtung
B24: Wählen Sie einen kleineren Verbindungsmittel-Abstand
A27: 7 | B27: der Verbindungsmittel Scheibe an Randgurt quer zur Elementspannrichtung
B28: Wählen Sie mehr Verbindungsmittel pro Element
A31: 8 | B31: der Verformung [Lastfall 1]
B32: Nehmen Sie mit unsere technischen Abteilung Kontakt auf (Tel : 07755 / 9200-0 )
A35: 9 | B35: der Verformung [Lastfall 2]
B36: Zuerst , wählen Sie einen kleineren Verbindungsmittel-abstand. Wenn nicht ok : Wählen Sie ein Koppelbrett aus Sperrholz, bzw. Dreischichtplatte. Wenn nicht ok: Wählen Sie ein anderes Element. Wenn nicht ok: Nehmen Sie mit unserer technischen Abteilung Kontakt auf (Tel : 07755 / 9200-0 )
B40: Wählen Sie ein Koppelbrett aus Sperrholz, bzw. dreischichtplatte
B41: Wählen Sie ein anderes Element
B42: Nehmen Sie imt unsere technischen Abteilung Kontakt auf (Tel : 07755 / 9200-0 )

Sheet Verbindung Schrauben (hidden)
B2: Würth Assy plus
Z3: Rothoblaas
B4: Teilgewinde Senkkopf | J4: Vollgewinde Senkkopf | R4: Würth Assy plus | Z4: Rothoblaas | AE4: Teilgewinde Tellerkopf | AN4: Teilgewinde Senkkopf | AW4: Vollgewinde Zylinderkopf
B5: Typ | C5: d (mm) | D5: länge Lsch (mm) | E5: Gewinde länge (mm) | F5: Kopftdurchemesser dk (mm) | G5: Fließmoment My,k (Nmm) | H5: Zugtragfähigkeit Rt,u,k (N) | J5: Typ | K5: d (mm) | L5: länge Lsch (mm) | M5: Gewinde länge (mm) | N5: Kopftdurchemesser dk (mm) | O5: Fließmoment My,k (Nmm) | P5: Zugtragfähigkeit Rt,u,k (N) | R5: TeilgewindeSenkkopf | S5: TeilgewindeScheibenkopf | T5: VollgewindeSenkkopf | U5: VollgewindeZylinderkopf | Z5: TeilgewindeTellerkopf_R | AA5: TeilgewindeSenkkopf_R | AB5: VollgewindeZylinderkopf_R | AE5: Typ | AF5: d (mm) | AG5: länge Lsch (mm) | AH5: Gewinde länge (mm) | AI5: Kopftdurchemesser dk (mm) | AJ5: Fließmoment My,k (Nmm) | AK5: Zugtragfähigkeit Rt,u,k (N) | AN5: Typ | AO5: d (mm) | AP5: länge Lsch (mm) | AQ5: Gewinde länge (mm) | AR5: Kopftdurchemesser dk (mm) | AS5: Fließmoment My,k (Nmm) | AT5: Zugtragfähigkeit Rt,u,k (N) | AW5: Typ | AX5: d (mm) | AY5: länge Lsch (mm) | AZ5: Gewinde länge (mm) | BA5: Kopftdurchemesser dk (mm) | BB5: Fließmoment My,k (Nmm) | BC5: Zugtragfähigkeit Rt,u,k (N)
B6: 6,0 x 80 | C6: 6 | D6: 80 | E6: 50 | F6: 12 | G6: 10000 | H6: 12500 | J6: 8,0 x 120 | K6: 8 | L6: 120 | M6: 101 | N6: 15 | O6: 23000 | P6: 22000 | R6: 6,0 x 80 | S6: 6,0 x 80 | T6: 8,0 x 120 | U6: 6,0 x 80 | Z6: 6,0 x 60 | AA6: 3,5 x 40 | AB6: 5,3 x 80 | AE6: 6,0 x 60 | AF6: 6 | AG6: 60 | AH6: 40 | AI6: 15.5 | AJ6: 9493.7 | AK6: 11300 | AN6: 3,5 x 40 | AO6: 3.5 | AP6: 40 | AQ6: 18 | AR6: 7 | AS6: 2143 | AT6: 3800 | AW6: 5,3 x 80 | AX6: 5.3 | AY6: 80 | AZ6: 70 | BA6: 8 | BB6: 6876 | BC6: 11000
B7: 6,0 x 100 | C7: 6 | D7: 100 | E7: 60 | F7: 12 | G7: 10000 | H7: 12500 | J7: 8,0 x 140 | K7: 8 | L7: 140 | M7: 121 | N7: 15 | O7: 23000 | P7: 22000 | R7: 6,0 x 100 | S7: 6,0 x 100 | T7: 8,0 x 140 | U7: 6,0 x 100 | Z7: 6,0 x 70 | AA7: 3,5 x 45 | AB7: 5,3 x 100 | AE7: 6,0 x 70 | AF7: 6 | AG7: 70 | AH7: 40 | AI7: 15.5 | AJ7: 9493.7 | AK7: 11300 | AN7: 3,5 x 45 | AO7: 3.5 | AP7: 45 | AQ7: 24 | AR7: 7 | AS7: 2143 | AT7: 3800 | AW7: 5,3 x 100 | AX7: 5.3 | AY7: 100 | AZ7: 90 | BA7: 8 | BB7: 6876 | BC7: 11000
B8: 6,0 x 120 | C8: 6 | D8: 120 | E8: 70 | F8: 12 | G8: 10000 | H8: 12500 | J8: 8,0 x 160 | K8: 8 | L8: 160 | M8: 141 | N8: 15 | O8: 23000 | P8: 22000 | R8: 6,0 x 120 | S8: 6,0 x 120 | T8: 8,0 x 160 | U8: 6,0 x 120 | Z8: 6,0 x 80 | AA8: 3,5 x 50 | AB8: 5,3 x 120 | AE8: 6,0 x 80 | AF8: 6 | AG8: 80 | AH8: 50 | AI8: 15.5 | AJ8: 9493.7 | AK8: 11300 | AN8: 3,5 x 50 | AO8: 3.5 | AP8: 50 | AQ8: 24 | AR8: 7 | AS8: 2143 | AT8: 3800 | AW8: 5,3 x 120 | AX8: 5.3 | AY8: 120 | AZ8: 110 | BA8: 8 | BB8: 6876 | BC8: 11000
B9: 6,0 x 140 | C9: 6 | D9: 140 | E9: 70 | F9: 12 | G9: 10000 | H9: 12500 | J9: 8,0 x 180 | K9: 8 | L9: 180 | M9: 161 | N9: 15 | O9: 23000 | P9: 22000 | R9: 6,0 x 140 | S9: 6,0 x 140 | T9: 8,0 x 180 | U9: 6,0 x 140 | Z9: 6,0 x 90 | AA9: 4,0 x 30 | AB9: 5,6 x 140 | AE9: 6,0 x 90 | AF9: 6 | AG9: 90 | AH9: 50 | AI9: 15.5 | AJ9: 9493.7 | AK9: 11300 | AN9: 4,0 x 30 | AO9: 4 | AP9: 30 | AQ9: 18 | AR9: 8 | AS9: 3033 | AT9: 5000 | AW9: 5,6 x 140 | AX9: 5.6 | AY9: 140 | AZ9: 130 | BA9: 8 | BB9: 7935 | BC9: 12300
B10: 6,0 x 160 | C10: 6 | D10: 160 | E10: 70 | F10: 12 | G10: 10000 | H10: 12500 | J10: 8,0 x 200 | K10: 8 | L10: 200 | M10: 181 | N10: 15 | O10: 23000 | P10: 22000 | R10: 6,0 x 160 | S10: 6,0 x 160 | T10: 8,0 x 200 | U10: 6,0 x 160 | Z10: 6,0 x 100 | AA10: 4,0 x 35 | AB10: 5,6 x 160 | AE10: 6,0 x 100 | AF10: 6 | AG10: 100 | AH10: 60 | AI10: 15.5 | AJ10: 9493.7 | AK10: 11300 | AN10: 4,0 x 35 | AO10: 4 | AP10: 35 | AQ10: 18 | AR10: 8 | AS10: 3033 | AT10: 5000 | AW10: 5,6 x 160 | AX10: 5.6 | AY10: 160 | AZ10: 150 | BA10: 8 | BB10: 7935 | BC10: 12300
B11: 6,0 x 180 | C11: 6 | D11: 180 | E11: 70 | F11: 12 | G11: 10000 | H11: 12500 | J11: 8,0 x 220 | K11: 8 | L11: 220 | M11: 201 | N11: 15 | O11: 23000 | P11: 22000 | R11: 6,0 x 180 | S11: 6,0 x 180 | T11: 8,0 x 220 | U11: 6,0 x 180 | Z11: 6,0 x 120 | AA11: 4,0 x 40 | AB11: 7,0 x 80 | AE11: 6,0 x 120 | AF11: 6 | AG11: 120 | AH11: 75 | AI11: 15.5 | AJ11: 9493.7 | AK11: 11300 | AN11: 4,0 x 40 | AO11: 4 | AP11: 40 | AQ11: 24 | AR11: 8 | AS11: 3033 | AT11: 5000 | AW11: 7,0 x 80 | AX11: 7 | AY11: 80 | AZ11: 70 | BA11: 9.5 | BB11: 14174 | BC11: 15400
B12: 6,0 x 200 | C12: 6 | D12: 200 | E12: 70 | F12: 12 | G12: 10000 | H12: 12500 | J12: 8,0 x 240 | K12: 8 | L12: 240 | M12: 221 | N12: 15 | O12: 23000 | P12: 22000 | R12: 6,0 x 200 | S12: 6,0 x 200 | T12: 8,0 x 240 | U12: 6,0 x 200 | Z12: 6,0 x 140 | AA12: 4,0 x 45 | AB12: 7,0 x 100 | AE12: 6,0 x 140 | AF12: 6 | AG12: 140 | AH12: 75 | AI12: 15.5 | AJ12: 9493.7 | AK12: 11300 | AN12: 4,0 x 45 | AO12: 4 | AP12: 45 | AQ12: 30 | AR12: 8 | AS12: 3033 | AT12: 5000 | AW12: 7,0 x 100 | AX12: 7 | AY12: 100 | AZ12: 90 | BA12: 9.5 | BB12: 14174 | BC12: 15400
B13: 6,0 x 220 | C13: 6 | D13: 220 | E13: 70 | F13: 12 | G13: 10000 | H13: 12500 | J13: 8,0 x 260 | K13: 8 | L13: 260 | M13: 241 | N13: 15 | O13: 23000 | P13: 22000 | R13: 6,0 x 220 | S13: 6,0 x 220 | T13: 8,0 x 260 | U13: 6,0 x 220 | Z13: 6,0 x 160 | AA13: 4,0 x 50 | AB13: 7,0 x 120 | AE13: 6,0 x 160 | AF13: 6 | AG13: 160 | AH13: 75 | AI13: 15.5 | AJ13: 9493.7 | AK13: 11300 | AN13: 4,0 x 50 | AO13: 4 | AP13: 50 | AQ13: 30 | AR13: 8 | AS13: 3033 | AT13: 5000 | AW13: 7,0 x 120 | AX13: 7 | AY13: 120 | AZ13: 110 | BA13: 9.5 | BB13: 14174 | BC13: 15400
B14: 6,0 x 240 | C14: 6 | D14: 240 | E14: 70 | F14: 12 | G14: 10000 | H14: 12500 | J14: 8,0 x 280 | K14: 8 | L14: 280 | M14: 261 | N14: 15 | O14: 23000 | P14: 22000 | R14: 6,0 x 240 | S14: 6,0 x 240 | T14: 8,0 x 280 | U14: 6,0 x 240 | Z14: 6,0 x 180 | AA14: 4,0 x 60 | AB14: 7,0 x 140 | AE14: 6,0 x 180 | AF14: 6 | AG14: 180 | AH14: 75 | AI14: 15.5 | AJ14: 9493.7 | AK14: 11300 | AN14: 4,0 x 60 | AO14: 4 | AP14: 60 | AQ14: 35 | AR14: 8 | AS14: 3033 | AT14: 5000 | AW14: 7,0 x 140 | AX14: 7 | AY14: 140 | AZ14: 130 | BA14: 9.5 | BB14: 14174 | BC14: 15400
B15: 6,0 x 260 | C15: 6 | D15: 260 | E15: 70 | F15: 12 | G15: 10000 | H15: 12500 | J15: 8,0 x 300 | K15: 8 | L15: 300 | M15: 275 | N15: 15 | O15: 23000 | P15: 22000 | R15: 6,0 x 260 | S15: 6,0 x 260 | T15: 8,0 x 300 | U15: 6,0 x 260 | Z15: 6,0 x 200 | AA15: 4,0 x 70 | AB15: 7,0 x 160 | AE15: 6,0 x 200 | AF15: 6 | AG15: 200 | AH15: 75 | AI15: 15.5 | AJ15: 9493.7 | AK15: 11300 | AN15: 4,0 x 70 | AO15: 4 | AP15: 70 | AQ15: 40 | AR15: 8 | AS15: 3033 | AT15: 5000 | AW15: 7,0 x 160 | AX15: 7 | AY15: 160 | AZ15: 150 | BA15: 9.5 | BB15: 14174 | BC15: 15400
B16: 6,0 x 280 | C16: 6 | D16: 280 | E16: 70 | F16: 12 | G16: 10000 | H16: 12500 | J16: 8,0 x 330 | K16: 8 | L16: 330 | M16: 305 | N16: 15 | O16: 23000 | P16: 22000 | R16: 6,0 x 280 | S16: 6,0 x 280 | T16: 8,0 x 330 | U16: 8,0 x 120 | Z16: 6,0 x 220 | AA16: 4,0 x 80 | AB16: 7,0 x 180 | AE16: 6,0 x 220 | AF16: 6 | AG16: 220 | AH16: 100 | AI16: 15.5 | AJ16: 9493.7 | AK16: 11300 | AN16: 4,0 x 80 | AO16: 4 | AP16: 80 | AQ16: 40 | AR16: 8 | AS16: 3033 | AT16: 5000 | AW16: 7,0 x 180 | AX16: 7 | AY16: 180 | AZ16: 170 | BA16: 9.5 | BB16: 14174 | BC16: 15400
B17: 6,0 x 300 | C17: 6 | D17: 300 | E17: 70 | F17: 12 | G17: 10000 | H17: 12500 | J17: 8,0 x 340 | K17: 8 | L17: 340 | M17: 315 | N17: 15 | O17: 23000 | P17: 22000 | R17: 6,0 x 300 | S17: 6,0 x 300 | T17: 8,0 x 340 | U17: 8,0 x 140 | Z17: 6,0 x 240 | AA17: 4,5 x 40 | AB17: 7,0 x 200 | AE17: 6,0 x 240 | AF17: 6 | AG17: 240 | AH17: 100 | AI17: 15.5 | AJ17: 9493.7 | AK17: 11300 | AN17: 4,5 x 40 | AO17: 4.5 | AP17: 40 | AQ17: 24 | AR17: 9 | AS17: 4119 | AT17: 6400 | AW17: 7,0 x 200 | AX17: 7 | AY17: 200 | AZ17: 190 | BA17: 9.5 | BB17: 14174 | BC17: 15400
B18: 8,0 x 100 | C18: 8 | D18: 100 | E18: 60 | F18: 15 | G18: 23000 | H18: 21500 | J18: 8,0 x 360 | K18: 8 | L18: 360 | M18: 335 | N18: 15 | O18: 23000 | P18: 22000 | R18: 8,0 x 100 | S18: 8,0 x 100 | T18: 8,0 x 360 | U18: 8,0 x 160 | Z18: 6,0 x 260 | AA18: 4,5 x 45 | AB18: 7,0 x 220 | AE18: 6,0 x 260 | AF18: 6 | AG18: 260 | AH18: 100 | AI18: 15.5 | AJ18: 9493.7 | AK18: 11300 | AN18: 4,5 x 45 | AO18: 4.5 | AP18: 45 | AQ18: 30 | AR18: 9 | AS18: 4119 | AT18: 6400 | AW18: 7,0 x 220 | AX18: 7 | AY18: 220 | AZ18: 210 | BA18: 9.5 | BB18: 14174 | BC18: 15400
B19: 8,0 x 120 | C19: 8 | D19: 120 | E19: 80 | F19: 15 | G19: 23000 | H19: 21500 | J19: 8,0 x 380 | K19: 8 | L19: 380 | M19: 355 | N19: 15 | O19: 23000 | P19: 22000 | R19: 8,0 x 120 | S19: 8,0 x 120 | T19: 8,0 x 380 | U19: 8,0 x 180 | Z19: 6,0 x 280 | AA19: 4,5 x 50 | AB19: 7,0 x 240 | AE19: 6,0 x 280 | AF19: 6 | AG19: 280 | AH19: 100 | AI19: 15.5 | AJ19: 9493.7 | AK19: 11300 | AN19: 4,5 x 50 | AO19: 4.5 | AP19: 50 | AQ19: 30 | AR19: 9 | AS19: 4119 | AT19: 6400 | AW19: 7,0 x 240 | AX19: 7 | AY19: 240 | AZ19: 230 | BA19: 9.5 | BB19: 14174 | BC19: 15400
B20: 8,0 x 140 | C20: 8 | D20: 140 | E20: 80 | F20: 15 | G20: 23000 | H20: 21500 | J20: 8,0 x 400 | K20: 8 | L20: 400 | M20: 375 | N20: 15 | O20: 23000 | P20: 22000 | R20: 8,0 x 140 | S20: 8,0 x 140 | T20: 8,0 x 400 | U20: 8,0 x 200 | Z20: 6,0 x 300 | AA20: 4,5 x 60 | AB20: 7,0 x 260 | AE20: 6,0 x 300 | AF20: 6 | AG20: 300 | AH20: 100 | AI20: 15.5 | AJ20: 9493.7 | AK20: 11300 | AN20: 4,5 x 60 | AO20: 4.5 | AP20: 60 | AQ20: 35 | AR20: 9 | AS20: 4119 | AT20: 6400 | AW20: 7,0 x 260 | AX20: 7 | AY20: 260 | AZ20: 250 | BA20: 9.5 | BB20: 14174 | BC20: 15400
B21: 8,0 x 160 | C21: 8 | D21: 160 | E21: 80 | F21: 15 | G21: 23000 | H21: 21500 | J21: 8,0 x 430 | K21: 8 | L21: 430 | M21: 405 | N21: 15 | O21: 23000 | P21: 22000 | R21: 8,0 x 160 | S21: 8,0 x 160 | T21: 8,0 x 430 | U21: 8,0 x 220 | Z21: 8,0 x 40 | AA21: 4,5 x 70 | AB21: 7,0 x 280 | AE21: 8,0 x 40 | AF21: 8 | AG21: 40 | AH21: 32 | AI21: 19 | AJ21: 20057.5 | AK21: 20100 | AN21: 4,5 x 70 | AO21: 4.5 | AP21: 70 | AQ21: 40 | AR21: 9 | AS21: 4119 | AT21: 6400 | AW21: 7,0 x 280 | AX21: 7 | AY21: 280 | AZ21: 270 | BA21: 9.5 | BB21: 14174 | BC21: 15400
B22: 8,0 x 180 | C22: 8 | D22: 180 | E22: 80 | F22: 15 | G22: 23000 | H22: 21500 | J22: 8,0 x 450 | K22: 8 | L22: 450 | M22: 425 | N22: 15 | O22: 23000 | P22: 22000 | R22: 8,0 x 180 | S22: 8,0 x 180 | T22: 8,0 x 450 | U22: 8,0 x 240 | Z22: 8,0 x 60 | AA22: 4,5 x 80 | AB22: 7,0 x 300 | AE22: 8,0 x 60 | AF22: 8 | AG22: 60 | AH22: 52 | AI22: 19 | AJ22: 20057.5 | AK22: 20100 | AN22: 4,5 x 80 | AO22: 4.5 | AP22: 80 | AQ22: 40 | AR22: 9 | AS22: 4119 | AT22: 6400 | AW22: 7,0 x 300 | AX22: 7 | AY22: 300 | AZ22: 290 | BA22: 9.5 | BB22: 14174 | BC22: 15400
B23: 8,0 x 200 | C23: 8 | D23: 200 | E23: 80 | F23: 15 | G23: 23000 | H23: 21500 | J23: 8,0 x 480 | K23: 8 | L23: 480 | M23: 445 | N23: 15 | O23: 23000 | P23: 22000 | R23: 8,0 x 200 | S23: 8,0 x 200 | T23: 8,0 x 480 | U23: 8,0 x 260 | Z23: 8,0 x 80 | AA23: 5,0 x 40 | AB23: 7,0 x 340 | AE23: 8,0 x 80 | AF23: 8 | AG23: 80 | AH23: 52 | AI23: 19 | AJ23: 20057.5 | AK23: 20100 | AN23: 5,0 x 40 | AO23: 5 | AP23: 40 | AQ23: 24 | AR23: 10 | AS23: 5417 | AT23: 7900 | AW23: 7,0 x 340 | AX23: 7 | AY23: 340 | AZ23: 330 | BA23: 9.5 | BB23: 14174 | BC23: 15400
B24: 8,0 x 220 | C24: 8 | D24: 220 | E24: 100 | F24: 15 | G24: 23000 | H24: 21500 | J24: 8,0 x 530 | K24: 8 | L24: 530 | M24: 495 | N24: 15 | O24: 23000 | P24: 22000 | R24: 8,0 x 220 | S24: 8,0 x 220 | T24: 8,0 x 530 | U24: 8,0 x 280 | Z24: 8,0 x 100 | AA24: 5,0 x 45 | AB24: 7,0 x 380 | AE24: 8,0 x 100 | AF24: 8 | AG24: 100 | AH24: 80 | AI24: 19 | AJ24: 20057.5 | AK24: 20100 | AN24: 5,0 x 45 | AO24: 5 | AP24: 45 | AQ24: 24 | AR24: 10 | AS24: 5417 | AT24: 7900 | AW24: 7,0 x 380 | AX24: 7 | AY24: 380 | AZ24: 370 | BA24: 9.5 | BB24: 14174 | BC24: 15400
B25: 8,0 x 240 | C25: 8 | D25: 240 | E25: 100 | F25: 15 | G25: 23000 | H25: 21500 | J25: 8,0 x 580 | K25: 8 | L25: 580 | M25: 545 | N25: 15 | O25: 23000 | P25: 22000 | R25: 8,0 x 240 | S25: 8,0 x 240 | T25: 8,0 x 580 | U25: 8,0 x 300 | Z25: 8,0 x 120 | AA25: 5,0 x 50 | AB25: 9,0 x 160 | AE25: 8,0 x 120 | AF25: 8 | AG25: 120 | AH25: 80 | AI25: 19 | AJ25: 20057.5 | AK25: 20100 | AN25: 5,0 x 50 | AO25: 5 | AP25: 50 | AQ25: 24 | AR25: 10 | AS25: 5417 | AT25: 7900 | AW25: 9,0 x 160 | AX25: 9 | AY25: 160 | AZ25: 150 | BA25: 11.5 | BB25: 27244 | BC25: 25400
B26: 8,0 x 260 | C26: 8 | D26: 260 | E26: 100 | F26: 15 | G26: 23000 | H26: 21500 | J26: 10.0 x 100 | K26: 10 | L26: 100 | M26: 77 | N26: 20 | O26: 36000 | P26: 33000 | R26: 8,0 x 260 | S26: 8,0 x 260 | T26: 10.0 x 100 | U26: 8,0 x 320 | Z26: 8,0 x 140 | AA26: 5,0 x 60 | AB26: 9,0 x 180 | AE26: 8,0 x 140 | AF26: 8 | AG26: 140 | AH26: 80 | AI26: 19 | AJ26: 20057.5 | AK26: 20100 | AN26: 5,0 x 60 | AO26: 5 | AP26: 60 | AQ26: 30 | AR26: 10 | AS26: 5417 | AT26: 7900 | AW26: 9,0 x 180 | AX26: 9 | AY26: 180 | AZ26: 170 | BA26: 11.5 | BB26: 27244 | BC26: 25400
B27: 8,0 x 280 | C27: 8 | D27: 280 | E27: 100 | F27: 15 | G27: 23000 | H27: 21500 | J27: 10.0 x 120 | K27: 10 | L27: 120 | M27: 97 | N27: 20 | O27: 36000 | P27: 33000 | R27: 8,0 x 280 | S27: 8,0 x 280 | T27: 10.0 x 120 | U27: 8,0 x 330 | Z27: 8,0 x 160 | AA27: 5,0 x 70 | AB27: 9,0 x 200 | AE27: 8,0 x 160 | AF27: 8 | AG27: 160 | AH27: 100 | AI27: 19 | AJ27: 20057.5 | AK27: 20100 | AN27: 5,0 x 70 | AO27: 5 | AP27: 70 | AQ27: 35 | AR27: 10 | AS27: 5417 | AT27: 7900 | AW27: 9,0 x 200 | AX27: 9 | AY27: 200 | AZ27: 190 | BA27: 11.5 | BB27: 27244 | BC27: 25400
B28: 8,0 x 300 | C28: 8 | D28: 300 | E28: 100 | F28: 15 | G28: 23000 | H28: 21500 | J28: 10.0 x 140 | K28: 10 | L28: 140 | M28: 117 | N28: 20 | O28: 36000 | P28: 33000 | R28: 8,0 x 300 | S28: 8,0 x 300 | T28: 10.0 x 140 | U28: 8,0 x 340 | Z28: 8,0 x 180 | AA28: 5,0 x 80 | AB28: 9,0 x 220 | AE28: 8,0 x 180 | AF28: 8 | AG28: 180 | AH28: 100 | AI28: 19 | AJ28: 20057.5 | AK28: 20100 | AN28: 5,0 x 80 | AO28: 5 | AP28: 80 | AQ28: 40 | AR28: 10 | AS28: 5417 | AT28: 7900 | AW28: 9,0 x 220 | AX28: 9 | AY28: 220 | AZ28: 210 | BA28: 11.5 | BB28: 27244 | BC28: 25400
B29: 8,0 x 320 | C29: 8 | D29: 320 | E29: 100 | F29: 15 | G29: 23000 | H29: 21500 | J29: 10.0 x 160 | K29: 10 | L29: 160 | M29: 137 | N29: 20 | O29: 36000 | P29: 33000 | R29: 8,0 x 320 | S29: 8,0 x 320 | T29: 10.0 x 160 | U29: 8,0 x 360 | Z29: 8,0 x 200 | AA29: 5,0 x 90 | AB29: 9,0 x 240 | AE29: 8,0 x 200 | AF29: 8 | AG29: 200 | AH29: 100 | AI29: 19 | AJ29: 20057.5 | AK29: 20100 | AN29: 5,0 x 90 | AO29: 5 | AP29: 90 | AQ29: 45 | AR29: 10 | AS29: 5417 | AT29: 7900 | AW29: 9,0 x 240 | AX29: 9 | AY29: 240 | AZ29: 230 | BA29: 11.5 | BB29: 27244 | BC29: 25400
B30: 8,0 x 330 | C30: 8 | D30: 330 | E30: 100 | F30: 15 | G30: 23000 | H30: 21500 | J30: 10.0 x 180 | K30: 10 | L30: 180 | M30: 157 | N30: 20 | O30: 36000 | P30: 33000 | R30: 8,0 x 330 | S30: 8,0 x 330 | T30: 10.0 x 180 | U30: 8,0 x 380 | Z30: 8,0 x 220 | AA30: 5,0 x 100 | AB30: 9,0 x 260 | AE30: 8,0 x 220 | AF30: 8 | AG30: 220 | AH30: 100 | AI30: 19 | AJ30: 20057.5 | AK30: 20100 | AN30: 5,0 x 100 | AO30: 5 | AP30: 100 | AQ30: 50 | AR30: 10 | AS30: 5417 | AT30: 7900 | AW30: 9,0 x 260 | AX30: 9 | AY30: 260 | AZ30: 250 | BA30: 11.5 | BB30: 27244 | BC30: 25400
B31: 8,0 x 340 | C31: 8 | D31: 340 | E31: 100 | F31: 15 | G31: 23000 | H31: 21500 | J31: 10.0 x 200 | K31: 10 | L31: 200 | M31: 177 | N31: 20 | O31: 36000 | P31: 33000 | R31: 8,0 x 340 | S31: 8,0 x 340 | T31: 10.0 x 200 | U31: 8,0 x 400 | Z31: 8,0 x 240 | AA31: 5,0 x 120 | AB31: 9,0 x 280 | AE31: 8,0 x 240 | AF31: 8 | AG31: 240 | AH31: 100 | AI31: 19 | AJ31: 20057.5 | AK31: 20100 | AN31: 5,0 x 120 | AO31: 5 | AP31: 120 | AQ31: 60 | AR31: 10 | AS31: 5417 | AT31: 7900 | AW31: 9,0 x 280 | AX31: 9 | AY31: 280 | AZ31: 270 | BA31: 11.5 | BB31: 27244 | BC31: 25400
B32: 8,0 x 360 | C32: 8 | D32: 360 | E32: 100 | F32: 15 | G32: 23000 | H32: 21500 | J32: 10.0 x 220 | K32: 10 | L32: 220 | M32: 197 | N32: 20 | O32: 36000 | P32: 33000 | R32: 8,0 x 360 | S32: 8,0 x 360 | T32: 10.0 x 220 | U32: 8,0 x 430 | Z32: 8,0 x 260 | AA32: 6,0 x 40 | AB32: 9,0 x 300 | AE32: 8,0 x 260 | AF32: 8 | AG32: 260 | AH32: 100 | AI32: 19 | AJ32: 20057.5 | AK32: 20100 | AN32: 6,0 x 40 | AO32: 6 | AP32: 40 | AQ32: 35 | AR32: 12 | AS32: 9494 | AT32: 11300 | AW32: 9,0 x 300 | AX32: 9 | AY32: 300 | AZ32: 290 | BA32: 11.5 | BB32: 27244 | BC32: 25400
B33: 8,0 x 380 | C33: 8 | D33: 380 | E33: 100 | F33: 15 | G33: 23000 | H33: 21500 | J33: 10.0 x 240 | K33: 10 | L33: 240 | M33: 217 | N33: 20 | O33: 36000 | P33: 33000 | R33: 8,0 x 380 | S33: 8,0 x 380 | T33: 10.0 x 240 | U33: 8,0 x 450 | Z33: 8,0 x 280 | AA33: 6,0 x 50 | AB33: 9,0 x 320 | AE33: 8,0 x 280 | AF33: 8 | AG33: 280 | AH33: 100 | AI33: 19 | AJ33: 20057.5 | AK33: 20100 | AN33: 6,0 x 50 | AO33: 6 | AP33: 50 | AQ33: 35 | AR33: 12 | AS33: 9494 | AT33: 11300 | AW33: 9,0 x 320 | AX33: 9 | AY33: 320 | AZ33: 310 | BA33: 11.5 | BB33: 27244 | BC33: 25400
B34: 8,0 x 400 | C34: 8 | D34: 400 | E34: 100 | F34: 15 | G34: 23000 | H34: 21500 | J34: 10.0 x 260 | K34: 10 | L34: 260 | M34: 237 | N34: 20 | O34: 36000 | P34: 33000 | R34: 8,0 x 400 | S34: 8,0 x 400 | T34: 10.0 x 260 | U34: 8,0 x 480 | Z34: 8,0 x 300 | AA34: 6,0 x 60 | AB34: 9,0 x 340 | AE34: 8,0 x 300 | AF34: 8 | AG34: 300 | AH34: 100 | AI34: 19 | AJ34: 20057.5 | AK34: 20100 | AN34: 6,0 x 60 | AO34: 6 | AP34: 60 | AQ34: 30 | AR34: 12 | AS34: 9494 | AT34: 11300 | AW34: 9,0 x 340 | AX34: 9 | AY34: 340 | AZ34: 330 | BA34: 11.5 | BB34: 27244 | BC34: 25400
B35: 10.0 x 100 | C35: 10 | D35: 100 | E35: 60 | F35: 18.5 | G35: 36000 | H35: 26000 | J35: 10.0 x 280 | K35: 10 | L35: 280 | M35: 257 | N35: 20 | O35: 36000 | P35: 33000 | R35: 10.0 x 100 | S35: 8,0 x 420 | T35: 10.0 x 280 | U35: 8,0 x 530 | Z35: 8,0 x 320 | AA35: 6,0 x 70 | AB35: 9,0 x 360 | AE35: 8,0 x 320 | AF35: 8 | AG35: 320 | AH35: 100 | AI35: 19 | AJ35: 20057.5 | AK35: 20100 | AN35: 6,0 x 70 | AO35: 6 | AP35: 70 | AQ35: 40 | AR35: 12 | AS35: 9494 | AT35: 11300 | AW35: 9,0 x 360 | AX35: 9 | AY35: 360 | AZ35: 350 | BA35: 11.5 | BB35: 27244 | BC35: 25400
B36: 10.0 x 120 | C36: 10 | D36: 120 | E36: 80 | F36: 18.5 | G36: 36000 | H36: 26000 | J36: 10.0 x 300 | K36: 10 | L36: 300 | M36: 272 | N36: 20 | O36: 36000 | P36: 33000 | R36: 10.0 x 120 | S36: 8,0 x 440 | T36: 10.0 x 300 | U36: 8,0 x 580 | Z36: 8,0 x 340 | AA36: 6,0 x 80 | AB36: 9,0 x 380 | AE36: 8,0 x 340 | AF36: 8 | AG36: 340 | AH36: 100 | AI36: 19 | AJ36: 20057.5 | AK36: 20100 | AN36: 6,0 x 80 | AO36: 6 | AP36: 80 | AQ36: 40 | AR36: 12 | AS36: 9494 | AT36: 11300 | AW36: 9,0 x 380 | AX36: 9 | AY36: 380 | AZ36: 370 | BA36: 11.5 | BB36: 27244 | BC36: 25400
B37: 10.0 x 140 | C37: 10 | D37: 140 | E37: 80 | F37: 18.5 | G37: 36000 | H37: 26000 | J37: 10.0 x 320 | K37: 10 | L37: 320 | M37: 292 | N37: 20 | O37: 36000 | P37: 33000 | R37: 10.0 x 140 | S37: 8,0 x 460 | T37: 10.0 x 320 | U37: 10,0 x 120 | Z37: 8,0 x 360 | AA37: 6,0 x 90 | AB37: 9,0 x 400 | AE37: 8,0 x 360 | AF37: 8 | AG37: 360 | AH37: 100 | AI37: 19 | AJ37: 20057.5 | AK37: 20100 | AN37: 6,0 x 90 | AO37: 6 | AP37: 90 | AQ37: 50 | AR37: 12 | AS37: 9494 | AT37: 11300 | AW37: 9,0 x 400 | AX37: 9 | AY37: 400 | AZ37: 390 | BA37: 11.5 | BB37: 27244 | BC37: 25400
B38: 10.0 x 160 | C38: 10 | D38: 160 | E38: 100 | F38: 18.5 | G38: 36000 | H38: 26000 | J38: 10.0 x 340 | K38: 10 | L38: 340 | M38: 312 | N38: 20 | O38: 36000 | P38: 33000 | R38: 10.0 x 160 | S38: 8,0 x 480 | T38: 10.0 x 340 | U38: 10,0 x140 | Z38: 8,0 x 380 | AA38: 6,0 x 100 | AB38: 9,0 x 440 | AE38: 8,0 x 380 | AF38: 8 | AG38: 380 | AH38: 100 | AI38: 19 | AJ38: 20057.5 | AK38: 20100 | AN38: 6,0 x 100 | AO38: 6 | AP38: 100 | AQ38: 50 | AR38: 12 | AS38: 9494 | AT38: 11300 | AW38: 9,0 x 440 | AX38: 9 | AY38: 440 | AZ38: 430 | BA38: 11.5 | BB38: 27244 | BC38: 25400
B39: 10.0 x 180 | C39: 10 | D39: 180 | E39: 100 | F39: 18.5 | G39: 36000 | H39: 26000 | J39: 10.0 x 360 | K39: 10 | L39: 360 | M39: 332 | N39: 20 | O39: 36000 | P39: 33000 | R39: 10.0 x 180 | S39: 8,0 x 500 | T39: 10.0 x 360 | U39: 10,0 x 160 | Z39: 8,0 x 400 | AA39: 6,0 x 110 | AB39: 9,0 x 480 | AE39: 8,0 x 400 | AF39: 8 | AG39: 400 | AH39: 100 | AI39: 19 | AJ39: 20057.5 | AK39: 20100 | AN39: 6,0 x 110 | AO39: 6 | AP39: 110 | AQ39: 60 | AR39: 12 | AS39: 9494 | AT39: 11300 | AW39: 9,0 x 480 | AX39: 9 | AY39: 480 | AZ39: 470 | BA39: 11.5 | BB39: 27244 | BC39: 25400
B40: 10.0 x 200 | C40: 10 | D40: 200 | E40: 100 | F40: 18.5 | G40: 36000 | H40: 26000 | J40: 10.0 x 380 | K40: 10 | L40: 380 | M40: 352 | N40: 20 | O40: 36000 | P40: 33000 | R40: 10.0 x 200 | S40: 8,0 x 520 | T40: 10.0 x 380 | U40: 10,0 x 180 | Z40: 8,0 x 440 | AA40: 6,0 x 120 | AB40: 9,0 x 520 | AE40: 8,0 x 440 | AF40: 8 | AG40: 440 | AH40: 100 | AI40: 19 | AJ40: 20057.5 | AK40: 20100 | AN40: 6,0 x 120 | AO40: 6 | AP40: 120 | AQ40: 60 | AR40: 12 | AS40: 9494 | AT40: 11300 | AW40: 9,0 x 520 | AX40: 9 | AY40: 520 | AZ40: 510 | BA40: 11.5 | BB40: 27244 | BC40: 25400
B41: 10.0 x 220 | C41: 10 | D41: 220 | E41: 100 | F41: 18.5 | G41: 36000 | H41: 26000 | J41: 10.0 x 400 | K41: 10 | L41: 400 | M41: 372 | N41: 20 | O41: 36000 | P41: 33000 | R41: 10.0 x 220 | S41: 8,0 x 540 | T41: 10.0 x 400 | U41: 10,0 x 200 | Z41: 8,0 x 480 | AA41: 6,0 x 130 | AB41: 11,0 x 250 | AE41: 8,0 x 480 | AF41: 8 | AG41: 480 | AH41: 100 | AI41: 19 | AJ41: 20057.5 | AK41: 20100 | AN41: 6,0 x 130 | AO41: 6 | AP41: 130 | AQ41: 60 | AR41: 12 | AS41: 9494 | AT41: 11300 | AW41: 11,0 x 250 | AX41: 11 | AY41: 250 | AZ41: 240 | BA41: 13.5 | BB41: 45905 | BC41: 38000
B42: 10.0 x 240 | C42: 10 | D42: 240 | E42: 100 | F42: 18.5 | G42: 36000 | H42: 26000 | J42: 10.0 x 430 | K42: 10 | L42: 430 | M42: 402 | N42: 20 | O42: 36000 | P42: 33000 | R42: 10.0 x 240 | S42: 8,0 x 560 | T42: 10.0 x 430 | U42: 10,0 x 220 | Z42: 8,0 x 520 | AA42: 6,0 x 140 | AB42: 11,0 x 300 | AE42: 8,0 x 520 | AF42: 8 | AG42: 520 | AH42: 100 | AI42: 19 | AJ42: 20057.5 | AK42: 20100 | AN42: 6,0 x 140 | AO42: 6 | AP42: 140 | AQ42: 75 | AR42: 12 | AS42: 9494 | AT42: 11300 | AW42: 11,0 x 300 | AX42: 11 | AY42: 300 | AZ42: 290 | BA42: 13.5 | BB42: 45905 | BC42: 38000
B43: 10.0 x 260 | C43: 10 | D43: 260 | E43: 100 | F43: 18.5 | G43: 36000 | H43: 26000 | J43: 10.0 x 450 | K43: 10 | L43: 450 | M43: 415 | N43: 20 | O43: 36000 | P43: 33000 | R43: 10.0 x 260 | S43: 10.0 x 100 | T43: 10.0 x 450 | U43: 10,0 x 240 | Z43: 8,0 x 200 MAX | AA43: 6,0 x 150 | AB43: 11,0 x 350 | AE43: 8,0 x 200 MAX | AF43: 8 | AG43: 200 | AH43: 120 | AI43: 24.5 | AJ43: 20057.5 | AK43: 20100 | AN43: 6,0 x 150 | AO43: 6 | AP43: 150 | AQ43: 75 | AR43: 12 | AS43: 9494 | AT43: 11300 | AW43: 11,0 x 350 | AX43: 11 | AY43: 350 | AZ43: 340 | BA43: 13.5 | BB43: 45905 | BC43: 38000
B44: 10.0 x 280 | C44: 10 | D44: 280 | E44: 100 | F44: 18.5 | G44: 36000 | H44: 26000 | J44: 10.0 x 480 | K44: 10 | L44: 480 | M44: 442 | N44: 20 | O44: 36000 | P44: 33000 | R44: 10.0 x 280 | S44: 10.0 x 120 | T44: 10.0 x 480 | U44: 10,0 x 260 | Z44: 8,0 x 220 MAX | AA44: 6,0 x 160 | AB44: 11,0 x 400 | AE44: 8,0 x 220 MAX | AF44: 8 | AG44: 220 | AH44: 120 | AI44: 24.5 | AJ44: 20057.5 | AK44: 20100 | AN44: 6,0 x 160 | AO44: 6 | AP44: 160 | AQ44: 75 | AR44: 12 | AS44: 9494 | AT44: 11300 | AW44: 11,0 x 400 | AX44: 11 | AY44: 400 | AZ44: 390 | BA44: 13.5 | BB44: 45905 | BC44: 38000
B45: 10.0 x 300 | C45: 10 | D45: 300 | E45: 100 | F45: 18.5 | G45: 36000 | H45: 26000 | J45: 10.0 x 530 | K45: 10 | L45: 530 | M45: 492 | N45: 20 | O45: 36000 | P45: 33000 | R45: 10.0 x 300 | S45: 10.0 x 140 | T45: 10.0 x 530 | U45: 10,0 x 280 | Z45: 8,0 x x240 MAX | AA45: 6,0 x 170 | AB45: 11,0 x 450 | AE45: 8,0 x x240 MAX | AF45: 8 | AG45: 240 | AH45: 120 | AI45: 24.5 | AJ45: 20057.5 | AK45: 20100 | AN45: 6,0 x 180 | AO45: 6 | AP45: 180 | AQ45: 75 | AR45: 12 | AS45: 9494 | AT45: 11300 | AW45: 11,0 x 450 | AX45: 11 | AY45: 450 | AZ45: 440 | BA45: 13.5 | BB45: 45905 | BC45: 38000
B46: 10.0 x 320 | C46: 10 | D46: 320 | E46: 120 | F46: 18.5 | G46: 36000 | H46: 26000 | J46: 10.0 x 580 | K46: 10 | L46: 580 | M46: 542 | N46: 20 | O46: 36000 | P46: 33000 | R46: 10.0 x 320 | S46: 10.0 x 160 | T46: 10.0 x 580 | U46: 10,0 x 300 | Z46: 10,0 x 100 | AA46: 6,0 x 180 | AB46: 11,0 x 500 | AE46: 10,0 x 100 | AF46: 10 | AG46: 100 | AH46: 52 | AI46: 25 | AJ46: 35829.6 | AK46: 31400 | AN46: 6,0 x 200 | AO46: 6 | AP46: 200 | AQ46: 75 | AR46: 12 | AS46: 9494 | AT46: 11300 | AW46: 11,0 x 500 | AX46: 11 | AY46: 500 | AZ46: 490 | BA46: 13.5 | BB46: 45905 | BC46: 38000
B47: 10.0 x 340 | C47: 10 | D47: 340 | E47: 120 | F47: 18.5 | G47: 36000 | H47: 26000 | R47: 10.0 x 340 | S47: 10.0 x 180 | U47: 10,0 x 320 | Z47: 10,0 x 120 | AA47: 6,0 x 200 | AB47: 11,0 x 550 | AE47: 10,0 x 120 | AF47: 10 | AG47: 120 | AH47: 60 | AI47: 25 | AJ47: 35829.6 | AK47: 31400 | AN47: 6,0 x 220 | AO47: 6 | AP47: 220 | AQ47: 75 | AR47: 12 | AS47: 9494 | AT47: 11300 | AW47: 11,0 x 550 | AX47: 11 | AY47: 550 | AZ47: 540 | BA47: 13.5 | BB47: 45905 | BC47: 38000
B48: 10.0 x 360 | C48: 10 | D48: 360 | E48: 120 | F48: 18.5 | G48: 36000 | H48: 26000 | R48: 10.0 x 360 | S48: 10.0 x 200 | U48: 10,0 x 340 | Z48: 10,0 x 140 | AA48: 6,0 x 220 | AB48: 11,0 x 600 | AE48: 10,0 x 140 | AF48: 10 | AG48: 140 | AH48: 60 | AI48: 25 | AJ48: 35829.6 | AK48: 31400 | AN48: 6,0 x 240 | AO48: 6 | AP48: 240 | AQ48: 75 | AR48: 12 | AS48: 9494 | AT48: 11300 | AW48: 11,0 x 600 | AX48: 11 | AY48: 600 | AZ48: 590 | BA48: 13.5 | BB48: 45905 | BC48: 38000
B49: 10.0 x 380 | C49: 10 | D49: 380 | E49: 120 | F49: 18.5 | G49: 36000 | H49: 26000 | R49: 10.0 x 380 | S49: 10.0 x 220 | U49: 10,0 x 360 | Z49: 10,0 x 160 | AA49: 6,0 x 240 | AE49: 10,0 x 160 | AF49: 10 | AG49: 160 | AH49: 80 | AI49: 25 | AJ49: 35829.6 | AK49: 31400 | AN49: 6,0 x 260 | AO49: 6 | AP49: 260 | AQ49: 75 | AR49: 12 | AS49: 9494 | AT49: 11300
B50: 10.0 x 400 | C50: 10 | D50: 400 | E50: 120 | F50: 18.5 | G50: 36000 | H50: 26000 | R50: 10.0 x 400 | S50: 10.0 x 240 | U50: 10,0 x 380 | Z50: 10,0 x 180 | AA50: 6,0 x 260 | AE50: 10,0 x 180 | AF50: 10 | AG50: 180 | AH50: 80 | AI50: 25 | AJ50: 35829.6 | AK50: 31400 | AN50: 6,0 x 280 | AO50: 6 | AP50: 280 | AQ50: 75 | AR50: 12 | AS50: 9494 | AT50: 11300
S51: 10.0 x 260 | U51: 10,0 x 400 | Z51: 10,0 x 200 | AA51: 6,0 x 280 | AE51: 10,0 x 200 | AF51: 10 | AG51: 200 | AH51: 100 | AI51: 25 | AJ51: 35829.6 | AK51: 31400 | AN51: 6,0 x 300 | AO51: 6 | AP51: 300 | AQ51: 75 | AR51: 12 | AS51: 9494 | AT51: 11300
S52: 10.0 x 280 | U52: 10,0 x 430 | Z52: 10,0 x 220 | AA52: 6,0 x 300 | AE52: 10,0 x 220 | AF52: 10 | AG52: 220 | AH52: 100 | AI52: 25 | AJ52: 35829.6 | AK52: 31400 | AN52: 8,0 x 80 | AO52: 8 | AP52: 80 | AQ52: 52 | AR52: 14.5 | AS52: 20057 | AT52: 20100
S53: 10.0 x 300 | U53: 10,0 x 450 | Z53: 10,0 x 240 | AA53: 8,0 x 80 | AE53: 10,0 x 240 | AF53: 10 | AG53: 240 | AH53: 100 | AI53: 25 | AJ53: 35829.6 | AK53: 31400 | AN53: 8,0 x 100 | AO53: 8 | AP53: 100 | AQ53: 52 | AR53: 14.5 | AS53: 20057 | AT53: 20100
S54: 10.0 x 320 | U54: 10,0 x 480 | Z54: 10,0 x 260 | AA54: 8,0 x 100 | AE54: 10,0 x 260 | AF54: 10 | AG54: 260 | AH54: 100 | AI54: 25 | AJ54: 35829.6 | AK54: 31400 | AN54: 8,0 x 120 | AO54: 8 | AP54: 120 | AQ54: 60 | AR54: 14.5 | AS54: 20057 | AT54: 20100
S55: 10.0 x 340 | U55: 10,0 x 530 | Z55: 10,0 x 280 | AA55: 8,0 x 120 | AE55: 10,0 x 280 | AF55: 10 | AG55: 280 | AH55: 100 | AI55: 25 | AJ55: 35829.6 | AK55: 31400 | AN55: 8,0 x 140 | AO55: 8 | AP55: 140 | AQ55: 60 | AR55: 14.5 | AS55: 20057 | AT55: 20100
S56: 10.0 x 360 | U56: 10,0 x 580 | Z56: 10,0 x 300 | AA56: 8,0 x 140 | AE56: 10,0 x 300 | AF56: 10 | AG56: 300 | AH56: 100 | AI56: 25 | AJ56: 35829.6 | AK56: 31400 | AN56: 8,0 x 160 | AO56: 8 | AP56: 160 | AQ56: 80 | AR56: 14.5 | AS56: 20057 | AT56: 20100
S57: 10.0 x 380 | Z57: 10,0 x 320 | AA57: 8,0 x 160 | AE57: 10,0 x 320 | AF57: 10 | AG57: 320 | AH57: 120 | AI57: 25 | AJ57: 35829.6 | AK57: 31400 | AN57: 8,0 x 180 | AO57: 8 | AP57: 180 | AQ57: 80 | AR57: 14.5 | AS57: 20057 | AT57: 20100
S58: 10.0 x 400 | Z58: 10,0 x 340 | AA58: 8,0 x 180 | AE58: 10,0 x 340 | AF58: 10 | AG58: 340 | AH58: 120 | AI58: 25 | AJ58: 35829.6 | AK58: 31400 | AN58: 8,0 x 200 | AO58: 8 | AP58: 200 | AQ58: 80 | AR58: 14.5 | AS58: 20057 | AT58: 20100
B59: Teilgewinde Scheibenkopf | J59: Vollgewinde Zylinderkopf | S59: 10.0 x 420 | Z59: 10,0 x 360 | AA59: 8,0 x 200 | AE59: 10,0 x 360 | AF59: 10 | AG59: 360 | AH59: 120 | AI59: 25 | AJ59: 35829.6 | AK59: 31400 | AN59: 8,0 x 220 | AO59: 8 | AP59: 220 | AQ59: 80 | AR59: 14.5 | AS59: 20057 | AT59: 20100
B60: Typ | C60: d (mm) | D60: länge Lsch (mm) | E60: Gewinde länge (mm) | F60: Kopftdurchemesser dk (mm) | G60: Fließmoment My,k (Nmm) | H60: Zugtragfähigkeit Rt,u,k (N) | J60: Typ | K60: d (mm) | L60: länge Lsch (mm) | M60: Gewinde länge (mm) | N60: Kopftdurchemesser dk (mm) | O60: Fließmoment My,k (Nmm) | P60: Zugtragfähigkeit Rt,u,k (N) | S60: 10.0 x 440 | Z60: 10,0 x 380 | AA60: 8,0 x 220 | AE60: 10,0 x 380 | AF60: 10 | AG60: 380 | AH60: 120 | AI60: 25 | AJ60: 35829.6 | AK60: 31400 | AN60: 8,0 x 240 | AO60: 8 | AP60: 240 | AQ60: 80 | AR60: 14.5 | AS60: 20057 | AT60: 20100
B61: 6,0 x 80 | C61: 6 | D61: 80 | E61: 50 | F61: 14 | G61: 10000 | H61: 12500 | J61: 6,0 x 80 | K61: 6 | L61: 80 | M61: 67 | N61: 8.2 | O61: 10000 | P61: 12500 | S61: 10.0 x 460 | Z61: 10,0 x 400 | AA61: 8,0 x 240 | AE61: 10,0 x 400 | AF61: 10 | AG61: 400 | AH61: 120 | AI61: 25 | AJ61: 35829.6 | AK61: 31400 | AN61: 8,0 x 260 | AO61: 8 | AP61: 260 | AQ61: 80 | AR61: 14.5 | AS61: 20057 | AT61: 20100
B62: 6,0 x 100 | C62: 6 | D62: 100 | E62: 60 | F62: 14 | G62: 10000 | H62: 12500 | J62: 6,0 x 100 | K62: 6 | L62: 100 | M62: 87 | N62: 8.2 | O62: 10000 | P62: 12500 | S62: 10.0 x 480 | Z62: 10,0 x 440 | AA62: 8,0 x 260 | AE62: 10,0 x 440 | AF62: 10 | AG62: 440 | AH62: 120 | AI62: 25 | AJ62: 35829.6 | AK62: 31400 | AN62: 8,0 x 280 | AO62: 8 | AP62: 280 | AQ62: 80 | AR62: 14.5 | AS62: 20057 | AT62: 20100
B63: 6,0 x 120 | C63: 6 | D63: 120 | E63: 70 | F63: 14 | G63: 10000 | H63: 12500 | J63: 6,0 x 120 | K63: 6 | L63: 120 | M63: 107 | N63: 8.2 | O63: 10000 | P63: 12500 | S63: 10.0 x 500 | Z63: 10,0 x 480 | AA63: 8,0 x 280 | AE63: 10,0 x 480 | AF63: 10 | AG63: 480 | AH63: 120 | AI63: 25 | AJ63: 35829.6 | AK63: 31400 | AN63: 8,0 x 300 | AO63: 8 | AP63: 300 | AQ63: 100 | AR63: 14.5 | AS63: 20057 | AT63: 20100
B64: 6,0 x 140 | C64: 6 | D64: 140 | E64: 70 | F64: 14 | G64: 10000 | H64: 12500 | J64: 6,0 x 140 | K64: 6 | L64: 140 | M64: 123 | N64: 8.2 | O64: 10000 | P64: 12500 | S64: 10.0 x 520 | Z64: 10,0 x 520 | AA64: 8,0 x 300 | AE64: 10,0 x 520 | AF64: 10 | AG64: 520 | AH64: 120 | AI64: 25 | AJ64: 35829.6 | AK64: 31400 | AN64: 8,0 x 320 | AO64: 8 | AP64: 320 | AQ64: 100 | AR64: 14.5 | AS64: 20057 | AT64: 20100
B65: 6,0 x 160 | C65: 6 | D65: 160 | E65: 70 | F65: 14 | G65: 10000 | H65: 12500 | J65: 6,0 x 160 | K65: 6 | L65: 160 | M65: 143 | N65: 8.2 | O65: 10000 | P65: 12500 | S65: 10.0 x 540 | AA65: 8,0 x 320 | AN65: 8,0 x 340 | AO65: 8 | AP65: 340 | AQ65: 100 | AR65: 14.5 | AS65: 20057 | AT65: 20100
B66: 6,0 x 180 | C66: 6 | D66: 180 | E66: 70 | F66: 14 | G66: 10000 | H66: 12500 | J66: 6,0 x 180 | K66: 6 | L66: 180 | M66: 163 | N66: 8.2 | O66: 10000 | P66: 12500 | S66: 10.0 x 560 | AA66: 8,0 x 340 | AN66: 8,0 x 360 | AO66: 8 | AP66: 360 | AQ66: 100 | AR66: 14.5 | AS66: 20057 | AT66: 20100
B67: 6,0 x 200 | C67: 6 | D67: 200 | E67: 70 | F67: 14 | G67: 10000 | H67: 12500 | J67: 6,0 x 200 | K67: 6 | L67: 200 | M67: 183 | N67: 8.2 | O67: 10000 | P67: 12500 | S67: 10.0 x 580 | AA67: 8,0 x 360 | AN67: 8,0 x 380 | AO67: 8 | AP67: 380 | AQ67: 100 | AR67: 14.5 | AS67: 20057 | AT67: 20100
B68: 6,0 x 220 | C68: 6 | D68: 220 | E68: 70 | F68: 14 | G68: 10000 | H68: 12500 | J68: 6,0 x 220 | K68: 6 | L68: 220 | M68: 203 | N68: 8.2 | O68: 10000 | P68: 12500 | S68: 10.0 x 600 | AA68: 8,0 x 380 | AN68: 8,0 x 400 | AO68: 8 | AP68: 400 | AQ68: 100 | AR68: 14.5 | AS68: 20057 | AT68: 20100
B69: 6,0 x 240 | C69: 6 | D69: 240 | E69: 70 | F69: 14 | G69: 10000 | H69: 12500 | J69: 6,0 x 240 | K69: 6 | L69: 240 | M69: 223 | N69: 8.2 | O69: 10000 | P69: 12500 | S69: 12.0 x 320 | AA69: 8,0 x 400 | AN69: 8,0 x 440 | AO69: 8 | AP69: 440 | AQ69: 100 | AR69: 14.5 | AS69: 20057 | AT69: 20100
B70: 6,0 x 260 | C70: 6 | D70: 260 | E70: 70 | F70: 14 | G70: 10000 | H70: 12500 | J70: 6,0 x 260 | K70: 6 | L70: 260 | M70: 243 | N70: 8.2 | O70: 10000 | P70: 12500 | AA70: 8,0 x 440 | AN70: 8,0 x 480 | AO70: 8 | AP70: 480 | AQ70: 100 | AR70: 14.5 | AS70: 20057 | AT70: 20100
B71: 6,0 x 280 | C71: 6 | D71: 280 | E71: 70 | F71: 14 | G71: 10000 | H71: 12500 | J71: 8,0 x 120 | K71: 8 | L71: 120 | M71: 101 | N71: 10 | O71: 23000 | P71: 22000 | AA71: 8,0 x 480 | AN71: 8,0 x 520 | AO71: 8 | AP71: 520 | AQ71: 100 | AR71: 14.5 | AS71: 20057 | AT71: 20100
B72: 6,0 x 300 | C72: 6 | D72: 300 | E72: 70 | F72: 14 | G72: 10000 | H72: 12500 | J72: 8,0 x 140 | K72: 8 | L72: 140 | M72: 121 | N72: 10 | O72: 23000 | P72: 22000 | AA72: 8,0 x 520 | AN72: 10,0 x 80 | AO72: 10 | AP72: 80 | AQ72: 52 | AR72: 18.25 | AS72: 35830 | AT72: 31400
B73: 8,0 x 100 | C73: 8 | D73: 100 | E73: 60 | F73: 22 | G73: 23000 | H73: 21500 | J73: 8,0 x 160 | K73: 8 | L73: 160 | M73: 141 | N73: 10 | O73: 23000 | P73: 22000 | AA73: 10,0 x 80 | AN73: 10,0 x 100 | AO73: 10 | AP73: 100 | AQ73: 52 | AR73: 18.25 | AS73: 35830 | AT73: 31400
B74: 8,0 x 120 | C74: 8 | D74: 120 | E74: 80 | F74: 22 | G74: 23000 | H74: 21500 | J74: 8,0 x 180 | K74: 8 | L74: 180 | M74: 161 | N74: 10 | O74: 23000 | P74: 22000 | AA74: 10,0 x 100 | AN74: 10,0 x 120 | AO74: 10 | AP74: 120 | AQ74: 60 | AR74: 18.25 | AS74: 35830 | AT74: 31400
B75: 8,0 x 140 | C75: 8 | D75: 140 | E75: 80 | F75: 22 | G75: 23000 | H75: 21500 | J75: 8,0 x 200 | K75: 8 | L75: 200 | M75: 181 | N75: 10 | O75: 23000 | P75: 22000 | AA75: 10,0 x 120 | AN75: 10,0 x 140 | AO75: 10 | AP75: 140 | AQ75: 60 | AR75: 18.25 | AS75: 35830 | AT75: 31400
B76: 8,0 x 160 | C76: 8 | D76: 160 | E76: 80 | F76: 22 | G76: 23000 | H76: 21500 | J76: 8,0 x 220 | K76: 8 | L76: 220 | M76: 201 | N76: 10 | O76: 23000 | P76: 22000 | AA76: 10,0 x 140 | AN76: 10,0 x 160 | AO76: 10 | AP76: 160 | AQ76: 80 | AR76: 18.25 | AS76: 35830 | AT76: 31400
B77: 8,0 x 180 | C77: 8 | D77: 180 | E77: 80 | F77: 22 | G77: 23000 | H77: 21500 | J77: 8,0 x 240 | K77: 8 | L77: 240 | M77: 221 | N77: 10 | O77: 23000 | P77: 22000 | AA77: 10,0 x 160 | AN77: 10,0 x 180 | AO77: 10 | AP77: 180 | AQ77: 80 | AR77: 18.25 | AS77: 35830 | AT77: 31400
B78: 8,0 x 200 | C78: 8 | D78: 200 | E78: 80 | F78: 22 | G78: 23000 | H78: 21500 | J78: 8,0 x 260 | K78: 8 | L78: 260 | M78: 241 | N78: 10 | O78: 23000 | P78: 22000 | AA78: 10,0 x 180 | AN78: 10,0 x 200 | AO78: 10 | AP78: 200 | AQ78: 80 | AR78: 18.25 | AS78: 35830 | AT78: 31400
B79: 8,0 x 220 | C79: 8 | D79: 220 | E79: 100 | F79: 22 | G79: 23000 | H79: 21500 | J79: 8,0 x 280 | K79: 8 | L79: 280 | M79: 261 | N79: 10 | O79: 23000 | P79: 22000 | AA79: 10,0 x 200 | AN79: 10,0 x 220 | AO79: 10 | AP79: 220 | AQ79: 80 | AR79: 18.25 | AS79: 35830 | AT79: 31400
B80: 8,0 x 240 | C80: 8 | D80: 240 | E80: 100 | F80: 22 | G80: 23000 | H80: 21500 | J80: 8,0 x 300 | K80: 8 | L80: 300 | M80: 275 | N80: 10 | O80: 23000 | P80: 22000 | AA80: 10,0 x 220 | AN80: 10,0 x 240 | AO80: 10 | AP80: 240 | AQ80: 80 | AR80: 18.25 | AS80: 35830 | AT80: 31400
B81: 8,0 x 260 | C81: 8 | D81: 260 | E81: 100 | F81: 22 | G81: 23000 | H81: 21500 | J81: 8,0 x 320 | K81: 8 | L81: 320 | M81: 295 | N81: 10 | O81: 23000 | P81: 22000 | AA81: 10,0 x 240 | AN81: 10,0 x 260 | AO81: 10 | AP81: 260 | AQ81: 80 | AR81: 18.25 | AS81: 35830 | AT81: 31400
B82: 8,0 x 280 | C82: 8 | D82: 280 | E82: 100 | F82: 22 | G82: 23000 | H82: 21500 | J82: 8,0 x 330 | K82: 8 | L82: 330 | M82: 305 | N82: 10 | O82: 23000 | P82: 22000 | AA82: 10,0 x 260 | AN82: 10,0 x 280 | AO82: 10 | AP82: 280 | AQ82: 80 | AR82: 18.25 | AS82: 35830 | AT82: 31400
B83: 8,0 x 300 | C83: 8 | D83: 300 | E83: 100 | F83: 22 | G83: 23000 | H83: 21500 | J83: 8,0 x 340 | K83: 8 | L83: 340 | M83: 315 | N83: 10 | O83: 23000 | P83: 22000 | AA83: 10,0 x 280 | AN83: 10,0 x 300 | AO83: 10 | AP83: 300 | AQ83: 100 | AR83: 18.25 | AS83: 35830 | AT83: 31400
B84: 8,0 x 320 | C84: 8 | D84: 320 | E84: 100 | F84: 22 | G84: 23000 | H84: 21500 | J84: 8,0 x 360 | K84: 8 | L84: 360 | M84: 335 | N84: 10 | O84: 23000 | P84: 22000 | AA84: 10,0 x 300 | AN84: 10,0 x 320 | AO84: 10 | AP84: 320 | AQ84: 100 | AR84: 18.25 | AS84: 35830 | AT84: 31400
B85: 8,0 x 330 | C85: 8 | D85: 330 | E85: 100 | F85: 22 | G85: 23000 | H85: 21500 | J85: 8,0 x 380 | K85: 8 | L85: 380 | M85: 355 | N85: 10 | O85: 23000 | P85: 22000 | AA85: 10,0 x 320 | AN85: 10,0 x 340 | AO85: 10 | AP85: 340 | AQ85: 100 | AR85: 18.25 | AS85: 35830 | AT85: 31400
B86: 8,0 x 340 | C86: 8 | D86: 340 | E86: 100 | F86: 22 | G86: 23000 | H86: 21500 | J86: 8,0 x 400 | K86: 8 | L86: 400 | M86: 375 | N86: 10 | O86: 23000 | P86: 22000 | AA86: 10,0 x 340 | AN86: 10,0 x 360 | AO86: 10 | AP86: 360 | AQ86: 100 | AR86: 18.25 | AS86: 35830 | AT86: 31400
B87: 8,0 x 360 | C87: 8 | D87: 360 | E87: 100 | F87: 22 | G87: 23000 | H87: 21500 | J87: 8,0 x 430 | K87: 8 | L87: 430 | M87: 405 | N87: 10 | O87: 23000 | P87: 22000 | AA87: 10,0 x 360 | AN87: 10,0 x 380 | AO87: 10 | AP87: 380 | AQ87: 100 | AR87: 18.25 | AS87: 35830 | AT87: 31400
B88: 8,0 x 380 | C88: 8 | D88: 380 | E88: 100 | F88: 22 | G88: 23000 | H88: 21500 | J88: 8,0 x 450 | K88: 8 | L88: 450 | M88: 425 | N88: 10 | O88: 23000 | P88: 22000 | AA88: 10,0 x 380 | AN88: 10,0 x 400 | AO88: 10 | AP88: 400 | AQ88: 100 | AR88: 18.25 | AS88: 35830 | AT88: 31400
B89: 8,0 x 400 | C89: 8 | D89: 400 | E89: 100 | F89: 22 | G89: 23000 | H89: 21500 | J89: 8,0 x 480 | K89: 8 | L89: 480 | M89: 445 | N89: 10 | O89: 23000 | P89: 22000 | AA89: 10,0 x 400 | AN89: 12,0 x 120 | AO89: 12 | AP89: 120 | AQ89: 80 | AR89: 20.75 | AS89: 47966 | AT89: 33900
B90: 8,0 x 420 | C90: 8 | D90: 420 | E90: 100 | F90: 22 | G90: 23000 | H90: 21500 | J90: 8,0 x 530 | K90: 8 | L90: 530 | M90: 495 | N90: 10 | O90: 23000 | P90: 22000 | AA90: 12,0 x 120 | AN90: 12,0 x 160 | AO90: 12 | AP90: 160 | AQ90: 80 | AR90: 20.75 | AS90: 47966 | AT90: 33900
B91: 8,0 x 440 | C91: 8 | D91: 440 | E91: 100 | F91: 22 | G91: 23000 | H91: 21500 | J91: 8,0 x 580 | K91: 8 | L91: 580 | M91: 545 | N91: 10 | O91: 23000 | P91: 22000 | AA91: 12,0 x 160 | AN91: 12,0 x 200 | AO91: 12 | AP91: 200 | AQ91: 80 | AR91: 20.75 | AS91: 47966 | AT91: 33900
B92: 8,0 x 460 | C92: 8 | D92: 460 | E92: 100 | F92: 22 | G92: 23000 | H92: 21500 | J92: 10,0 x 120 | K92: 10 | L92: 120 | M92: 97 | N92: 13.4 | O92: 36000 | P92: 33000 | AA92: 12,0 x 200 | AN92: 12,0 x 240 | AO92: 12 | AP92: 240 | AQ92: 80 | AR92: 20.75 | AS92: 47966 | AT92: 33900
B93: 8,0 x 480 | C93: 8 | D93: 480 | E93: 100 | F93: 22 | G93: 23000 | H93: 21500 | J93: 10,0 x 140 | K93: 10 | L93: 140 | M93: 117 | N93: 13.4 | O93: 36000 | P93: 33000 | AA93: 12,0 x 240 | AN93: 12,0 x 280 | AO93: 12 | AP93: 280 | AQ93: 80 | AR93: 20.75 | AS93: 47966 | AT93: 33900
B94: 8,0 x 500 | C94: 8 | D94: 500 | E94: 100 | F94: 22 | G94: 23000 | H94: 21500 | J94: 10,0 x 160 | K94: 10 | L94: 160 | M94: 137 | N94: 13.4 | O94: 36000 | P94: 33000 | AA94: 12,0 x 280 | AN94: 12,0 x 320 | AO94: 12 | AP94: 320 | AQ94: 120 | AR94: 20.75 | AS94: 47966 | AT94: 33900
B95: 8,0 x 520 | C95: 8 | D95: 520 | E95: 100 | F95: 22 | G95: 23000 | H95: 21500 | J95: 10,0 x 180 | K95: 10 | L95: 180 | M95: 157 | N95: 13.4 | O95: 36000 | P95: 33000 | AA95: 12,0 x 320 | AN95: 12,0 x 360 | AO95: 12 | AP95: 360 | AQ95: 120 | AR95: 20.75 | AS95: 47966 | AT95: 33900
B96: 8,0 x 540 | C96: 8 | D96: 540 | E96: 100 | F96: 22 | G96: 23000 | H96: 21500 | J96: 10,0 x 200 | K96: 10 | L96: 200 | M96: 177 | N96: 13.4 | O96: 36000 | P96: 33000 | AA96: 12,0 x 360 | AN96: 12,0 x 400 | AO96: 12 | AP96: 400 | AQ96: 120 | AR96: 20.75 | AS96: 47966 | AT96: 33900
B97: 8,0 x 560 | C97: 8 | D97: 560 | E97: 100 | F97: 22 | G97: 23000 | H97: 21500 | J97: 10,0 x 220 | K97: 10 | L97: 220 | M97: 197 | N97: 13.4 | O97: 36000 | P97: 33000 | AA97: 12,0 x 400 | AN97: 12,0 x 440 | AO97: 12 | AP97: 440 | AQ97: 120 | AR97: 20.75 | AS97: 47966 | AT97: 33900
B98: 10.0 x 100 | C98: 10 | D98: 100 | E98: 60 | F98: 25.2 | G98: 36000 | H98: 26000 | J98: 10,0 x 240 | K98: 10 | L98: 240 | M98: 217 | N98: 13.4 | O98: 36000 | P98: 33000 | AA98: 12,0 x 440 | AN98: 12,0 x 480 | AO98: 12 | AP98: 480 | AQ98: 120 | AR98: 20.75 | AS98: 47966 | AT98: 33900
B99: 10.0 x 120 | C99: 10 | D99: 120 | E99: 80 | F99: 25.2 | G99: 36000 | H99: 26000 | J99: 10,0 x 260 | K99: 10 | L99: 260 | M99: 237 | N99: 13.4 | O99: 36000 | P99: 33000 | AA99: 12,0 x 480 | AN99: 12,0 x 520 | AO99: 12 | AP99: 520 | AQ99: 120 | AR99: 20.75 | AS99: 47966 | AT99: 33900
B100: 10.0 x 140 | C100: 10 | D100: 140 | E100: 80 | F100: 25.2 | G100: 36000 | H100: 26000 | J100: 10,0 x 280 | K100: 10 | L100: 280 | M100: 257 | N100: 13.4 | O100: 36000 | P100: 33000 | AA100: 12,0 x 520 | AN100: 12,0 x 560 | AO100: 12 | AP100: 560 | AQ100: 120 | AR100: 20.75 | AS100: 47966 | AT100: 33900
B101: 10.0 x 160 | C101: 10 | D101: 160 | E101: 100 | F101: 25.2 | G101: 36000 | H101: 26000 | J101: 10,0 x 300 | K101: 10 | L101: 300 | M101: 272 | N101: 13.4 | O101: 36000 | P101: 33000 | AA101: 12,0 x 560 | AN101: 12,0 x 600 | AO101: 12 | AP101: 600 | AQ101: 120 | AR101: 20.75 | AS101: 47966 | AT101: 33900
B102: 10.0 x 180 | C102: 10 | D102: 180 | E102: 100 | F102: 25.2 | G102: 36000 | H102: 26000 | J102: 10,0 x 320 | K102: 10 | L102: 320 | M102: 292 | N102: 13.4 | O102: 36000 | P102: 33000 | AA102: 12,0 x 600
B103: 10.0 x 200 | C103: 10 | D103: 200 | E103: 100 | F103: 25.2 | G103: 36000 | H103: 26000 | J103: 10,0 x 340 | K103: 10 | L103: 340 | M103: 312 | N103: 13.4 | O103: 36000 | P103: 33000
B104: 10.0 x 220 | C104: 10 | D104: 220 | E104: 100 | F104: 25.2 | G104: 36000 | H104: 26000 | J104: 10,0 x 360 | K104: 10 | L104: 360 | M104: 332 | N104: 13.4 | O104: 36000 | P104: 33000
B105: 10.0 x 240 | C105: 10 | D105: 240 | E105: 100 | F105: 25.2 | G105: 36000 | H105: 26000 | J105: 10,0 x 380 | K105: 10 | L105: 380 | M105: 352 | N105: 13.4 | O105: 36000 | P105: 33000
B106: 10.0 x 260 | C106: 10 | D106: 260 | E106: 100 | F106: 25.2 | G106: 36000 | H106: 26000 | J106: 10,0 x 400 | K106: 10 | L106: 400 | M106: 372 | N106: 13.4 | O106: 36000 | P106: 33000
B107: 10.0 x 280 | C107: 10 | D107: 280 | E107: 100 | F107: 25.2 | G107: 36000 | H107: 26000 | J107: 10,0 x 430 | K107: 10 | L107: 430 | M107: 402 | N107: 13.4 | O107: 36000 | P107: 33000
B108: 10.0 x 300 | C108: 10 | D108: 300 | E108: 100 | F108: 25.2 | G108: 36000 | H108: 26000 | J108: 10,0 x 450 | K108: 10 | L108: 450 | M108: 422 | N108: 13.4 | O108: 36000 | P108: 33000
B109: 10.0 x 320 | C109: 10 | D109: 320 | E109: 120 | F109: 25.2 | G109: 36000 | H109: 26000 | J109: 10,0 x 480 | K109: 10 | L109: 480 | M109: 442 | N109: 13.4 | O109: 36000 | P109: 33000
B110: 10.0 x 340 | C110: 10 | D110: 340 | E110: 120 | F110: 25.2 | G110: 36000 | H110: 26000 | J110: 10,0 x 530 | K110: 10 | L110: 530 | M110: 492 | N110: 13.4 | O110: 36000 | P110: 33000
B111: 10.0 x 360 | C111: 10 | D111: 360 | E111: 120 | F111: 25.2 | G111: 36000 | H111: 26000 | J111: 10,0 x 580 | K111: 10 | L111: 580 | M111: 542 | N111: 13.4 | O111: 36000 | P111: 33000
B112: 10.0 x 380 | C112: 10 | D112: 380 | E112: 120 | F112: 25.2 | G112: 36000 | H112: 26000 | U112: TeilgewindeSenkkopf_S
B113: 10.0 x 400 | C113: 10 | D113: 400 | E113: 120 | F113: 25.2 | G113: 36000 | H113: 26000
B114: 10.0 x 420 | C114: 10 | D114: 420 | E114: 120 | F114: 25.2 | G114: 36000 | H114: 26000
B115: 10.0 x 440 | C115: 10 | D115: 440 | E115: 120 | F115: 25.2 | G115: 36000 | H115: 26000
B116: 10.0 x 460 | C116: 10 | D116: 460 | E116: 120 | F116: 25.2 | G116: 36000 | H116: 26000
B117: 10.0 x 480 | C117: 10 | D117: 480 | E117: 120 | F117: 25.2 | G117: 36000 | H117: 26000
B118: 10.0 x 500 | C118: 10 | D118: 500 | E118: 120 | F118: 25.2 | G118: 36000 | H118: 26000
B119: 10.0 x 520 | C119: 10 | D119: 520 | E119: 120 | F119: 25.2 | G119: 36000 | H119: 26000
B120: 10.0 x 540 | C120: 10 | D120: 540 | E120: 120 | F120: 25.2 | G120: 36000 | H120: 26000
B121: 10.0 x 560 | C121: 10 | D121: 560 | E121: 120 | F121: 25.2 | G121: 36000 | H121: 26000
B122: 10.0 x 580 | C122: 10 | D122: 580 | E122: 120 | F122: 25.2 | G122: 36000 | H122: 26000
B123: 10.0 x 600 | C123: 10 | D123: 600 | E123: 120 | F123: 25.2 | G123: 36000 | H123: 26000
B124: 12.0 x 320 | C124: 12 | D124: 320 | E124: 120 | F124: 29.4 | G124: 58000 | H124: 41000
B156: Spax T-STAR plus
B159: TeilgewindeSenkkopf_S | J159: TeilgewindeTellerkopf_S
B160: Typ | C160: d (mm) | D160: länge Lsch (mm) | E160: Gewinde länge (mm) | F160: Kopftdurchemesser dk (mm) | G160: Fließmoment My,k (Nmm) | H160: Zugtragfähigkeit Rt,u,k (N) | J160: Typ | K160: d (mm) | L160: länge Lsch (mm) | M160: Gewinde länge (mm) | N160: Kopftdurchemesser dk (mm) | O160: Fließmoment My,k (Nmm) | P160: Zugtragfähigkeit Rt,u,k (N)
B161: 8,0 x 80 | C161: 8 | D161: 80 | E161: 47 | F161: 15.1 | G161: 20057 | H161: 17000 | J161: 6,0 x 40 | K161: 6 | L161: 40 | M161: 37 | N161: 13.6 | O161: 9493 | P161: 11000 | R161: Spax T-STAR plus
B162: 8,0 x 100 | C162: 8 | D162: 100 | E162: 57 | F162: 15.1 | G162: 20057 | H162: 17000 | J162: 6,0 x 60 | K162: 6 | L162: 60 | M162: 56 | N162: 13.6 | O162: 9493 | P162: 11000 | R162: TeilgewindeSenkkopf_S | S162: TeilgewindeTellerkopf_S
B163: 8,0 x 120 | C163: 8 | D163: 120 | E163: 70 | F163: 15.1 | G163: 20057 | H163: 17000 | J163: 6,0 x 80 | K163: 6 | L163: 80 | M163: 61 | N163: 13.6 | O163: 9493 | P163: 11000 | R163: 8,0 x 80 | S163: 6,0 x 40
B164: 8,0 x 140 | C164: 8 | D164: 140 | E164: 80 | F164: 15.1 | G164: 20057 | H164: 17000 | J164: 6,0 x 100 | K164: 6 | L164: 100 | M164: 61 | N164: 13.6 | O164: 9493 | P164: 11000 | R164: 8,0 x 100 | S164: 6,0 x 60
B165: 8,0 x 160 | C165: 8 | D165: 160 | E165: 80 | F165: 15.1 | G165: 20057 | H165: 17000 | J165: 6,0 x 120 | K165: 6 | L165: 120 | M165: 68 | N165: 13.6 | O165: 9493 | P165: 11000 | R165: 8,0 x 120 | S165: 6,0 x 80
B166: 8,0 x 180 | C166: 8 | D166: 180 | E166: 80 | F166: 15.1 | G166: 20057 | H166: 17000 | J166: 6,0 x 140 | K166: 6 | L166: 140 | M166: 68 | N166: 13.6 | O166: 9493 | P166: 11000 | R166: 8,0 x 140 | S166: 6,0 x 100
B167: 8,0 x 200 | C167: 8 | D167: 200 | E167: 80 | F167: 15.1 | G167: 20057 | H167: 17000 | J167: 6,0 x 160 | K167: 6 | L167: 160 | M167: 65 | N167: 13.6 | O167: 9493 | P167: 11000 | R167: 8,0 x 160 | S167: 6,0 x 120
B168: 8,0 x 220 | C168: 8 | D168: 220 | E168: 80 | F168: 15.1 | G168: 20057 | H168: 17000 | J168: 6,0 x 180 | K168: 6 | L168: 180 | M168: 65 | N168: 13.6 | O168: 9493 | P168: 11000 | R168: 8,0 x 180 | S168: 6,0 x 140
B169: 8,0 x 240 | C169: 8 | D169: 240 | E169: 80 | F169: 15.1 | G169: 20057 | H169: 17000 | J169: 6,0 x 200 | K169: 6 | L169: 200 | M169: 65 | N169: 13.6 | O169: 9493 | P169: 11000 | R169: 8,0 x 200 | S169: 6,0 x 160
B170: 8,0 x 260 | C170: 8 | D170: 260 | E170: 80 | F170: 15.1 | G170: 20057 | H170: 17000 | J170: 6,0 x 220 | K170: 6 | L170: 220 | M170: 65 | N170: 13.6 | O170: 9493 | P170: 11000 | R170: 8,0 x 220 | S170: 6,0 x 180
B171: 8,0 x 280 | C171: 8 | D171: 280 | E171: 80 | F171: 15.1 | G171: 20057 | H171: 17000 | J171: 6,0 x 250 | K171: 6 | L171: 250 | M171: 65 | N171: 13.6 | O171: 9493 | P171: 11000 | R171: 8,0 x 240 | S171: 6,0 x 200
B172: 8,0 x 300 | C172: 8 | D172: 300 | E172: 80 | F172: 15.1 | G172: 20057 | H172: 17000 | J172: 6,0 x 280 | K172: 6 | L172: 280 | M172: 65 | N172: 13.6 | O172: 9493 | P172: 11000 | R172: 8,0 x 260 | S172: 6,0 x 220
B173: 8,0 x 320 | C173: 8 | D173: 320 | E173: 80 | F173: 15.1 | G173: 20057 | H173: 17000 | J173: 6,0 x 300 | K173: 6 | L173: 300 | M173: 65 | N173: 13.6 | O173: 9493 | P173: 11000 | R173: 8,0 x 280 | S173: 6,0 x 250
B174: 8,0 x 340 | C174: 8 | D174: 340 | E174: 80 | F174: 15.1 | G174: 20057 | H174: 17000 | J174: 8,0 x 80 | K174: 8 | L174: 80 | M174: 70 | N174: 20 | O174: 20057 | P174: 17000 | R174: 8,0 x 300 | S174: 6,0 x 280
B175: 8,0 x 360 | C175: 8 | D175: 360 | E175: 80 | F175: 15.1 | G175: 20057 | H175: 17000 | J175: 8,0 x 100 | K175: 8 | L175: 100 | M175: 80 | N175: 20 | O175: 20057 | P175: 17000 | R175: 8,0 x 320 | S175: 6,0 x 300
B176: 8,0 x 380 | C176: 8 | D176: 380 | E176: 80 | F176: 15.1 | G176: 20057 | H176: 17000 | J176: 8,0 x 120 | K176: 8 | L176: 120 | M176: 80 | N176: 20 | O176: 20057 | P176: 17000 | R176: 8,0 x 340 | S176: 8,0 x 80
B177: 8,0 x 400 | C177: 8 | D177: 400 | E177: 80 | F177: 15.1 | G177: 20057 | H177: 17000 | J177: 8,0 x 140 | K177: 8 | L177: 140 | M177: 80 | N177: 20 | O177: 20057 | P177: 17000 | R177: 8,0 x 360 | S177: 8,0 x 100
B178: 8,0 x 450 | C178: 8 | D178: 450 | E178: 80 | F178: 15.1 | G178: 20057 | H178: 17000 | J178: 8,0 x 160 | K178: 8 | L178: 160 | M178: 80 | N178: 20 | O178: 20057 | P178: 17000 | R178: 8,0 x 380 | S178: 8,0 x 120
B179: 10,0 x 80 | C179: 10 | D179: 80 | E179: 50 | F179: 18.6 | G179: 35829 | H179: 28000 | J179: 8,0 x 180 | K179: 8 | L179: 180 | M179: 80 | N179: 20 | O179: 20057 | P179: 17000 | R179: 8,0 x 400 | S179: 8,0 x 140
B180: 10,0 x 100 | C180: 10 | D180: 100 | E180: 60 | F180: 18.6 | G180: 35829 | H180: 28000 | J180: 8,0 x 200 | K180: 8 | L180: 200 | M180: 80 | N180: 20 | O180: 20057 | P180: 17000 | R180: 8,0 x 450 | S180: 8,0 x 160
B181: 10,0 x 120 | C181: 10 | D181: 120 | E181: 80 | F181: 18.6 | G181: 35829 | H181: 28000 | J181: 8,0 x 220 | K181: 8 | L181: 220 | M181: 80 | N181: 20 | O181: 20057 | P181: 17000 | R181: 10,0 x 80 | S181: 8,0 x 180
B182: 10,0 x 140 | C182: 10 | D182: 140 | E182: 80 | F182: 18.6 | G182: 35829 | H182: 28000 | J182: 8,0 x 240 | K182: 8 | L182: 240 | M182: 80 | N182: 20 | O182: 20057 | P182: 17000 | R182: 10,0 x 100 | S182: 8,0 x 200
B183: 10,0 x 160 | C183: 10 | D183: 160 | E183: 80 | F183: 18.6 | G183: 35829 | H183: 28000 | J183: 8,0 x 260 | K183: 8 | L183: 260 | M183: 80 | N183: 20 | O183: 20057 | P183: 17000 | R183: 10,0 x 120 | S183: 8,0 x 220
B184: 10,0 x 180 | C184: 10 | D184: 180 | E184: 80 | F184: 18.6 | G184: 35829 | H184: 28000 | J184: 8,0 x 280 | K184: 8 | L184: 280 | M184: 80 | N184: 20 | O184: 20057 | P184: 17000 | R184: 10,0 x 140 | S184: 8,0 x 240
B185: 10,0 x 200 | C185: 10 | D185: 200 | E185: 80 | F185: 18.6 | G185: 35829 | H185: 28000 | J185: 8,0 x 300 | K185: 8 | L185: 300 | M185: 80 | N185: 20 | O185: 20057 | P185: 17000 | R185: 10,0 x 160 | S185: 8,0 x 260
B186: 10,0 x 220 | C186: 10 | D186: 220 | E186: 80 | F186: 18.6 | G186: 35829 | H186: 28000 | J186: 8,0 x 320 | K186: 8 | L186: 320 | M186: 80 | N186: 20 | O186: 20057 | P186: 17000 | R186: 10,0 x 180 | S186: 8,0 x 280
B187: 10,0 x 240 | C187: 10 | D187: 240 | E187: 80 | F187: 18.6 | G187: 35829 | H187: 28000 | J187: 8,0 x 340 | K187: 8 | L187: 340 | M187: 80 | N187: 20 | O187: 20057 | P187: 17000 | R187: 10,0 x 200 | S187: 8,0 x 300
B188: 10,0 x 260 | C188: 10 | D188: 260 | E188: 80 | F188: 18.6 | G188: 35829 | H188: 28000 | J188: 8,0 x 360 | K188: 8 | L188: 360 | M188: 80 | N188: 20 | O188: 20057 | P188: 17000 | R188: 10,0 x 220 | S188: 8,0 x 320
B189: 10,0 x 280 | C189: 10 | D189: 280 | E189: 80 | F189: 18.6 | G189: 35829 | H189: 28000 | J189: 8,0 x 380 | K189: 8 | L189: 380 | M189: 80 | N189: 20 | O189: 20057 | P189: 17000 | R189: 10,0 x 240 | S189: 8,0 x 340
B190: 10,0 x 300 | C190: 10 | D190: 300 | E190: 80 | F190: 18.6 | G190: 35829 | H190: 28000 | J190: 8,0 x 400 | K190: 8 | L190: 400 | M190: 80 | N190: 20 | O190: 20057 | P190: 17000 | R190: 10,0 x 260 | S190: 8,0 x 360
B191: 10,0 x 320 | C191: 10 | D191: 320 | E191: 80 | F191: 18.6 | G191: 35829 | H191: 28000 | J191: 8,0 x 450 | K191: 8 | L191: 450 | M191: 80 | N191: 20 | O191: 20057 | P191: 17000 | R191: 10,0 x 280 | S191: 8,0 x 380
B192: 10,0 x 340 | C192: 10 | D192: 340 | E192: 80 | F192: 18.6 | G192: 35829 | H192: 28000 | J192: 8,0 x 500 | K192: 8 | L192: 500 | M192: 80 | N192: 20 | O192: 20057 | P192: 17000 | R192: 10,0 x 300 | S192: 8,0 x 400
B193: 10,0 x 360 | C193: 10 | D193: 360 | E193: 80 | F193: 18.6 | G193: 35829 | H193: 28000 | J193: 8,0 x 550 | K193: 8 | L193: 550 | M193: 80 | N193: 20 | O193: 20057 | P193: 17000 | R193: 10,0 x 320 | S193: 8,0 x 450
B194: 10,0 x 380 | C194: 10 | D194: 380 | E194: 80 | F194: 18.6 | G194: 35829 | H194: 28000 | J194: 10,0 x 80 | K194: 10 | L194: 80 | M194: 70 | N194: 25 | O194: 35829 | P194: 28000 | R194: 10,0 x 340 | S194: 8,0 x 500
B195: 10,0 x 400 | C195: 10 | D195: 400 | E195: 80 | F195: 18.6 | G195: 35829 | H195: 28000 | J195: 10,0 x 100 | K195: 10 | L195: 100 | M195: 80 | N195: 25 | O195: 35829 | P195: 28000 | R195: 10,0 x 360 | S195: 8,0 x 550
B196: 10,0 x 450 | C196: 10 | D196: 450 | E196: 80 | F196: 18.6 | G196: 35829 | H196: 28000 | J196: 10,0 x 120 | K196: 10 | L196: 120 | M196: 80 | N196: 25 | O196: 35829 | P196: 28000 | R196: 10,0 x 380 | S196: 10,0 x 80
J197: 10,0 x 140 | K197: 10 | L197: 140 | M197: 80 | N197: 25 | O197: 35829 | P197: 28000 | R197: 10,0 x 400 | S197: 10,0 x 100
J198: 10,0 x 160 | K198: 10 | L198: 160 | M198: 80 | N198: 25 | O198: 35829 | P198: 28000 | R198: 10,0 x 450 | S198: 10,0 x 120
J199: 10,0 x 180 | K199: 10 | L199: 180 | M199: 80 | N199: 25 | O199: 35829 | P199: 28000 | S199: 10,0 x 140
J200: 10,0 x 200 | K200: 10 | L200: 200 | M200: 80 | N200: 25 | O200: 35829 | P200: 28000 | S200: 10,0 x 160
J201: 10,0 x 220 | K201: 10 | L201: 220 | M201: 80 | N201: 25 | O201: 35829 | P201: 28000 | S201: 10,0 x 180
J202: 10,0 x 240 | K202: 10 | L202: 240 | M202: 80 | N202: 25 | O202: 35829 | P202: 28000 | S202: 10,0 x 200
J203: 10,0 x 260 | K203: 10 | L203: 260 | M203: 80 | N203: 25 | O203: 35829 | P203: 28000 | S203: 10,0 x 220
J204: 10,0 x 280 | K204: 10 | L204: 280 | M204: 80 | N204: 25 | O204: 35829 | P204: 28000 | S204: 10,0 x 240
J205: 10,0 x 300 | K205: 10 | L205: 300 | M205: 80 | N205: 25 | O205: 35829 | P205: 28000 | S205: 10,0 x 260
J206: 10,0 x 320 | K206: 10 | L206: 320 | M206: 80 | N206: 25 | O206: 35829 | P206: 28000 | S206: 10,0 x 280
J207: 10,0 x 340 | K207: 10 | L207: 340 | M207: 80 | N207: 25 | O207: 35829 | P207: 28000 | S207: 10,0 x 300
J208: 10,0 x 360 | K208: 10 | L208: 360 | M208: 80 | N208: 25 | O208: 35829 | P208: 28000 | S208: 10,0 x 320
J209: 10,0 x 380 | K209: 10 | L209: 380 | M209: 80 | N209: 25 | O209: 35829 | P209: 28000 | S209: 10,0 x 340
J210: 10,0 x 400 | K210: 10 | L210: 400 | M210: 80 | N210: 25 | O210: 35829 | P210: 28000 | S210: 10,0 x 360
J211: 10,0 x 450 | K211: 10 | L211: 450 | M211: 80 | N211: 25 | O211: 35829 | P211: 28000 | S211: 10,0 x 380
S212: 10,0 x 400
S213: 10,0 x 450
B218: Würth Assy plus | R218: Würth Assy plus
B220: Teilgewinde | J220: Vollgewinde | R220: Teilgewinde | W220: Vollgewinde
B221: Typ | C221: d (mm) | D221: länge Lsch (mm) | E221: Gewinde länge (mm) | F221: Kopftdurchemesser dk (mm) | J221: Typ | K221: d (mm) | L221: länge Lsch (mm) | M221: Gewinde länge (mm) | N221: Kopftdurchemesser dk (mm) | R221: Produit | S221: d (mm) | T221: longueur Lsch (mm) | U221: Longueur filetée (mm) | W221: Produit | X221: d (mm) | Y221: longueur Lsch (mm) | Z221: Longueur filetée (mm) | AA221: Diamètre de la tête (mm)
B222: 8,0 x 140 | C222: 8 | D222: 140 | E222: 80 | F222: 14.5 | J222: 8,0 x 160 | K222: 8 | L222: 160 | M222: =L222 -> 160 | N222: 10 | R222: 8,0 x 140 | S222: 8 | T222: 140 | U222: 80 | W222: 8,0 x 160 | X222: 8 | Y222: 160 | Z222: =Y222 -> 160 | AA222: 10
B223: 8,0 x 160 | C223: 8 | D223: 160 | E223: 80 | F223: 14.5 | J223: 8,0 x 180 | K223: 8 | L223: 180 | M223: =L223 -> 180 | N223: 10 | R223: 8,0 x 160 | S223: 8 | T223: 160 | U223: 80 | W223: 8,0 x 180 | X223: 8 | Y223: 180 | Z223: =Y223 -> 180 | AA223: 10
B224: 8,0 x 180 | C224: 8 | D224: 180 | E224: 80 | F224: 14.5 | J224: 8,0 x 200 | K224: 8 | L224: 200 | M224: 200 | N224: 10 | R224: 8,0 x 180 | S224: 8 | T224: 180 | U224: 80 | W224: 8,0 x 200 | X224: 8 | Y224: 200 | Z224: 200 | AA224: 10
B225: 8,0 x 200 | C225: 8 | D225: 200 | E225: 80 | F225: 14.5 | J225: 8,0 x 220 | K225: 8 | L225: 220 | M225: 220 | N225: 10 | R225: 8,0 x 200 | S225: 8 | T225: 200 | U225: 80 | W225: 8,0 x 220 | X225: 8 | Y225: 220 | Z225: 220 | AA225: 10
B226: 8,0 x 220 | C226: 8 | D226: 220 | E226: 80 | F226: 14.5 | J226: 8,0 x 240 | K226: 8 | L226: 240 | M226: 240 | N226: 10 | R226: 8,0 x 220 | S226: 8 | T226: 220 | U226: 80 | W226: 8,0 x 240 | X226: 8 | Y226: 240 | Z226: 240 | AA226: 10
B227: 8,0 x 240 | C227: 8 | D227: 240 | E227: 100 | F227: 14.5 | J227: 8,0 x 260 | K227: 8 | L227: 260 | M227: 260 | N227: 10 | R227: 8,0 x 240 | S227: 8 | T227: 240 | U227: 100 | W227: 8,0 x 260 | X227: 8 | Y227: 260 | Z227: 260 | AA227: 10
B228: 8,0 x 260 | C228: 8 | D228: 260 | E228: 100 | F228: 14.5 | J228: 8,0 x 280 | K228: 8 | L228: 280 | M228: 280 | N228: 10 | R228: 8,0 x 260 | S228: 8 | T228: 260 | U228: 100 | W228: 8,0 x 280 | X228: 8 | Y228: 280 | Z228: 280 | AA228: 10
B229: 8,0 x 280 | C229: 8 | D229: 280 | E229: 100 | F229: 14.5 | J229: 8,0 x 300 | K229: 8 | L229: 300 | M229: 300 | N229: 10 | R229: 8,0 x 280 | S229: 8 | T229: 280 | U229: 100 | W229: 8,0 x 300 | X229: 8 | Y229: 300 | Z229: 300 | AA229: 10
B230: 8,0 x 300 | C230: 8 | D230: 300 | E230: 100 | F230: 14.5 | J230: 8,0 x 330 | K230: 8 | L230: 330 | M230: 330 | N230: 10 | R230: 8,0 x 300 | S230: 8 | T230: 300 | U230: 100 | W230: 8,0 x 330 | X230: 8 | Y230: 330 | Z230: 330 | AA230: 10
J231: 8,0 x 380 | K231: 8 | L231: 380 | M231: 380 | N231: 10 | W231: 8,0 x 380 | X231: 8 | Y231: 380 | Z231: 380 | AA231: 10
J232: 8,0 x 430 | K232: 8 | L232: 430 | M232: 430 | N232: 10 | W232: 8,0 x 430 | X232: 8 | Y232: 430 | Z232: 430 | AA232: 10
J233: 8,0 x 480 | K233: 8 | L233: 480 | M233: 480 | N233: 10 | W233: 8,0 x 480 | X233: 8 | Y233: 480 | Z233: 480 | AA233: 10
J234: 8,0 x 530 | K234: 8 | L234: 530 | M234: 530 | N234: 10 | W234: 8,0 x 530 | X234: 8 | Y234: 530 | Z234: 530 | AA234: 10
J235: 8,0 x 580 | K235: 8 | L235: 580 | M235: 580 | N235: 10 | W235: 8,0 x 580 | X235: 8 | Y235: 580 | Z235: 580 | AA235: 10
B242: Spax T-STAR plus | R242: Spax T-STAR plus
B245: Teilgewinde | J245: Vollgewinde | R245: Teilgewinde | W245: Vollgewinde
B246: Typ | C246: d (mm) | D246: länge Lsch (mm) | E246: Gewinde länge (mm) | F246: Kopftdurchemesser dk (mm) | J246: Typ | K246: d (mm) | L246: länge Lsch (mm) | M246: Gewinde länge (mm) | N246: Kopftdurchemesser dk (mm) | R246: Produit | S246: d (mm) | T246: longueur Lsch (mm) | U246: Longueur filetée (mm) | W246: Produit | X246: d (mm) | Y246: longueur Lsch (mm) | Z246: Longueur filetée (mm) | AA246: Diamètre de la tête (mm)
B247: 8,0 x 100 | C247: 8 | D247: 100 | E247: 57 | F247: 14.5 | J247: 8,0 x 160 | K247: 8 | L247: 160 | M247: =L247 -> 160 | N247: 10 | R247: 8,0 x 100 | S247: 8 | T247: 100 | U247: 57 | W247: 8,0 x 160 | X247: 8 | Y247: 160 | Z247: =Y247 -> 160 | AA247: 10
... 13 more rows

Sheet Stab Kombinationlasten (hidden)
A6: Lastfallkombination
A8: Lasten rechwinkling
A10: gk | B10: ='Eingabe und Ergebnis'!BA43 -> 0 | C10: [kN/m] | E10: pk | F10: ='Eingabe und Ergebnis'!BA45 -> 0 | G10: [kN/m] | I10: sk | J10: ='Eingabe und Ergebnis'!BA44 -> 0 | K10: [kN/m]
A12: Lastfallkombinationen für den Nachweis der Tragfähigkeit
A14: LFK | C14: qd | E14: y0 | F14: KLED | G14: kmod | H14: qd/kmod
A15: gd | C15: =1.35*B10 -> 0 | E15: 1 | F15: ständig | G15: 0.6 | H15: =IF(C15=0,0,C15/G15) -> 0
A16: pd | C16: =1.5*F10 -> 0 | E16: 0.7 | F16: mittel | G16: =IF(F16="lang",0.7,IF(F16="mittel",0.8,IF(F16="kurz",0.9,IF(F16="sehr kurz",1.1,0)))) -> 0.8 | L16: γM = 1,25 | M16: [Brettschichtholz]
A17: sd | C17: =1.5*J10 -> 0 | E17: 0.5 | F17: kurz | G17: =IF(F17="lang",0.7,IF(F17="mittel",0.8,IF(F17="kurz",0.9,IF(F17="sehr kurz",1.1,0)))) -> 0.9
A18: gd + pd | C18: =IF(C16=0,0,C15+C16) -> 0 | F18: =IF(MAXA($G$16:$G$17)=1.1,"sehr kurz",IF(MAXA($G$16:$G$17)=0.9,"kurz",IF(MAXA($G$16:$G$17)=0.8,"mittel",IF(MAXA($G$16:$G$17)=0.7,"lang")))) -> kurz | G18: 0.9 | H18: =IF(C18=0,0,IF(G18=0,0,C18/G18)) -> 0
A19: gd + sd | C19: =IF(C17=0,0,C15+C17) -> 0 | F19: =IF(MAXA($G$16,$G$18)=1.1,"sehr kurz",IF(MAXA($G$16,$G$18)=0.9,"kurz",IF(MAXA($G$16,$G$18)=0.8,"mittel",IF(MAXA($G$16,$G$18)=0.7,"lang")))) -> kurz | G19: 0.9 | H19: =IF(C19=0,0,IF(G19=0,0,C19/G19)) -> 0
A20: gd + pd + sd | C20: =IF(C17=0,0,IF(C16=0,0,C15+C16+E17*C17)) -> 0 | F20: =IF(MAXA($G$16:$G$18)=1.1,"sehr kurz",IF(MAXA($G$16:$G$18)=0.9,"kurz",IF(MAXA($G$16:$G$18)=0.8,"mittel",IF(MAXA($G$16:$G$18)=0.7,"lang")))) -> kurz | G20: 0.9 | H20: =IF(C20=0,0,IF(G20=0,0,C20/G20)) -> 0
A21: gd + sd + pd | C21: =IF(C17=0,0,IF(C16=0,0,C15+C17+E17*C17)) -> 0 | F21: =IF(MAXA($G$16:$G$18)=1.1,"sehr kurz",IF(MAXA($G$16:$G$18)=0.9,"kurz",IF(MAXA($G$16:$G$18)=0.8,"mittel",IF(MAXA($G$16:$G$18)=0.7,"lang")))) -> kurz | G21: 0.9 | H21: =IF(C21=0,0,IF(G21=0,0,C21/G21)) -> 0 | J21: =MAXA(H15:I21) -> 0
A23: Maßgebende Lastfallkombination: | F23: =IF(J21=H21,A21,IF(J21=H20,A20,IF(H19=J21,A19,IF(H18=J21,A18,IF(J21=H15,A15,Fehler))))) -> gd + sd + pd
B25: qd | C25: = | D25: =IF(J21=H21,C21,IF(J21=H20,C20,IF(H19=J21,C19,IF(H18=J21,C18,IF(J21=H15,C15,Fehler))))) -> 0 | F25: [kN/m] | G25: mit | I25: kmod | J25: =IF(J21=H21,G21,IF(J21=H20,G20,IF(H19=J21,G19,IF(H18=J21,G18,IF(J21=H15,G15,Fehler))))) -> 0.9
B26: qk | C26: = | D26: =(D25*1.25)/J25 -> 0 | F26: [kN/m]
A28: Lasten parallen
A30: gk | B30: ='Eingabe und Ergebnis'!#REF! ->  | C30: [kN/m] | E30: pk | F30: ='Eingabe und Ergebnis'!#REF! ->  | G30: [kN/m] | I30: sk | J30: ='Eingabe und Ergebnis'!#REF! ->  | K30: [kN/m]
A32: Lastfallkombinationen für den Nachweis der Tragfähigkeit
A34: LFK | C34: qd | E34: y0 | F34: KLED | G34: kmod | H34: qd/kmod
A35: gd | C35: =1.35*B30 ->  | E35: 1 | F35: ständig | G35: 0.6 | H35: =IF(C35=0,0,C35/G35) -> 
A36: pd | C36: =1.5*F30 ->  | E36: 0.7 | F36: mittel | G36: =IF(F36="lang",0.7,IF(F36="mittel",0.8,IF(F36="kurz",0.9,IF(F36="sehr kurz",1.1,0)))) -> 0.8
A37: sd | C37: =1.5*J30 ->  | E37: 0.5 | F37: kurz | G37: =IF(F37="lang",0.7,IF(F37="mittel",0.8,IF(F37="kurz",0.9,IF(F37="sehr kurz",1.1,0)))) -> 0.9
A38: gd + pd | C38: =IF(C36=0,0,C35+C36) ->  | F38: =IF(MAXA($G$16:$G$17)=1.1,"sehr kurz",IF(MAXA($G$16:$G$17)=0.9,"kurz",IF(MAXA($G$16:$G$17)=0.8,"mittel",IF(MAXA($G$16:$G$17)=0.7,"lang")))) -> kurz | G38: 0.9 | H38: =IF(C38=0,0,IF(G38=0,0,C38/G38)) -> 
A39: gd + sd | C39: =IF(C37=0,0,C35+C37) ->  | F39: =IF(MAXA($G$16,$G$18)=1.1,"sehr kurz",IF(MAXA($G$16,$G$18)=0.9,"kurz",IF(MAXA($G$16,$G$18)=0.8,"mittel",IF(MAXA($G$16,$G$18)=0.7,"lang")))) -> kurz | G39: 0.9 | H39: =IF(C39=0,0,IF(G39=0,0,C39/G39)) -> 
A40: gd + pd + sd | C40: =IF(C37=0,0,IF(C36=0,0,C35+C36+E37*C37)) ->  | F40: =IF(MAXA($G$16:$G$18)=1.1,"sehr kurz",IF(MAXA($G$16:$G$18)=0.9,"kurz",IF(MAXA($G$16:$G$18)=0.8,"mittel",IF(MAXA($G$16:$G$18)=0.7,"lang")))) -> kurz | G40: 0.9 | H40: =IF(C40=0,0,IF(G40=0,0,C40/G40)) -> 
A41: gd + sd + pd | C41: =IF(C37=0,0,IF(C36=0,0,C35+C37+E37*C37)) ->  | F41: =IF(MAXA($G$16:$G$18)=1.1,"sehr kurz",IF(MAXA($G$16:$G$18)=0.9,"kurz",IF(MAXA($G$16:$G$18)=0.8,"mittel",IF(MAXA($G$16:$G$18)=0.7,"lang")))) -> kurz | G41: 0.9 | H41: =IF(C41=0,0,IF(G41=0,0,C41/G41)) ->  | J41: =MAXA(H35:I41) -> 
A43: Maßgebende Lastfallkombination: | F43: =IF(J41=H41,A41,IF(J41=H40,A40,IF(H39=J41,A39,IF(H38=J41,A38,IF(J41=H35,A35,Fehler))))) -> 
B45: qd | C45: = | D45: =IF(J41=H41,C41,IF(J41=H40,C40,IF(H39=J41,C39,IF(H38=J41,C38,IF(J41=H35,C35,Fehler))))) ->  | F45: [kN/m] | G45: mit | I45: kmod | J45: =IF(J41=H41,G41,IF(J41=H40,G40,IF(H39=J41,G39,IF(H38=J41,G38,IF(J41=H35,G35,Fehler))))) -> 
B46: qk | C46: = | D46: =(D45*1.25)/J45 ->  | F46: [kN/m]

Sheet Eingabe und Ergebnis
A1: Statik Dachscheibe | T1: =TODAY() -> 2023-11-20 | AK1: Statik Dachscheibe | BD1: =TODAY() -> 2023-11-20 | BU1: Statik Dachscheibe | CN1: =TODAY() -> 2023-11-20
AJ2: Seite 1/3 | BD2: Seite 2/3 | CN2: Seite 3/3
A3: 4 - Seitig gelagert | T3: Bauvorhaben: | X3: Beispiel Holzhaus | AK3: 4 - Seitig gelagert | BD3: Bauvorhaben: | BH3: =IF(X3="","",X3) -> Beispiel Holzhaus | BU3: 4 - Seitig gelagert | CN3: Bauvorhaben: | CR3: =IF(X3="","",X3) -> Beispiel Holzhaus
T4: Position: | X4: Beispiel 3. Stock Küche | BD4: Position: | BH4: =IF(X4="","",X4) -> Beispiel 3. Stock Küche | CN4: Position: | CR4: =IF(X4="","",X4) -> Beispiel 3. Stock Küche
T5: Beim Verwenden von Versionen älter 2021 oder Office 365 kann es zu Fehlermeldungen kommen.
A6: Landstraße 25, D - 79809 Weilheim - Bannholz | AK6: Landstraße 25, D - 79809 Weilheim - Bannholz | BU6: Landstraße 25, D - 79809 Weilheim - Bannholz
C8: Berechnung Dachscheibe nach Eurocode 5 - EN 1995 (März 2013) | AM8: =C8 -> Berechnung Dachscheibe nach Eurocode 5 - EN 1995 (März 2013) | BW8: =C8 -> Berechnung Dachscheibe nach Eurocode 5 - EN 1995 (März 2013)
C11: Geometrie | AM11: Zwischenschicht
C12: Scheibenbreite: | L12: bs | M12: = | N12: 10 | BW12: Nachweiss η * | CE12: Fall 1 : Wind + Stabilisierung | CM12: Fall 2 : Erdbeben + Stabilisierung
C13: Scheibenlänge: | L13: ls | M13: = | N13: 6 | AM13: Wie liegt das Element auf? | AZ13: Element liegt direkt auf | BW13: Quertragfähigkeit | CE13: ='Fall 1. Wind'!V192+'Fall 3. Stabilisierung'!AR192 -> 0.05181760204 | CM13: ='Fall 2. Erdbeben'!V192+'Fall 3. Stabilisierung'!AV192 -> 0
C14: Elementbreite: | K14: bElement | M14: = | N14: 0.625 | BW14: Momenttragfähigkeit LF1 | CE14: ='Fall 1. Wind'!V195+'Fall 3. Stabilisierung'!AR195 -> 0.02690897514 | CM14: ='Fall 2. Erdbeben'!V195+'Fall 3. Stabilisierung'!AV195 -> 0 | DQ14: Sonderhilfszelle Rippe_Q2i
C15: Nutzungsklasse Element | N15: 1 | AM15: Dicke der Zwischenschicht | AZ15: tzw | BA15: = | BB15: =IF(AZ13="Element liegt direkt auf",0,32) -> 0 | BE15: mm | BW15: Momenttragfähigkeit LF2 | CE15: ='Fall 1. Wind'!V207+'Fall 3. Stabilisierung'!AR207 -> 0.02564709596 | CM15: ='Fall 2. Erdbeben'!V207+'Fall 3. Stabilisierung'!AV207 -> 0 | DM15: Hilfszellen | DQ15: =IF(N20="Rippe_Q2i", "Rippe_Q2i", "standard") -> standard
C16: Baustoff: | N16: Brettschichtholz | AM16: Rohdichte der Zwischenschicht | AZ16: ρkzw | BA16: = | BB16: =IF(AZ13="Akustiklage liegt auf",0,IF(AZ13="Element liegt direkt auf",380,350)) -> 380 | BE16: kg/m³ | BW16: Schubtrag. des Koppelbretts | CE16: ='Fall 1. Wind'!AE241+'Fall 3. Stabilisierung'!AR242 -> 0.04464285714 | CM16: ='Fall 2. Erdbeben'!AE241+'Fall 3. Stabilisierung'!AV242 -> 0 | DM16: =N20 -> Rippe_Q3
C17: Festigkeitsklasse: | N17: GL 24h | BW17: Klammern in Koppelbrett | CE17: ='Fall 1. Wind'!AE251+'Fall 3. Stabilisierung'!AQ252 -> 0.5642361111 | CM17: ='Fall 2. Erdbeben'!AE251+'Fall 3. Stabilisierung'!AU252 -> 0 | DM17: =N22 -> Z26P0
BW18: Verbindungsmittel Randgurt | CE18: ='Fall 1. Wind'!Y360+'Fall 3. Stabilisierung'!Y360 -> 0.425620526 | CM18: ='Fall 2. Erdbeben'!Y360+'Fall 3. Stabilisierung'!Y360 -> 0 | DM18: =N23 -> 190
C19: Lignotrend Element | BW19: Verbindungsmittel Randgurt b=ls | CE19: ='Fall 1. Wind'!Y373+'Fall 3. Stabilisierung'!Y373 -> 0.425620526 | CM19: ='Fall 2. Erdbeben'!Y373+'Fall 3. Stabilisierung'!Y373 -> 0
C20: Element | N20: Rippe_Q3 | U20: Elementkonfiguration immer von oben nach unten vollständig durchgehen um Fehlermeldungen zu vermeiden! | AM20: Lasten | AP20: (Charakteristisch) | BW20: Verbindung Randgurt quer | CE20: ='Fall 1. Wind'!Y398+'Fall 3. Stabilisierung'!Y398 -> 0.2560775962 | CM20: ='Fall 2. Erdbeben'!Y398+'Fall 3. Stabilisierung'!Y398 -> 0
C21: Profiluntersicht | N21: akustik | BW21: Verformung LF1 | CE21: ='Fall 1. Wind'!Y458+'Fall 3. Stabilisierung'!Y458 -> 0.00354624088 | CM21: ='Fall 2. Erdbeben'!Y458+'Fall 3. Stabilisierung'!Y458 -> 0 | DM21: für Ausführungszeichungen
C22: Zusatzlage | N22: Z26P0 | AM22: Fall 1 :Wind | BG22: kmod | BH22: = | BI22: ='Fall 1. Wind'!S63 -> 1 | BW22: Verformung LF2 | CE22: ='Fall 1. Wind'!Y486+'Fall 3. Stabilisierung'!Y486 -> 0.5221323836 | CM22: ='Fall 2. Erdbeben'!Y486+'Fall 3. Stabilisierung'!Y486 -> 0
C23: Höhe | N23: 190 | AM23: Wind rechtwinkling zur Elementspannrichtung | BW23: * Ein Nachweis des Dachschubs muss gesondert geführt werden | DM23: =IF(OR(N20="Block_Q3",N20="Block_Q"),"Block",IF(OR(N20="Rippe_Q3",N20="Rippe_Q3_r25",N20="Rippe_Q3_r50"),"Rippe",IF(N20="Rippe_Q2i","Rippe Q2i","Akustik"))) -> Rippe | DO23: =DM23&" "&DM24&IF(AND(DM25="",DM26=""),""," "&DM25&DM26) -> Rippe 3S Ausklinkung
C24: Element: | K24: =SUBSTITUTE("LIGNO "&$N$20&" "&IF($N$21="geschlossen","","Akustik")&" WT"&" "&$N$22&" - "&$N$23,"_"," ") -> LIGNO Rippe Q3 Akustik WT Z26P0 - 190 | AM24: Winddruck | AY24: Wk,D,1 | AZ24: = | BA24: 4 | DM24: =Q42&"S" -> 3S
AM25: Windsog | AY25: Wk,S,1 | AZ25: = | BA25: 0.5 | DM25: =IF(AZ13=DM31,"Füllholz","") -> 
C26: Element Eigenschaften | AY26: qk,1 = Wk,D,1 + Wk,S,1 | AZ26: = | BA26: =BA25+BA24 -> 4.5 | DM26: =IF(AZ13=DM30,IF(OR(N22="Z0P0Nsi",N21="geschlossen"),"","Ausklinkung"),"") -> Ausklinkung
C27: Koppelbrett | J27: Material: | N27: Sperrholz
C28: Dicke | K28: dkop | M28: = | N28: 26 | AM28: Wind parallel zur Elementspannrichtung | DM28: TabZw3 | DO28: =IF(OR(N20="Akustik_klassik_Q",N20="Akustik_klassik_Q3"),"TabZw2",IF(N20="Rippe_Q2i","TabZw1","TabZw3")) -> TabZw3
C29: Klammern | J29: Klammertyp: | N29: 1,83 x 63mm | AM29: Winddruck | AY29: Wk,D,2 | AZ29: = | BA29: 2 | DM29: Akustiklage liegt auf
K30: ek | M30: = | N30: 100 | AM30: Windsog | AY30: Wk,S,2 | AZ30: = | BA30: 0.5 | DM30: Element liegt direkt auf
D31: EC 5, Tabelle 8.3 | J31: ek,min = 10d | M31: = | N31: =10*IF(N29="1,83 x 63mm",1.83,1.53) -> 18.3 | AY31: qk,2 = Wk,D,2 + Wk,S,2 | AZ31: = | BA31: =BA30+BA29 -> 2.5 | DM31: Füllholz liegt auf
C33: Randgurt | L33: b | M33: = | N33: 100 | AM33: Fall 2 :Erdbeben | BG33: kmod | BH33: = | BI33: ='Fall 2. Erdbeben'!T63 -> 1.1 | DM33: TabZw2
B34: (Schwelle quer zur Elemenspannrichtung) | L34: h | M34: = | N34: 240 | AM34: Erdbeben kraft | AY34: Aek | AZ34: = | BA34: 0 | BW34: =IF(AND(BW33<>"",BW33<$DG$124),BW33+1,"") ->  | BX34: =IF(BW34<>"",DL138,"") ->  | DM34: Element liegt direkt auf | DO34: Element liegt direkt auf
AM35: Kraft rechtwinkling zur Elementspannrichtung | DM35: Füllholz liegt auf
AY36: (Aek/ls) Aek,1 | AZ36: = | BA36: =BA34/ls -> 0
C37: Verbindungsmittel Deckenscheibe an Randgurt | AM37: Kraft parallel zur Elementspannrichtung
C38: Standard VM wählen: | Q38: Ja | W38: =IF(Q38="Ja ","Standard Verbindungsmittel mit Schrauben ","Personalisierte Verbindungsmittel mit Schrauben ") -> Standard Verbindungsmittel mit Schrauben | AY38: (Aek/bs) Aek,2 | AZ38: = | BA38: =BA34/bs -> 0
C39: Verbindung Tragfähigkeit | O39: Rlat,d | P39: =
C40: Durchmesser Schrauben | O40: dschr | P40: = | AM40: Fall 3 :Stabilisierung | BG40: kmod | BH40: = | BI40: ='Fall 3. Stabilisierung'!T63 -> 0.9
C41: Randgurt länge parallel 1) | O41: lr,ll | P41: = | Q41: 6 | W41: VM Tragfähig. | AB41: Rlat,d | AC41: = | AD41: ='Fall 1. Wind'!AO323 -> 3524.26612 | AM41: Klasse der Lasteinwirkungsdauer | BA41: Kurz
C42: Anzahl VM/Element | O42: η | P42: = | Q42: 3 | W42: =IF(Q42=4,"Randabstände prüfen!"," ") ->  | AM42: Kraft rechtwinkling zur Elementspannrichtung | BW42: =IF(DG123>0,"- Mögliche Lösung:","") -> 
C43: Abstand VM | O43: ev | P43: = | Q43: 0.25 | AM43: Stabilisierungslast | AY43: qd,1 | AZ43: = | BA43: 0
L44: EC 5, Tabelle 8.6 | O44: ev,min = 5d | P44: = | Q44: =IF(Q38="Nein",(Q40*5)/1000,(5*8)/1000) -> 0.04 | BX44: =IF(BX31="","",IF(BX31=Lösung!$B$3,Lösung!$B$5,IF(BX31=Lösung!$B$7,Lösung!$B$9,IF(BX31=Lösung!$B$11,Lösung!$B$13,IF(BX31=Lösung!$B$15,Lösung!$B$16,IF(BX31=Lösung!$B$15,Lösung!$B$16,IF(BX31=Lösung!$B$19,Lösung!$B$20,IF(BX31=Lösung!$B$27,Lösung!$B$28,IF(BX31=Lösung!$B$31,Lösung!$B$32,IF(BX31=Lösung!$B$23,Lösung!$B$24,Lösung!$B$36 )))))))))) -> 
C45: Seitenholz 1:Element | W45: Schrauben: | AM45: Kraft parallel zur Elementspannrichtung
C46: Dicke | O46: t1 | P46: = | Q46: =IF(N23="302 BV",302,IF(N23="309 BV",309,IF(N23="335 BV",335,IF(N23="355 BV",355,IF(N23="375 BV",375,IF(N23="395 BV",395,IF(N23="415 BV",415,IF(N23="435 BV",435,N23))))))))-BB15 -> 190 | W46: Firma: | AC46: Würth | AM46: Stabilisierungslast | AY46: qs,2 | AZ46: = | BA46: 0 | BX46: =IF(BX32="","",IF(BX32=Lösung!$B$3,Lösung!$B$5,IF(BX32=Lösung!$B$7,Lösung!$B$9,IF(BX32=Lösung!$B$11,Lösung!$B$13,IF(BX32=Lösung!$B$15,Lösung!$B$16,IF(BX32=Lösung!$B$15,Lösung!$B$16,IF(BX32=Lösung!$B$19,Lösung!$B$20,IF(BX32=Lösung!$B$27,Lösung!$B$28,IF(BX32=Lösung!$B$31,Lösung!$B$32,IF(BX32=Lösung!$B$23,Lösung!$B$24,Lösung!$B$36 )))))))))) -> 
C47: Rohdichte | O47: ρk1 | P47: = | Q47: 380 | W47: Art: | AC47: TeilgewindeScheibenkopf | BI47: Stabilisierungslast
C48: Dicke minimum | O48: t1 min | P48: = | Q48: =1.15*(2*(beta0/(beta0+1))^0.5+2)*(Myk/(fh1vk*d))^0.5 -> 51.51956905 | W48: Typ: | AC48: 8,0 x 300 | BI48: z.B. aus kippgefährdeten Unterzügen. | BX48: =IF(BX33="","",IF(BX33=Lösung!$B$3,Lösung!$B$5,IF(BX33=Lösung!$B$7,Lösung!$B$9,IF(BX33=Lösung!$B$11,Lösung!$B$13,IF(BX33=Lösung!$B$15,Lösung!$B$16,IF(BX33=Lösung!$B$15,Lösung!$B$16,IF(BX33=Lösung!$B$19,Lösung!$B$20,IF(BX33=Lösung!$B$27,Lösung!$B$28,IF(BX33=Lösung!$B$31,Lösung!$B$32,IF(BX33=Lösung!$B$23,Lösung!$B$24,Lösung!$B$36 )))))))))) -> 
W49: =IF(Q38="Ja ","Produkt:","") -> Produkt: | AD49: =IF(Q38="Ja ",IF(AC46="Spax","STAR Plus",IF(AC46="Würth","Assy Plus",""))) -> Assy Plus
C50: Seitenholz 2:Randgurt | I50: (Schwelle in Elementspannrichtung) | AB50: =IF(dicket2<0,"Achtung Schraube zu kurz !",IF(dicket1+dicket+dicket2H<lSch,"Achtung Schraube zu lang !","")) ->  | BW50: =BW34 ->  | BX50: =IF(BX34="","",IF(BX34=Lösung!$B$3,Lösung!$B$5,IF(BX34=Lösung!$B$7,Lösung!$B$9,IF(BX34=Lösung!$B$11,Lösung!$B$13,IF(BX34=Lösung!$B$15,Lösung!$B$16,IF(BX34=Lösung!$B$15,Lösung!$B$16,IF(BX34=Lösung!$B$19,Lösung!$B$20,IF(BX34=Lösung!$B$27,Lösung!$B$28,IF(BX34=Lösung!$B$31,Lösung!$B$32,IF(BX34=Lösung!$B$23,Lösung!$B$24,Lösung!$B$36 )))))))))) -> 
C51: Dicke | O51: t2 | P51: = | Q51: 240 | W51: Durchmesser: | AD51: =IF(AND(AC46="Würth",AC47="TeilgewindeSenkkopf"),VLOOKUP(AC48,'Verbindung Schrauben'!B6:H50,2,FALSE),IF(AND(AC46="Würth",AC47="TeilgewindeScheibenkopf"),VLOOKUP(AC48,'Verbindung Schrauben'!B61:H124,2,FALSE),IF(AND(AC46="Würth",AC47="VollgewindeSenkkopf"),VLOOKUP(AC48,'Verbindung Schrauben'!J6:P46,2,FALSE),IF(AND(AC46="Würth",AC47="VollgewindeZylinderkopf"),VLOOKUP(AC48,'Verbindung Schrauben'!J61:P111,2,FALSE),IF(AND(AC46="Spax",AC47="TeilgewindeSenkkopf_S"),VLOOKUP(AC48,'Verbindung Schrauben'!B161:H196,2,FALSE),IF(AND(AC46="Spax",AC47="TeilgewindeTellerkopf_S"),VLOOKUP(AC48,'Verbindung Schrauben'!J161:P211,2,FALSE),IF(AND(AC46="Rothoblaas",AC47="TeilgewindeTellerkopf_R"),VLOOKUP(AC48,'Verbindung Schrauben'!AE6:AK64,2,FALSE),IF(AND(AC46="Rothoblaas",AC47="TeilgewindeSenkkopf_R"),VLOOKUP(AC48,'Verbindung Schrauben'!AN6:AT101,2,FALSE),IF(AND(AC46="Rothoblaas",AC47="VollgewindeZylinderkopf_R"),VLOOKUP(AC48,'Verbindung Schrauben'!AW6:BC48,2,FALSE)))))))))) -> 8 | AR51: Rechtwinkling zur Elementspannrichtung (LF1) | AZ51: Parallel zur Elementspannrichtung (LF2)
C52: Rohdichte | O52: ρk2 | P52: = | Q52: 380 | W52: Länge: | AD52: =IF(AND(AC46="Würth",AC47="TeilgewindeSenkkopf"),VLOOKUP(AC48,'Verbindung Schrauben'!B6:H50,3,FALSE),IF(AND(AC46="Würth",AC47="TeilgewindeScheibenkopf"),VLOOKUP(AC48,'Verbindung Schrauben'!B61:H124,3,FALSE),IF(AND(AC46="Würth",AC47="VollgewindeSenkkopf"),VLOOKUP(AC48,'Verbindung Schrauben'!J6:P46,3,FALSE),IF(AND(AC46="Würth",AC47="VollgewindeZylinderkopf"),VLOOKUP(AC48,'Verbindung Schrauben'!J61:P111,3,FALSE),IF(AND(AC46="Spax",AC47="TeilgewindeSenkkopf_S"),VLOOKUP(AC48,'Verbindung Schrauben'!B161:H196,3,FALSE),IF(AND(AC46="Spax",AC47="TeilgewindeTellerkopf_S"),VLOOKUP(AC48,'Verbindung Schrauben'!J161:P211,3,FALSE),IF(AND(AC46="Rothoblaas",AC47="TeilgewindeTellerkopf_R"),VLOOKUP(AC48,'Verbindung Schrauben'!AE6:AK64,3,FALSE),IF(AND(AC46="Rothoblaas",AC47="TeilgewindeSenkkopf_R"),VLOOKUP(AC48,'Verbindung Schrauben'!AN6:AT101,3,FALSE),IF(AND(AC46="Rothoblaas",AC47="VollgewindeZylinderkopf_R"),VLOOKUP(AC48,'Verbindung Schrauben'!AW6:BC48,3,FALSE)))))))))) -> 300 | BW52: =BW35 ->  | BX52: =IF(BX35="","",IF(BX35=Lösung!$B$3,Lösung!$B$5,IF(BX35=Lösung!$B$7,Lösung!$B$9,IF(BX35=Lösung!$B$11,Lösung!$B$13,IF(BX35=Lösung!$B$15,Lösung!$B$16,IF(BX35=Lösung!$B$15,Lösung!$B$16,IF(BX35=Lösung!$B$19,Lösung!$B$20,IF(BX35=Lösung!$B$27,Lösung!$B$28,IF(BX35=Lösung!$B$31,Lösung!$B$32,IF(BX35=Lösung!$B$23,Lösung!$B$24,Lösung!$B$36 )))))))))) -> 
C53: Dicke minimum | O53: t2 min | P53: = | Q53: =1.15*(2*(beta0/(beta0+1))^0.5+2)*(Myk/(fh2vk*d))^0.5 -> 51.51956905 | W53: Gewinde: | AD53: =IF(AND(AC46="Würth",AC47="TeilgewindeSenkkopf"),VLOOKUP(AC48,'Verbindung Schrauben'!B6:H50,4,FALSE),IF(AND(AC46="Würth",AC47="TeilgewindeScheibenkopf"),VLOOKUP(AC48,'Verbindung Schrauben'!B61:H124,4,FALSE),IF(AND(AC46="Würth",AC47="VollgewindeSenkkopf"),VLOOKUP(AC48,'Verbindung Schrauben'!J6:P46,4,FALSE),IF(AND(AC46="Würth",AC47="VollgewindeZylinderkopf"),VLOOKUP(AC48,'Verbindung Schrauben'!J61:P111,4,FALSE),IF(AND(AC46="Spax",AC47="TeilgewindeSenkkopf_S"),VLOOKUP(AC48,'Verbindung Schrauben'!B161:H196,4,FALSE),IF(AND(AC46="Spax",AC47="TeilgewindeTellerkopf_S"),VLOOKUP(AC48,'Verbindung Schrauben'!J161:P211,4,FALSE),IF(AND(AC46="Rothoblaas",AC47="TeilgewindeTellerkopf_R"),VLOOKUP(AC48,'Verbindung Schrauben'!AE6:AK64,4,FALSE),IF(AND(AC46="Rothoblaas",AC47="TeilgewindeSenkkopf_R"),VLOOKUP(AC48,'Verbindung Schrauben'!AN6:AT101,4,FALSE),IF(AND(AC46="Rothoblaas",AC47="VollgewindeZylinderkopf_R"),VLOOKUP(AC48,'Verbindung Schrauben'!AW6:BC48,4,FALSE)))))))))) -> 100 | AM53: Wind | AR53: =BA26 -> 4.5 | AZ53: =BA31 -> 2.5
W54: Kopfdurchmesser: | AD54: =IF(AND(AC46="Würth",AC47="TeilgewindeSenkkopf"),VLOOKUP(AC48,'Verbindung Schrauben'!B6:H50,5,FALSE),IF(AND(AC46="Würth",AC47="TeilgewindeScheibenkopf"),VLOOKUP(AC48,'Verbindung Schrauben'!B61:H124,5,FALSE),IF(AND(AC46="Würth",AC47="VollgewindeSenkkopf"),VLOOKUP(AC48,'Verbindung Schrauben'!J6:P46,5,FALSE),IF(AND(AC46="Würth",AC47="VollgewindeZylinderkopf"),VLOOKUP(AC48,'Verbindung Schrauben'!J61:P111,5,FALSE),IF(AND(AC46="Spax",AC47="TeilgewindeSenkkopf_S"),VLOOKUP(AC48,'Verbindung Schrauben'!B161:H196,5,FALSE),IF(AND(AC46="Spax",AC47="TeilgewindeTellerkopf_S"),VLOOKUP(AC48,'Verbindung Schrauben'!J161:P211,5,FALSE),IF(AND(AC46="Rothoblaas",AC47="TeilgewindeTellerkopf_R"),VLOOKUP(AC48,'Verbindung Schrauben'!AE6:AK64,5,FALSE),IF(AND(AC46="Rothoblaas",AC47="TeilgewindeSenkkopf_R"),VLOOKUP(AC48,'Verbindung Schrauben'!AN6:AT101,5,FALSE),IF(AND(AC46="Rothoblaas",AC47="VollgewindeZylinderkopf_R"),VLOOKUP(AC48,'Verbindung Schrauben'!AW6:BC48,5,FALSE)))))))))) -> 22 | AM54: Erdbeben | AR54: =BA36 -> 0 | AZ54: =BA38 -> 0 | BW54: =BW36 ->  | BX54: =IF(BX36="","",IF(BX36=Lösung!$B$3,Lösung!$B$5,IF(BX36=Lösung!$B$7,Lösung!$B$9,IF(BX36=Lösung!$B$11,Lösung!$B$13,IF(BX36=Lösung!$B$15,Lösung!$B$16,IF(BX36=Lösung!$B$15,Lösung!$B$16,IF(BX36=Lösung!$B$19,Lösung!$B$20,IF(BX36=Lösung!$B$27,Lösung!$B$28,IF(BX36=Lösung!$B$31,Lösung!$B$32,IF(BX36=Lösung!$B$23,Lösung!$B$24,Lösung!$B$36 )))))))))) -> 
AM55: Stabilisierung | AR55: =BA43 -> 0 | AZ55: =BA46 -> 0 | BW55: =BW37 ->  | BX55: =IF(BX37="","",IF(BX37=Lösung!$B$3,Lösung!$B$5,IF(BX37=Lösung!$B$7,Lösung!$B$9,IF(BX37=Lösung!$B$11,Lösung!$B$13,IF(BX37=Lösung!$B$15,Lösung!$B$16,IF(BX37=Lösung!$B$15,Lösung!$B$16,IF(BX37=Lösung!$B$19,Lösung!$B$20,IF(BX37=Lösung!$B$27,Lösung!$B$28,IF(BX37=Lösung!$B$31,Lösung!$B$32,IF(BX37=Lösung!$B$23,Lösung!$B$24,Lösung!$B$36 )))))))))) -> 
BW56: =BW38 ->  | BX56: =IF(BX38="","",IF(BX38=Lösung!$B$3,Lösung!$B$5,IF(BX38=Lösung!$B$7,Lösung!$B$9,IF(BX38=Lösung!$B$11,Lösung!$B$13,IF(BX38=Lösung!$B$15,Lösung!$B$16,IF(BX38=Lösung!$B$15,Lösung!$B$16,IF(BX38=Lösung!$B$19,Lösung!$B$20,IF(BX38=Lösung!$B$27,Lösung!$B$28,IF(BX38=Lösung!$B$31,Lösung!$B$32,IF(BX38=Lösung!$B$23,Lösung!$B$24,Lösung!$B$36 )))))))))) -> 
BW57: =BW39 ->  | BX57: =IF(BX39="","",IF(BX39=Lösung!$B$3,Lösung!$B$5,IF(BX39=Lösung!$B$7,Lösung!$B$9,IF(BX39=Lösung!$B$11,Lösung!$B$13,IF(BX39=Lösung!$B$15,Lösung!$B$16,IF(BX39=Lösung!$B$15,Lösung!$B$16,IF(BX39=Lösung!$B$19,Lösung!$B$20,IF(BX39=Lösung!$B$27,Lösung!$B$28,IF(BX39=Lösung!$B$31,Lösung!$B$32,IF(BX39=Lösung!$B$23,Lösung!$B$24,Lösung!$B$36 )))))))))) -> 
C58: 1) Falls die Rangurtlänge kürzer als die Scheibenlänge ist! | BW58: =BW40 ->  | BX58: =IF(BX40="","",IF(BX40=Lösung!$B$3,Lösung!$B$5,IF(BX40=Lösung!$B$7,Lösung!$B$9,IF(BX40=Lösung!$B$11,Lösung!$B$13,IF(BX40=Lösung!$B$15,Lösung!$B$16,IF(BX40=Lösung!$B$15,Lösung!$B$16,IF(BX40=Lösung!$B$19,Lösung!$B$20,IF(BX40=Lösung!$B$27,Lösung!$B$28,IF(BX40=Lösung!$B$31,Lösung!$B$32,IF(BX40=Lösung!$B$23,Lösung!$B$24,Lösung!$B$36 )))))))))) -> 

Sheet Rippe Q2i (hidden)
A1: Scheibenkennwerte Rippe Q2i
A4: Anmerkung: | C4: Die Scheibenkennwerte beziehen sich auf einen Laufmeter Element. Die Elementbreite bE = 0,625m
A7: Elementhöhe | G7: 170 | H7: 190 | I7: 210 | J7: 230 | K7: 250 | L7: 270 | M7: 290 | N7: [mm]
A8: Rippe | B8: Q2i | C8: Z26P0_i120 | F8: VR,k,xy | G8: 96.98 | H8: 96.98 | I8: 96.98 | J8: 96.98 | K8: 96.98 | L8: 96.98 | M8: 96.98 | N8: [kN]
C9: GA Z26P0_i120 | F9: GAef | G9: 47442 | H9: 47442 | I9: 47442 | J9: 47442 | K9: 47442 | L9: 47442 | M9: 47442 | N9: [kN]
F10: Iz | G10: 193.945 | H10: 203.838 | I10: 213.73 | J10: 223.623 | K10: 233.515 | L10: 243.408 | M10: 253.3 | N10: [10^3*cm4]
C11: M Z26P0_i120 | F11: MR,k,z | G11: 126.29 | H11: 132.73 | I11: 139.17 | J11: 145.62 | K11: 152.06 | L11: 158.5 | M11: 164.94 | N11: [kNm]
C12: Z26P0_i160 | F12: VR,k,xy | G12: 96.98 | H12: 96.98 | I12: 96.98 | J12: 96.98 | K12: 96.98 | L12: 96.98 | M12: 96.98 | N12: [kN]
C13: GA Z26P0_i160 | F13: GAef | G13: 47442 | H13: 47442 | I13: 47442 | J13: 47442 | K13: 47442 | L13: 47442 | M13: 47442 | N13: [kN]
F14: Iz | G14: 214.205 | H14: 224.098 | I14: 233.991 | J14: 243.883 | K14: 253.776 | L14: 263.668 | M14: 273.561 | N14: [10^3*cm4]
C15: M Z26P0_i160 | F15: MR,k,z | G15: 139.48 | H15: 145.92 | I15: 152.37 | J15: 158.81 | K15: 165.25 | L15: 171.69 | M15: 178.13 | N15: [kNm]
C16: Z26P0_i200 | F16: VR,k,xy | I16: 96.98 | J16: 96.98 | K16: 96.98 | L16: 96.98 | M16: 96.98 | N16: [kN]
C17: GA Z26P0_i200 | F17: GAef | I17: 47442 | J17: 47442 | K17: 47442 | L17: 47442 | M17: 47442 | N17: [kN]
F18: Iz | I18: 254.251 | J18: 264.144 | K18: 274.036 | L18: 283.929 | M18: 293.821 | N18: [10^3*cm4]
C19: M Z26P0_i200 | F19: MR,k,z | I19: 165.56 | J19: 172 | K19: 178.44 | L19: 184.88 | M19: 191.33 | N19: [kNm]
A20: Rippe | B20: Q2i | C20: Z53P0_i120 | F20: VR,k,xy | H20: 104.19 | I20: 104.19 | J20: 104.19 | K20: 104.19 | L20: 104.19 | M20: 104.19 | N20: [kN]
C21: GA Z53P0_i120 | F21: GAef | H21: 58724 | I21: 58724 | J21: 58724 | K21: 58724 | L21: 58724 | M21: 58724 | N21: [kN]
F22: Iz | H22: 242.6 | I22: 252.493 | J22: 262.386 | K22: 272.278 | L22: 282.171 | M22: 292.063 | N22: [10^3*cm4]
C23: M Z53P0_i120 | F23: MR,k,z | H23: 157.97 | I23: 164.41 | J23: 170.86 | K23: 177.3 | L23: 183.74 | M23: 190.18 | N23: [kNm]
C24: Z53P0_i160 | F24: VR,k,xy | H24: 104.19 | I24: 104.19 | J24: 104.19 | K24: 104.19 | L24: 104.19 | M24: 104.19 | N24: [kN]
C25: GA Z53P0_i160 | F25: GAef | H25: 58724 | I25: 58724 | J25: 58724 | K25: 58724 | L25: 58724 | M25: 58724 | N25: [kN]
F26: Iz | H26: 262.861 | I26: 272.753 | J26: 282.646 | K26: 292.539 | L26: 302.431 | M26: 312.324 | N26: [10^3*cm4]
C27: M Z53P0_i160 | F27: MR,k,z | H27: 171.17 | I27: 177.61 | J27: 184.05 | K27: 190.49 | L27: 196.93 | M27: 203.37 | N27: [kNm]
C28: Z53P0_i200 | F28: VR,k,xy | I28: 104.19 | J28: 104.19 | K28: 104.19 | L28: 104.19 | M28: 104.19 | N28: [kN]
C29: GA Z53P0_i200 | F29: GAef | I29: 58724 | J29: 58724 | K29: 58724 | L29: 58724 | M29: 58724 | N29: [kN]
F30: Iz | I30: 293.014 | J30: 302.906 | K30: 312.799 | L30: 322.692 | M30: 332.584 | N30: [10^3*cm4]
C31: M Z53P0_i200 | F31: MR,k,z | I31: 190.8 | J31: 197.24 | K31: 203.68 | L31: 210.13 | M31: 216.57 | N31: [kNm]
A32: Rippe | B32: Q2i | C32: Z80P0_i120 | F32: VR,k,xy | J32: 104.19 | K32: 104.19 | L32: 104.19 | M32: 104.19 | N32: [kN]
C33: GA Z80P0_i120 | F33: GAef | J33: 70219 | K33: 70219 | L33: 70219 | M33: 70219 | N33: [kN]
F34: Iz | J34: 301.88 | K34: 311.772 | L34: 321.665 | M34: 331.557 | N34: [10^3*cm4]
C35: M Z80P0_i120 | F35: MR,k,z | J35: 196.57 | K35: 203.01 | L35: 209.46 | M35: 215.9 | N35: [kNm]
C36: Z80P0_i160 | F36: VR,k,xy | J36: 104.19 | K36: 104.19 | L36: 104.19 | M36: 104.19 | N36: [kN]
C37: GA Z80P0_i160 | F37: GAef | J37: 70219 | K37: 70219 | L37: 70219 | M37: 70219 | N37: [kN]
F38: Iz | J38: 322.14 | K38: 332.033 | L38: 341.925 | M38: 351.818 | N38: [10^3*cm4]
C39: M Z80P0_i160 | F39: MR,k,z | J39: 209.77 | K39: 216.21 | L39: 222.65 | M39: 229.09 | N39: [kNm]
C40: Z80P0_i200 | F40: VR,k,xy | J40: 104.19 | K40: 104.19 | L40: 104.19 | M40: 104.19 | N40: [kN]
C41: GA Z80P0_i200 | F41: GAef | J41: 70219 | K41: 70219 | L41: 70219 | M41: 70219 | N41: [kN]
F42: Iz | J42: 342.401 | K42: 352.293 | L42: 362.186 | M42: 372.078 | N42: [10^3*cm4]
C43: M Z80P0_i200 | F43: MR,k,z | J43: 222.96 | K43: 229.4 | L43: 235.84 | M43: 242.28 | N43: [kNm]

Sheet Fall 1. Wind
A1: Statik Dachscheibe | U1: Fall 1 : Wind | AL1: =TODAY() -> 2023-11-20
AL2: Seite 1/12
A3: 4 - Seitig gelagert | AL3: Bauvorhaben: | AR3: ='Eingabe und Ergebnis'!X3 -> Beispiel Holzhaus
AL4: Position: | AR4: ='Eingabe und Ergebnis'!X4 -> Beispiel 3. Stock Küche
A7: Landstraße 25, D - 79809 Weilheim - Bannholz
C9: Berechnung nach Eurocode 5 - EN 1995
C12: 1 | D12: Geometrie
AI13: 3 | AJ13: Lastfall
AH15: Wind rechtwinklig zur Elementspannrichtung
AH17: Winddruck | AS17: Wk,D,1 | AT17: = | AU17: ='Eingabe und Ergebnis'!BA24 -> 4
AH18: Windsog | AS18: Wk,S,1 | AT18: = | AU18: ='Eingabe und Ergebnis'!BA25 -> 0.5
AH19: qk,1 = | AS19: Wk,D,1 + Wk,S,1 | AT19: = | AU19: =AU18+AU17 -> 4.5
AH22: Wind parallel zur Elementspannrichtung
AH24: Winddruck | AS24: Wk,D,2 | AT24: = | AU24: ='Eingabe und Ergebnis'!BA29 -> 2
AH25: Windsog | AS25: Wk,S,2 | AT25: = | AU25: ='Eingabe und Ergebnis'!BA30 -> 0.5
AH26: qk,2 = | AS26: Wk,D,2 + Wk,S,2 | AT26: = | AU26: =AU25+AU24 -> 2.5
C28: Scheibenbreite | T28: bs | U28: = | V28: ='Eingabe und Ergebnis'!N12 -> 10
C29: Scheibenlänge | T29: ls | U29: = | V29: ='Eingabe und Ergebnis'!N13 -> 6
C30: Elementbreite | T30: bElement | U30: = | V30: ='Eingabe und Ergebnis'!N14 -> 0.625
C31: Anzahl der Elemente | T31: nElement | U31: = | V31: =V28/V30 -> 16
C33: 2 | D33: Holzeigenschaft
C35: Baustoff: | V35: ='Eingabe und Ergebnis'!N16 -> Brettschichtholz
C36: Festigkeitsklasse: | V36: ='Eingabe und Ergebnis'!N17 -> GL 24h
C37: Modifikationsbeiwert | T37: kmod | U37: = | V37: =IF(AND('Eingabe und Ergebnis'!BA43:BE43=0,'Eingabe und Ergebnis'!BA46:BE46=0),'Eingabe und Ergebnis'!BI22,IF(MIN('Eingabe und Ergebnis'!BI22,'Eingabe und Ergebnis'!BI40)=0,MAX('Eingabe und Ergebnis'!BI22,'Eingabe und Ergebnis'!BI40),MIN('Eingabe und Ergebnis'!BI22,'Eingabe und Ergebnis'!BI40))) -> 1
C38: Teilsicherheitsbeiwert | T38: γm | U38: = | V38: 1.3
T39: γG | U39: = | V39: 1.35
T40: γQ | U40: = | V40: 1.5
A43: Statik Dachscheibe | U43: Fall 1 : Wind | AL43: =TODAY() -> 2023-11-20
AL44: Seite 2/12
A45: 4 - Seitig gelagert | AL45: Bauvorhaben: | AR45: =AR3 -> Beispiel Holzhaus
AL46: Position: | AR46: =AR4 -> Beispiel 3. Stock Küche
A49: Landstraße 25, D - 79809 Weilheim - Bannholz
C51: Berechnung nach Eurocode 5 - EN 1995
D55: Nutzungsklasse | N55: ='Eingabe und Ergebnis'!N15 -> 1
D57: Klasse der Lasteinwirkungsdauer | N57: Kurz / sehr kurz
AC58: EC 5, Tabelle 3.1
D59: Zeit | N59: =VLOOKUP(N57,'kmod+gamma+Trag.keit'!C26:H31,2,FALSE) -> /
D61: Beispiel | N61: =VLOOKUP(N57,'kmod+gamma+Trag.keit'!C26:H31,3,FALSE) -> Wind
D63: Widerstandabänderung Koeffizient | N63: kmod = | S63: =IF(N55=3,VLOOKUP(N57,'kmod+gamma+Trag.keit'!C26:H31,6,FALSE),VLOOKUP(N57,'kmod+gamma+Trag.keit'!C26:H31,5,FALSE)) -> 1
A85: Statik Dachscheibe | U85: Fall 1 : Wind | AL85: =TODAY() -> 2023-11-20
AL86: Seite 3/12
A87: 4 - Seitig gelagert | AL87: Bauvorhaben: | AR87: =AR45 -> Beispiel Holzhaus
AL88: Position: | AR88: =AR46 -> Beispiel 3. Stock Küche
A91: Landstraße 25, D - 79809 Weilheim - Bannholz
C93: Berechnung nach Eurocode 5 - EN 1995
C96: 4 | D96: Ermittlung der Schittgrößen
C98: Kombinationen : | AI98: dabei | AL98: γG = 1,35
AL99: γQ = 1,50
C101: Horizontallasten: 1,50Qk
D103: Lastfall 1 (Rechtwinklig zur Elementspannrichtung) | AD103: Lastfall 2 (Parallel zur Elementspannrichtung)
C105: Horizontallasten | T105: qk,1 | U105: = | V105: =AU19 -> 4.5 | AD105: Horizontallasten | AS105: qk,2 | AT105: = | AU105: =AU26 -> 2.5
A127: Statik Dachscheibe | U127: Fall 1 : Wind | AL127: =TODAY() -> 2023-11-20
AL128: Seite 4/12
A129: 4 - Seitig gelagert | AL129: Bauvorhaben: | AR129: =AR87 -> Beispiel Holzhaus
AL130: Position: | AR130: =AR88 -> Beispiel 3. Stock Küche
A133: Landstraße 25, D - 79809 Weilheim - Bannholz
C135: Berechnung nach Eurocode 5 - EN 1995
AT139: dabei | AV139: a = | AW139: bs
AV140: b = | AW140: l,r,||*
AV141: c = | AW141: bs
AV142: d = | AW142: ls
C149: Horizontale Belastungen
C151: Moment Lastfall 1 | T151: Md,z,1 | U151: = | V151: =gammaqw*(qk1w*(ls*ls)/8) -> 30.375 | AD151: Moment Lastfall 2 | AS151: Md,z,2 | AT151: = | AU151: =gammaqw*(qk2w*(bs*bs)/8) -> 46.875
C152: Schub Lastfall 1 | T152: Vd,z,1 | U152: = | V152: =gammaqw*(qk1w*(ls)/2) -> 20.25 | AD152: Schub Lastfall 2 | AS152: Vd,z,2 | AT152: = | AU152: =gammaqw*(qk2w*(bs)/2) -> 18.75
C154: Aufgerkraft charakteristisch | T154: ak,1 | U154: = | V154: =V155/gammaqw -> 1.35 | AD154: Aufgerkraft charakteristisch | AS154: bk,2 | AT154: = | AU154: =AU155/gammaqw -> 2.083333333
C155: Auflagerkraft Design | T155: ad,1 | U155: = | V155: =vdz1w/bs -> 2.025 | AD155: Auflagerkraft Design | AS155: bd,2 | AT155: = | AU155: =vdz2w/ls -> 3.125
C157: Schubfluss [ Vd,z,1 / bs ] | T157: td,1 | U157: = | V157: =vdz1w/bs -> 2.025 | AD157: Schubfluss [ Vd,z,2 / ls ] | AS157: td,2 | AT157: = | AU157: =vdz2w/ls -> 3.125
C160: Lastfall 1 | AD160: Zugkraft beziehungsweise Druckkraft in den Randgurten quer zur Elementspannrichtung:
D163: ad,1 = | E163: =V155 -> 2.025 | AD163: Max Zd | AS163: Zd | AT163: = | AU163: =mdz2w/ls -> 7.8125
C165: Lastfall 2
S167: bd,2 = | T167: =AU155 -> 3.125
AF168: * Falls die Rangurtlänge kürzer als die Scheibenlänge ist!
A169: Statik Dachscheibe | U169: Fall 1 : Wind | AL169: =TODAY() -> 2023-11-20
AL170: Seite 5/12
A171: 4 - Seitig gelagert | AL171: Bauvorhaben: | AR171: =AR129 -> Beispiel Holzhaus
AL172: Position: | AR172: =AR130 -> Beispiel 3. Stock Küche
A175: Landstraße 25, D - 79809 Weilheim - Bannholz
C177: Berechnung nach Eurocode 5 - EN 1995
C180: Lignotrend Element: | V180: ='Eingabe und Ergebnis'!K24 -> LIGNO Rippe Q3 Akustik WT Z26P0 - 190
C182: Elementtragfähigkeit
C183: Schubtragfähigkeit charakteristisch | T183: VR,k,y | U183: = | V183: =_xlfn.XLOOKUP('Eingabe und Ergebnis'!DM18,INDIRECT("tab_H1"&'Eingabe und Ergebnis'!DM16),(_xlfn.XLOOKUP('Eingabe und Ergebnis'!DM17,INDIRECT("tab_Z1"&'Eingabe und Ergebnis'!DM16),INDIRECT("tab_"&'Eingabe und Ergebnis'!DM16)))) -> 49
C184: Schubtragfähigkeit design | T184: VR,d,y | U184: = | V184: =V183*V37/gammam -> 37.69230769 | AF184: (~gl Technishe Daten)
C185: Momenttragfähigkeit charasteristisch | T185: MR,k,z | U185: = | V185: =_xlfn.XLOOKUP('Eingabe und Ergebnis'!DM18,INDIRECT("tab_H1"&'Eingabe und Ergebnis'!DM16),(_xlfn.XLOOKUP("M "&'Eingabe und Ergebnis'!DM17,INDIRECT("tab_Z1"&'Eingabe und Ergebnis'!DM16),INDIRECT("tab_"&'Eingabe und Ergebnis'!DM16)))) -> 91.71544949
C186: Momenttragfähigkeit design | T186: MR,d,z | U186: = | V186: =MRky*V37/gammam -> 70.55034576
C189: 5 | D189: Nachweis
D191: Nachweis der Quertragfähigkeit
D192: ηv | T192: [ MAX(td1;td2)/(Vrdy/belement) ] | U192: = | V192: =MAX(tdein,tdzwei)/(Vrdy/belement) -> 0.05181760204 | AH192: =IF(V192>1,"> 1 NEIN !","< 1 OK !") -> < 1 OK !
D194: Nachweis der Momenttragfähigkeit beim Lastfall 1
D195: ηM1 | T195: [ Md,z,1/(nelement*MR,d,z) ] | U195: = | V195: =mdz1w/(nelement*MRdz) -> 0.02690897514 | AH195: =IF(V195>1,"> 1 NEIN !","< 1 OK !") -> < 1 OK !
D197: Nachweis der Momenttragfähigkeit beim Lastfall 2
D199: Zur Aufnahme des Momentes aus LF 2 dient der Randgurt quer zur Elementspannrichtung.
D201: Randgurt: | I201: BSH 24h
D203: Querschnittsfläche Randgurt | T203: Aef | U203: = | V203: =('Eingabe und Ergebnis'!N33*'Eingabe und Ergebnis'!N34)/100 -> 240
D204: Charakteristischer Wert der Zugfestigkeit | T204: ft,k | U204: = | V204: 1.65
D205: Bemessungswert der Zugfestigkeit | T205: ft,d | U205: = | V205: =ftk*V37/gammam -> 1.269230769
D207: ηM2 | T207: [ Zd/(Aef*ft,d) ] | U207: = | V207: =Zd/(Aef*(ftd)) -> 0.02564709596 | AH207: =IF(V207>1,"> 1 NEIN !","< 1 OK !") -> < 1 OK !
A211: Statik Dachscheibe | U211: Fall 1 : Wind | AL211: =TODAY() -> 2023-11-20
AL212: Seite 6/12
A213: 4 - Seitig gelagert | AL213: Bauvorhaben: | AR213: =AR171 -> Beispiel Holzhaus
AL214: Position: | AR214: =AR172 -> Beispiel 3. Stock Küche
A217: Landstraße 25, D - 79809 Weilheim - Bannholz
C219: Berechnung nach Eurocode 5 - EN 1995
C222: Nachweis der Koppelfuge
C233: Nachweis der Schubtragfähigkeit des Koppelbretts
D234: Material : | AC234: ='Eingabe und Ergebnis'!N27 -> Sperrholz
D235: Dicke Koppelbrett | AC235: d | AD235: = | AE235: ='Eingabe und Ergebnis'!N28 -> 26
D236: Charakteristischswert der Schubfestigkeit | AC236: fv,k | AD236: = | AE236: =IF(AC234="Nadelholz C 24",2,IF(AC234="Sperrholz",3.5,2.7)) -> 3.5
D237: Bemessungswert der Schubfestigkeit | AC237: fv,d | AD237: = | AE237: =fvk*V37/gammam -> 2.692307692
D238: Schubfluss in der Koppelbrett | AC238: tR,d,Koppelbrett | AD238: = | AE238: =fvd*dbrett -> 70
C240: Nachweis
D241: ηKoppelbrett | AC241: [ td,2 / tR,d,Koppelbrett ] | AD241: = | AE241: =tdzwei/AE238 -> 0.04464285714 | AP241: =IF(AE241>1,"> 1 NEIN !","< 1 OK !") -> < 1 OK !
C243: Nachweis der Klammern im Koppelbretts
D244: Gewählter Klammetyp : | AC244: ='Eingabe und Ergebnis'!N29 -> 1,83 x 63mm
D245: Gewählter Klammerabstand | AC245: eKlammer | AD245: = | AE245: ='Eingabe und Ergebnis'!N30 -> 100
D246: Durchmesser | AC246: dKl | AD246: = | AE246: =IF(AC244="1,83 x 63mm",1.83,1.53) -> 1.83
D247: Characteristische Wert der Klammerntragfähigkeit | AC247: Rk,klammer | AD247: = | AE247: =IF(AC244="1,83 x 63mm",0.72,0.55) -> 0.72
D248: Bemessung Wert der Klammerntragfähigkeit | AC248: Rd,klammer | AD248: = | AE248: =AE247*V37/gammam -> 0.5538461538
C250: Nachweis
D251: ηKlammer | AC251: [ td,2 /((Rd,Klammer* 1000)/eKlammer) ] | AD251: = | AE251: =tdzwei/((Rdklammerw*1000)/eklammerw) -> 0.5642361111 | AP251: =IF(AE251>1,"> 1 NEIN !","< 1 OK !") -> < 1 OK !
A253: Statik Dachscheibe | U253: Fall 1 : Wind | AL253: =TODAY() -> 2023-11-20
AL254: Seite 7/12
A255: 4 - Seitig gelagert | AL255: Bauvorhaben: | AR255: =AR213 -> Beispiel Holzhaus
AL256: Position: | AR256: =AR214 -> Beispiel 3. Stock Küche
A259: Landstraße 25, D - 79809 Weilheim - Bannholz
C261: Berechnung nach Eurocode 5 - EN 1995
D264: Nachweis der Verbindunggsmittel Deckenscheibe an Randgurt | AG264: Angaben zur Schraube laut
AG265: Firma | AV265: = | AW265: ='Eingabe und Ergebnis'!AC46 -> Würth
AG266: Art | AV266: = | AW266: ='Eingabe und Ergebnis'!AC47 -> TeilgewindeScheibenkopf
AG267: Typ | AV267: = | AW267: ='Eingabe und Ergebnis'!AC48 -> 8,0 x 300
AG268: Produkt | AV268: = | AW268: ='Eingabe und Ergebnis'!AD49 -> Assy Plus
AG269: Durchmesser | AU269: d | AV269: = | AW269: ='Eingabe und Ergebnis'!AD51 -> 8
AG270: Länge | AU270: lSch | AV270: = | AW270: ='Eingabe und Ergebnis'!AD52 -> 300
AG271: Gewinde | AU271: lG | AV271: = | AW271: ='Eingabe und Ergebnis'!AD53 -> 100
AG272: Kopfdurchmesser | AU272: dK | AV272: = | AW272: ='Eingabe und Ergebnis'!AD54 -> 22
AG273: Zugtragfähigkeit | AU273: Rt,u,k | AV273: = | AW273: =IF(AND(AW265="Würth",AW266="TeilgewindeSenkkopf"),VLOOKUP(AW267,'Verbindung Schrauben'!B6:H50,7,FALSE),IF(AND(AW265="Würth",AW266="TeilgewindeScheibenkopf"),VLOOKUP(AW267,'Verbindung Schrauben'!B61:H124,7,FALSE),IF(AND(AW265="Würth",AW266="VollgewindeSenkkopf"),VLOOKUP(AW267,'Verbindung Schrauben'!J6:P46,7,FALSE),IF(AND(AW265="Würth",AW266="VollgewindeZylinderkopf"),VLOOKUP(AW267,'Verbindung Schrauben'!J61:P111,7,FALSE),IF(AND(AW265="Spax",AW266="TeilgewindeSenkkopf_S"),VLOOKUP(AW267,'Verbindung Schrauben'!B161:H196,7,FALSE),IF(AND(AW265="Spax",AW266="TeilgewindeTellerkopf_S"),VLOOKUP(AW267,'Verbindung Schrauben'!J161:P211,7,FALSE),IF(AND(AW265="Rothoblaas",AW266="TeilgewindeTellerkopf_R"),VLOOKUP(AW267,'Verbindung Schrauben'!AE6:AK64,7,FALSE),IF(AND(AW265="Rothoblaas",AW266="TeilgewindeSenkkopf_R"),VLOOKUP(AW267,'Verbindung Schrauben'!AN6:AT101,7,FALSE),IF(AND(AW265="Rothoblaas",AW266="VollgewindeZylinderkopf_R"),VLOOKUP(AW267,'Verbindung Schrauben'!AW6:BC48,7,FALSE)))))))))) -> 21500
AG274: Fließmoiment | AU274: My,k | AV274: = | AW274: =IF(AND(AW265="Würth",AW266="TeilgewindeSenkkopf"),VLOOKUP(AW267,'Verbindung Schrauben'!B6:H50,6,FALSE),IF(AND(AW265="Würth",AW266="TeilgewindeScheibenkopf"),VLOOKUP(AW267,'Verbindung Schrauben'!B61:H124,6,FALSE),IF(AND(AW265="Würth",AW266="VollgewindeSenkkopf"),VLOOKUP(AW267,'Verbindung Schrauben'!J6:P46,6,FALSE),IF(AND(AW265="Würth",AW266="VollgewindeZylinderkopf"),VLOOKUP(AW267,'Verbindung Schrauben'!J61:P111,6,FALSE),IF(AND(AW265="Spax",AW266="TeilgewindeSenkkopf_S"),VLOOKUP(AW267,'Verbindung Schrauben'!B161:H196,6,FALSE),IF(AND(AW265="Spax",AW266="TeilgewindeTellerkopf_S"),VLOOKUP(AW267,'Verbindung Schrauben'!J161:P211,6,FALSE),IF(AND(AW265="Rothoblaas",AW266="TeilgewindeTellerkopf_R"),VLOOKUP(AW267,'Verbindung Schrauben'!AE6:AK64,6,FALSE),IF(AND(AW265="Rothoblaas",AW266="TeilgewindeSenkkopf_R"),VLOOKUP(AW267,'Verbindung Schrauben'!AN6:AT101,6,FALSE),IF(AND(AW265="Rothoblaas",AW266="VollgewindeZylinderkopf_R"),VLOOKUP(AW267,'Verbindung Schrauben'!AW6:BC48,6,FALSE)))))))))) -> 23000
AG275: Tragfähigkeitsklasse Kopf | AV275: = | AW275: 3
AG276: Tragfähigkeitsklasse Schaft | AV276: = | AW276: B
AG278: (Zulassung Würth und Zulassung Z-9.1-614)
AG279: (Zulassung Spax und Zulassung Z-9.1-519)
AG280: (Zulassung Rothoblass ETA-11/0030)
C281: Angaben zum Seitenholz 1: Element | AG281: Angaben zur Zwischenschicht [Blaß]
C282: Dicke | T282: t1 | U282: = | V282: ='Eingabe und Ergebnis'!Q46 -> 190 | AG282: Dicke | AU282: tzw | AV282: = | AW282: ='Eingabe und Ergebnis'!BB15 -> 0
C283: Rohdichte | T283: ρk1 | U283: = | V283: ='Eingabe und Ergebnis'!Q47 -> 380 | AG283: Rohdichte | AU283: ρkzw | AV283: = | AW283: ='Eingabe und Ergebnis'!BB16 -> 380
C284: Dicke minimum | T284: t1 min | U284: = | V284: ='Eingabe und Ergebnis'!Q48 -> 51.51956905 | AG284: Kraft-Faser-Winkel | AU284: αzw | AV284: = | AW284: 90
C285: Kraft-Faser-Winkel | T285: α1 | U285: = | V285: 90
C286: Eindringtiefe Gewinde [t1 - (lSch - lG) ] | T286: lef,1 | U286: = | V286: =IF((dicket1-(lSch-lG))<=0,0,dicket1-(lSch-lG)) -> 0 | AG286: bei Elementen mit Akustiklage muss die Abminderung durch eine Zwischenschicht nach Blaß berücksichtigt werden
C288: Angaben zum Seitenholz 2: Randgurt | AV288: EC 5, N. Anhang (NA.103) & (NA.104)
C289: Dicke | T289: t2,H | U289: = | V289: ='Eingabe und Ergebnis'!Q51 -> 240
C290: Rohdichte | T290: ρk2 | U290: = | V290: ='Eingabe und Ergebnis'!Q52 -> 380
C291: Dicke minimum | T291: t2 min | U291: = | V291: ='Eingabe und Ergebnis'!Q53 -> 51.51956905
C292: Kraft-Faser-Winkel | T292: α2 | U292: = | V292: 90
C293: Eindringtiefe Schraube [ lSch - t1 - tzw ] | T293: t2 | U293: = | V293: =lSch-(dicket1+dicket) -> 110
C294: Eindringtiefe Gewinde [ Wenn (lG < t2; lG , t2 ) ] | T294: lef,2 | U294: = | V294: =IF(lG<dicket2,lG,dicket2) -> 100
A295: Statik Dachscheibe | U295: Fall 1 : Wind | AL295: =TODAY() -> 2023-11-20
AL296: Seite 8/12
A297: 4 - Seitig gelagert | AL297: Bauvorhaben: | AR297: =AR255 -> Beispiel Holzhaus
AL298: Position: | AR298: =AR256 -> Beispiel 3. Stock Küche
A301: Landstraße 25, D - 79809 Weilheim - Bannholz
C303: Berechnung nach Eurocode 5 - EN 1995
C306: Tragfähigkeit auf Abscheren je Scherfuge/ [Johannsengleichungen] | AM306: Schubtragfähigkeit VM*2 | AU306: γm,lat | AY306: Bruchtyp
C307: Koeffizient | W307: k90 | X307: = | Y307: =IF(d<8,1.35+0.015*d,1) -> 1 | AM307: R1 | AN307: = | AO307: =((fh2vk*beta0)/(1+beta0))*(-2*dicket-dicket1-dicket2+((4+delta+(delta/beta0))*dicket^2+(2+1/beta0)*dicket1^2+(2+beta0)*dicket2^2+4*dicket*dicket2+4*dicket*dicket1+2*dicket1*dicket2)^0.5)*d -> 8799.343846 | AU307: 1.3 | AY307: Holz
C308: Lochleibungsfestigkeit in Seitenholz 1 | W308: fh,1,v,k | X308: = | Y308: =(0.082*d^-0.3*rohk1)/(koefficientk90*(SIN(RADIANS(V285))^2)+(COS(RADIANS(V285))^2)) -> 16.69823055 | AM308: R2 | AN308: = | AO308: =fh2vk*d*dicket2 -> 14694.44288 | AU308: 1.3 | AY308: Holz
C309: Lochleibungsfestigkeit in Zwischenschicht | W309: fh,zw,v,k | X309: = | Y309: =(0.082*d^-0.3*rohkzw)/(koefficientk90*(SIN(alphazw)^2)+(COS(alphazw)^2)) -> 16.69823055 | AM309: R3 | AN309: = | AO309: =fh1vk*d*dicket1 -> 25381.31043 | AU309: 1.3 | AY309: Holz
C310: Lochleibungsfestigkeit in Seitenholz 2 | W310: fh,2,v,k | X310: = | Y310: =(0.082*d^-0.3*rohk2)/(koefficientk90*(SIN(RADIANS(V292))^2)+(COS(RADIANS(V292))^2)) -> 16.69823055 | AM310: R4 | AN310: = | AO310: =fh2vk*(beta0/(0.5+beta0))*(-dicket-dicket2/2+(dicket^2+dicket*dicket2+dicket2^2/2+delta*dicket^2/(2*beta0)+dicket2^2/(2*beta0)+2*Myk/(fh2vk*d)+delta*dicket^2/4+Myk/(fh2vk*d))^0.5)*d -> 5105.053524 | AU310: 1.2 | AY310: Holz/Stahl
C311: Koeffizient beta0 = fh,1,k / fh,2,k | W311: β0 | X311: = | Y311: =fh1vk/fh2vk -> 1 | AM311: R5 | AN311: = | AO311: =fh2vk*(beta0/(0.5+beta0))*(-dicket-dicket1/2+((1+delta/(4*beta0)+delta/2)*dicket^2+(0.5+0.5*beta0)*dicket1^2+dicket*dicket1+(Myk/(fh2vk*d*beta0))+(2*Myk/(fh2vk*d)))^0.5)*d -> 8581.059504 | AU311: 1.2 | AY311: Holz/Stahl
C312: Koeffizient beta1 = fh,2,k / fh,zw,k | W312: β1 | X312: = | Y312: =IF(fhzwvk=0,0,fh2vk/fhzwvk) -> 1 | AM312: R6 | AN312: = | AO312: =fh2vk*1/(1+beta0)*(-beta0*dicket+(beta0^2*dicket^2+4*beta0*(beta0+1)*Myk/(fh2vk*d)+beta0*(beta0+1)/2*delta*dicket^2)^0.5)*d -> 2478.900732 | AU312: 1.1 | AY312: Stahl
C313: Koeffizient beta2 = fh,zw,k / fh,1,k | W313: β2 | X313: = | Y313: =fhzwvk/fh1vk -> 1 | AM313: R7 | AN313: = | AO313: =fh1vk*dicket1*d/(2+beta2)*(((2*beta2)*(1+beta2)+4*beta2*(2+beta2)*Myk/(fh1vk*dicket1^2*d))^0.5-beta2) -> 8581.059504 | AU313: 1.2 | AY313: Holz/Stahl
C314: Koeffizient delta = fh,zw,k / fh,1,k | W314: δ | X314: = | Y314: =fhzwvk/fh1vk -> 1 | AM314: R8 | AN314: = | AO314: =(2*beta2/(1+beta2))^0.5*(2*Myk*fh1vk*d)^0.5 -> 2478.900732 | AU314: 1.1 | AY314: Stahl
C315: Modifikationsbeiwert VM | W315: kmod,lat | X315: = | Y315: =V37 -> 1 | AM315: R9 | AN315: = | AO315: =fhzwvk*dicket2*d/(1+2*beta1)*((2*beta1^2*(1+beta1)+4*beta1*(1+2*beta1)*Myk/(dicket2^2*d*IF(fhzwvk=0,1,fhzwvk)))^0.5-beta1) -> 5105.053524 | AU315: 1.2 | AY315: Holz/Stahl | BG315: Rkmin | BH315: γm,lat
C316: Teilsicherheitsbeiwert VM | W316: γm,lat | X316: = | Y316: =BH316 -> 1.1 | AM316: R10 | AN316: = | AO316: =(2*beta1/(1+beta1))^0.5*(2*Myk*fhzwvk*d)^0.5 -> 2478.900732 | AU316: 1.1 | AY316: Stahl | BG316: =IF(rohkzw=0,MIN(AO307:AT312),MIN(AO313:AT316)) -> 2478.900732 | BH316: =VLOOKUP(BG316,AO307:AX316,7,FALSE) -> 1.1
C318: Schubtragfähigkeit = min(R1-R10) | W318: Rlat,k | X318: = | Y318: =IF(rohkzw=0,MIN(BG318:BG323),MIN(BG318:BG327)) -> 2478.900732 | AM318: *2 Hypothese: Verwendung von Holz vorgebohrt | BG318: =ABS(AO307) -> 8799.343846
BG319: =ABS(AO308) -> 14694.44288
C320: Tragfähigkeit in Richtung der Stiftachse | BG320: 25381.31043
C321: Seitenholz 1: Element | AK321: Tragfähigkeit in Richtung der Scherfuge | BG321: 5105.053524
C322: Char. Wert des Ausziehparameters | W322: f1,k | X322: = | Y322: =80*10^-6*rohk1^2 -> 11.552 | AK322: Char. Wert = (Rlat,k + ΔRk) . kmod,lat / γM,lat | BG322: 8581.059504
C323: Char. Wert des Kopfdurchziehparameters | W323: f2,k | X323: = | Y323: =80*10^-6*rohk1^2 -> 11.552 | AM323: Rlat,d | AN323: = | AO323: =(Rlatk+deltaRk)*(kmodlat/gammamlat) -> 3524.26612 | BG323: 2478.900732
C324: Schraubenkopf | W324: Rax,k,Kopf | X324: = | Y324: =f2k*dk^2 -> 5591.168 | BG324: 8581.059504
C325: Gewindeteil | W325: Rax,k,Gew | X325: = | Y325: =(f1k*langeef1*d)/((SIN(RADIANS(V285)))^2+(4/3)*(COS(RADIANS(V285)))^2) -> 0 | AJ325: dabei: | BG325: 2478.900732
C326: Tragfähigkeit Seitenholz 1 | W326: Rax,α,Rk,1 | X326: = | Y326: =MAX(Y324:AD325) -> 5591.168 | BG326: 5105.053524
BG327: 2478.900732
C328: Seitenholz 2: Randgurt
C329: Char. Wert des Ausziehparameters | W329: f1,k | X329: = | Y329: =80*10^-6*rohk2^2 -> 11.552
C330: Char. Wert des Kopfdurchziehparameters | W330: f2,k | X330: = | Y330: =80*10^-6*rohk2^2 -> 11.552
C331: Tragfähigkeit Seitenholz 2 | W331: Rax,α,Rk,2 | X331: = | Y331: =f1k*langeef2*(d/(((SIN(RADIANS(V292)))^2)+(4/3)*((COS(RADIANS(V292)))^2))) -> 9241.6
C333: Tragfähigkeit in Richtung der Stiftachse | W333: Rax,α,Rk | X333: = | Y333: =MIN(Y326,Y331) -> 5591.168
AJ334: EC 5, 8.7 formeln (8.40a) & (8.40b)
C335: Seilwirkung = MIN ( Rlat,k ; Rax,k/4*1 ) | W335: ΔRk | X335: = | Y335: =MIN(Y318,Y333/4) -> 1397.792
C336: *1 weil Φschrauben > 8mm
A337: Statik Dachscheibe | U337: Fall 1 : Wind | AL337: =TODAY() -> 2023-11-20
AL338: Seite 9/12
A339: 4 - Seitig gelagert | AL339: Bauvorhaben: | AR339: =AR297 -> Beispiel Holzhaus
AL340: Position: | AR340: =AR298 -> Beispiel 3. Stock Küche
A343: Landstraße 25, D - 79809 Weilheim - Bannholz
C345: Berechnung nach Eurocode 5 - EN 1995
C348: Nachweis der Verbindungsmittel Scheibe an Randgurt parallel zur Elementspannrichtung
C349: Tragfähigkeit in Richtung der Scherfuge | W349: Rlat,d | X349: = | Y349: =AO323 -> 3524.26612
C351: Länge Rangurt parallel zur Elementspannrichtung* | W351: lr,|| | X351: = | Y351: ='Eingabe und Ergebnis'!Q41 -> 6
C352: Abstand der Verbindungsmittel | W352: eV,|| | X352: = | Y352: ='Eingabe und Ergebnis'!Q43 -> 0.25
C354: Kraft = Max( Wk,D,1 ; Wk,S,1 ) | W354: Wk,1 | X354: = | Y354: =MAX(AU17:AZ18) -> 4
... 72 more rows

Sheet Fall 2. Erdbeben
A1: Statik Dachscheibe | U1: Fall 2 : Erdbeben | AL1: =TODAY() -> 2023-11-20
AL2: Seite 1/12
A3: 4 - Seitig gelagert | AL3: Bauvorhaben: | AR3: ='Eingabe und Ergebnis'!X3 -> Beispiel Holzhaus
AL4: Position: | AR4: ='Eingabe und Ergebnis'!X4 -> Beispiel 3. Stock Küche
A7: Landstraße 25, D - 79809 Weilheim - Bannholz
C9: Berechnung nach Eurocode 5 - EN 1995
C12: 1 | D12: Geometrie
AI13: 3 | AJ13: Lastfall
AH15: Kraft rechtwinklig zur Elementspannrichtung
AH17: Erdbeben Kraft | AS17: Aek | AT17: = | AU17: ='Eingabe und Ergebnis'!BA34 -> 0
AH18: Verteilte Kraft | AS18: Aek,1 = Aek/ls | AT18: = | AU18: =AU17/ls -> 0
AH22: Kraft parallel zur Elementspannrichtung
AH24: Erdbeben Kraft | AS24: Aek | AT24: = | AU24: ='Eingabe und Ergebnis'!BA34 -> 0
AH25: Verteilte Kraft | AS25: Aek,2 = Aek/bs | AT25: = | AU25: =AU24/bs -> 0
C28: Scheibenbreite | T28: bs | U28: = | V28: ='Eingabe und Ergebnis'!N12 -> 10
C29: Scheibenlänge | T29: ls | U29: = | V29: ='Eingabe und Ergebnis'!N13 -> 6
C30: Elementbreite | T30: bElement | U30: = | V30: ='Eingabe und Ergebnis'!N14 -> 0.625
C31: Anzahl der Elemente | T31: nElement | U31: = | V31: =V28/V30 -> 16
C33: 2 | D33: Holzeigenschaft
C35: Baustoff: | V35: ='Eingabe und Ergebnis'!N16 -> Brettschichtholz
C36: Festigkeitsklasse: | V36: ='Eingabe und Ergebnis'!N17 -> GL 24h
C37: Modifikationsbeiwert | T37: kmod | U37: = | V37: =IF(AND('Eingabe und Ergebnis'!BA43:BE43=0,'Eingabe und Ergebnis'!BA46:BE46=0),'Eingabe und Ergebnis'!BI33,IF(MIN('Eingabe und Ergebnis'!BI33,'Eingabe und Ergebnis'!BI40)=0,MAX('Eingabe und Ergebnis'!BI33,'Eingabe und Ergebnis'!BI40),MIN('Eingabe und Ergebnis'!BI33,'Eingabe und Ergebnis'!BI40))) -> 1.1
C38: Teilsicherheitsbeiwert | T38: γm | U38: = | V38: 1
T39: γQ | U39: = | V39: 1
A43: Statik Dachscheibe | U43: =U1 -> Fall 2 : Erdbeben | AL43: =TODAY() -> 2023-11-20
AL44: Seite 2/12
A45: 4 - Seitig gelagert | AL45: Bauvorhaben: | AR45: =AR3 -> Beispiel Holzhaus
AL46: Position: | AR46: =AR4 -> Beispiel 3. Stock Küche
A49: Landstraße 25, D - 79809 Weilheim - Bannholz
C51: Berechnung nach Eurocode 5 - EN 1995
D55: Nutzungsklasse | N55: ='Eingabe und Ergebnis'!N15 -> 1
D57: Klasse der Lasteinwirkungsdauer | N57: Sehr Kurz
AC58: EC 5, Tabelle 3.1
D59: Zeit | N59: =VLOOKUP(N57,'kmod+gamma+Trag.keit'!C26:H31,2,FALSE) -> /
D61: Beispiel | N61: =VLOOKUP(N57,'kmod+gamma+Trag.keit'!C26:H31,3,FALSE) -> außergewöhnliche Einwirkung
D63: Widerstandabänderung Koeffizient | N63: kmod = | T63: =IF(N55=3,VLOOKUP(N57,'kmod+gamma+Trag.keit'!C26:H31,6,FALSE),VLOOKUP(N57,'kmod+gamma+Trag.keit'!C26:H31,5,FALSE)) -> 1.1
A85: Statik Dachscheibe | U85: =U1 -> Fall 2 : Erdbeben | AL85: =TODAY() -> 2023-11-20
AL86: Seite 3/12
A87: 4 - Seitig gelagert | AL87: Bauvorhaben: | AR87: =AR45 -> Beispiel Holzhaus
AL88: Position: | AR88: =AR46 -> Beispiel 3. Stock Küche
A91: Landstraße 25, D - 79809 Weilheim - Bannholz
C93: Berechnung nach Eurocode 5 - EN 1995
C96: 4 | D96: Ermittlung der Schittgrößen
C98: Kombinationen : | U98: EC 8 : Formel (3.17) | AI98: dabei | AL98: ψ2 = 0,30
C101: Horizontallasten: Qk | AI101: γm = 1,00 deshalb Aek = Aed
D103: Lastfall 1 (Rechtwinklig zur Elementspannrichtung) | AD103: Lastfall 2 (Parallel zur Elementspannrichtung)
C105: Horizontallasten | T105: Aed,1 | U105: = | V105: =AU18 -> 0 | AD105: Horizontallasten | AS105: Aed,2 | AT105: = | AU105: =AU25 -> 0
A127: Statik Dachscheibe | U127: =U1 -> Fall 2 : Erdbeben | AL127: =TODAY() -> 2023-11-20
AL128: Seite 4/12
A129: 4 - Seitig gelagert | AL129: Bauvorhaben: | AR129: =AR87 -> Beispiel Holzhaus
AL130: Position: | AR130: =AR88 -> Beispiel 3. Stock Küche
A133: Landstraße 25, D - 79809 Weilheim - Bannholz
C135: Berechnung nach Eurocode 5 - EN 1995
AT139: dabei | AV139: a = | AW139: bs
AV140: b = | AW140: l,r,||*
AV141: c = | AW141: bs
AV142: d = | AW142: ls
C149: Horizontale Belastungen
C151: Moment Lastfall 1 | T151: Md,z,1 | U151: = | V151: =gammaqerd*(Aed1erd*(ls*ls)/8) -> 0 | AD151: Moment Lastfall 2 | AS151: Md,z,2 | AT151: = | AU151: =gammaqerd*(Aed2erd*(bs*bs)/8) -> 0
C152: Schub Lastfall 1 | T152: Vd,z,1 | U152: = | V152: =gammaqerd*(Aed1erd*(ls)/2) -> 0 | AD152: Schub Lastfall 2 | AS152: Vd,z,2 | AT152: = | AU152: =gammaqerd*(Aed2erd*(bs)/2) -> 0
C154: Aufgerkraft charakteristisch | T154: ak,1 | U154: = | V154: =V155/gammaqerd -> 0 | AD154: Aufgerkraft charakteristisch | AS154: bk,2 | AT154: = | AU154: =AU155/gammaqerd -> 0
C155: Auflagerkraft Design | T155: ad,1 | U155: = | V155: =vdz1erd/bs -> 0 | AD155: Auflagerkraft Design | AS155: bd,2 | AT155: = | AU155: =vdz2erd/ls -> 0
C157: Schubfluss [ Vd,z,1 / bs ] | T157: td,1 | U157: = | V157: =vdz1erd/bs -> 0 | AD157: Schubfluss [ Vd,z,2 / ls ] | AS157: td,2 | AT157: = | AU157: =vdz2erd/ls -> 0
C160: Lastfall 1 | AD160: Zugkraft beziehungsweise Druckkraft in den Randgurten quer zur Elementspannrichtung:
D163: ad,1 = | E163: =V155 -> 0 | AD163: Max Zd | AS163: Zd | AT163: = | AU163: =mdz2erd/ls -> 0
C165: Lastfall 2
S167: bd,2 = | T167: =AU155 -> 0
AG168: * Falls die Rangurtlänge kürzer als die Scheibenlänge ist!
A169: Statik Dachscheibe | U169: =U1 -> Fall 2 : Erdbeben | AL169: =TODAY() -> 2023-11-20
AL170: Seite 5/12
A171: 4 - Seitig gelagert | AL171: Bauvorhaben: | AR171: =AR129 -> Beispiel Holzhaus
AL172: Position: | AR172: =AR130 -> Beispiel 3. Stock Küche
A175: Landstraße 25, D - 79809 Weilheim - Bannholz
C177: Berechnung nach Eurocode 5 - EN 1995
C180: Lignotrend Element: | V180: ='Eingabe und Ergebnis'!K24 -> LIGNO Rippe Q3 Akustik WT Z26P0 - 190
C182: Elementtragfähigkeit
C183: Schubtragfähigkeit charakteristisch | T183: VR,k,y | U183: = | V183: =_xlfn.XLOOKUP('Eingabe und Ergebnis'!DM18,INDIRECT("tab_H1"&'Eingabe und Ergebnis'!DM16),(_xlfn.XLOOKUP('Eingabe und Ergebnis'!DM17,INDIRECT("tab_Z1"&'Eingabe und Ergebnis'!DM16),INDIRECT("tab_"&'Eingabe und Ergebnis'!DM16)))) -> 49
C184: Schubtragfähigkeit design | T184: VR,d,y | U184: = | V184: =V183*kmoderd/gammam -> 41.46153846 | AF184: (~gl Technishe Daten)
C185: Momenttragfähigkeit charasteristisch | T185: MR,k,y | U185: = | V185: =_xlfn.XLOOKUP('Eingabe und Ergebnis'!DM18,INDIRECT("tab_H1"&'Eingabe und Ergebnis'!DM16),(_xlfn.XLOOKUP("M "&'Eingabe und Ergebnis'!DM17,INDIRECT("tab_Z1"&'Eingabe und Ergebnis'!DM16),INDIRECT("tab_"&'Eingabe und Ergebnis'!DM16)))) -> 91.71544949
C186: Momenttragfähigkeit design | T186: MR,d,y | U186: = | V186: =V185*kmoderd/gammam -> 77.60538034
C189: 5 | D189: Nachweis
D191: Nachweis der Quertragfähigkeit
D192: ηv | T192: [ MAX(td1;td2)/(Vrdy/belement) ] | U192: = | V192: =MAX(tdeinerd,tdzweierd)/(Vrdy/belement) -> 0 | AH192: =IF(V192>1,"> 1 NEIN !","< 1 OK !") -> < 1 OK !
D194: Nachweis der Momenttragfähigkeit beim Lastfall 1
D195: ηM1 | T195: [ Md,z,1/(nelement*MR,d,z) ] | U195: = | V195: =mdz1erd/(nelement*MRdz) -> 0 | AH195: =IF(V195>1,"> 1 NEIN !","< 1 OK !") -> < 1 OK !
D197: Nachweis der Momenttragfähigkeit beim Lastfall 2
D199: Zur Aufnahme des Momentes aus LF 2 dient der Randgurt quer zur Elementspannrichtung.
D201: Randgurt: BSH 24h
D203: Querschnittsfläche Randgurt | T203: Aef | U203: = | V203: =('Eingabe und Ergebnis'!N33*'Eingabe und Ergebnis'!N34)/100 -> 240
D204: Charakteristischer Wert der Zugfestigkeit | T204: ft,k | U204: = | V204: 1.65
D205: Bemessungswert der Zugfestigkeit | T205: ft,d | U205: = | V205: =V204*kmoderd/gammam -> 1.396153846
D207: ηM2 | T207: [ Zd/(Aef*ft,d) ] | U207: = | V207: =zderd/(Aef*(ftd)) -> 0 | AH207: =IF(V207>1,"> 1 NEIN !","< 1 OK !") -> < 1 OK !
A211: Statik Dachscheibe | U211: =U1 -> Fall 2 : Erdbeben | AL211: =TODAY() -> 2023-11-20
AL212: Seite 6/12
A213: 4 - Seitig gelagert | AL213: Bauvorhaben: | AR213: =AR171 -> Beispiel Holzhaus
AL214: Position: | AR214: =AR172 -> Beispiel 3. Stock Küche
A217: Landstraße 25, D - 79809 Weilheim - Bannholz
C219: Berechnung nach Eurocode 5 - EN 1995
C222: Nachweis der Koppelfuge
C233: Nachweis der Schubtragfähigkeit des Koppelbretts
D234: Material : | AC234: ='Eingabe und Ergebnis'!N27 -> Sperrholz
D235: Dicke Koppelbrett | AC235: d | AD235: = | AE235: ='Eingabe und Ergebnis'!N28 -> 26
D236: Characteristischswert der Schubfestigkeit | AC236: fv,k | AD236: = | AE236: =IF(AC234="Nadelholz C 24",2,IF(AC234="Sperrholz",3.5,2.7)) -> 3.5
D237: Bemessungswert der Schubfestigkeit | AC237: fv,d | AD237: = | AE237: =AE236*kmoderd/gammam -> 2.961538462
D238: Schubfluss in der Koppelbrett | AC238: tR,d,Koppelbrett | AD238: = | AE238: =fvd*dbrett -> 70
C240: Nachweis
D241: ηKoppelbrett | AC241: [ td,2 / tR,d,Koppelbrett ] | AD241: = | AE241: =tdzweierd/AE238 -> 0 | AP241: =IF(AE241>1,"> 1 NEIN !","< 1 OK !") -> < 1 OK !
C243: Nachweis der Klammern im Koppelbretts
D244: Gewählter Klammetyp : | AC244: ='Eingabe und Ergebnis'!N29 -> 1,83 x 63mm
D245: Gewählter Klammerabstand | AC245: eKlammer | AD245: = | AE245: ='Eingabe und Ergebnis'!N30 -> 100
D246: Durchmesser | AC246: dKl | AD246: = | AE246: =IF(AC244="1,83 x 63mm",1.83,1.53) -> 1.83
D247: Characteristische Wert der Klammerntragfähigkeit | AC247: Rk,klammer | AD247: = | AE247: =IF(AC244="1,83 x 63mm",0.72,0.55) -> 0.72
D248: Bemessung Wert der Klammerntragfähigkeit | AC248: Rd,klammer | AD248: = | AE248: =AE247*kmoderd/gammam -> 0.6092307692
C250: Nachweis
D251: ηKlammer | AC251: [ td,2 /((Rd,Klammer* 1000)/eKlammer) ] | AD251: = | AE251: =tdzweierd/((Rdklammerw*1000)/eklammerw) -> 0 | AP251: =IF(AE251>1,"> 1 NEIN !","< 1 OK !") -> < 1 OK !
A253: Statik Dachscheibe | U253: =U1 -> Fall 2 : Erdbeben | AL253: =TODAY() -> 2023-11-20
AL254: Seite 7/12
A255: 4 - Seitig gelagert | AL255: Bauvorhaben: | AR255: =AR213 -> Beispiel Holzhaus
AL256: Position: | AR256: =AR214 -> Beispiel 3. Stock Küche
A259: Landstraße 25, D - 79809 Weilheim - Bannholz
C261: Berechnung nach Eurocode 5 - EN 1995
D264: Nachweis der Verbindunggsmittel Deckenscheibe an Randgurt | AG264: Angaben zur Schraube laut
AG265: Firma | AV265: = | AW265: ='Eingabe und Ergebnis'!AC46 -> Würth
AG266: Art | AV266: = | AW266: ='Eingabe und Ergebnis'!AC47 -> TeilgewindeScheibenkopf
AG267: Typ | AV267: = | AW267: ='Eingabe und Ergebnis'!AC48 -> 8,0 x 300
AG268: Produkt | AV268: = | AW268: ='Eingabe und Ergebnis'!AD49 -> Assy Plus
AG269: Durchmesser | AU269: d | AV269: = | AW269: ='Eingabe und Ergebnis'!AD51 -> 8
AG270: Länge | AU270: lSch | AV270: = | AW270: ='Eingabe und Ergebnis'!AD52 -> 300
AG271: Gewinde | AU271: lG | AV271: = | AW271: ='Eingabe und Ergebnis'!AD53 -> 100
AG272: Kopfdurchmesser | AU272: dK | AV272: = | AW272: ='Eingabe und Ergebnis'!AD54 -> 22
AG273: Zugtragfähigkeit | AU273: Rt,u,k | AV273: = | AW273: =IF(AND(AW265="Würth",AW266="TeilgewindeSenkkopf"),VLOOKUP(AW267,'Verbindung Schrauben'!B6:H34,7,FALSE),IF(AND(AW265="Würth",AW266="TeilgewindeScheibenkopf"),VLOOKUP(AW267,'Verbindung Schrauben'!B61:H97,7,FALSE),IF(AND(AW265="Würth",AW266="VollgewindeSenkkopf"),VLOOKUP(AW267,'Verbindung Schrauben'!J6:P27,7,FALSE),IF(AND(AW265="Würth",AW266="VollgewindeZylinderkopf"),VLOOKUP(AW267,'Verbindung Schrauben'!J61:P111,7,FALSE),IF(AND(AW265="Spax",AW266="TeilgewindeSenkkopf_S"),VLOOKUP(AW267,'Verbindung Schrauben'!B161:H196,7,FALSE),IF(AND(AW265="Spax",AW266="TeilgewindeTellerkopf_S"),VLOOKUP(AW267,'Verbindung Schrauben'!J161:P211,7,FALSE),IF(AND(AW265="Rothoblaas",AW266="TeilgewindeTellerkopf_R"),VLOOKUP(AW267,'Verbindung Schrauben'!AE6:AK64,7,FALSE),IF(AND(AW265="Rothoblaas",AW266="TeilgewindeSenkkopf_R"),VLOOKUP(AW267,'Verbindung Schrauben'!AN6:AT101,7,FALSE),IF(AND(AW265="Rothoblaas",AW266="VollgewindeZylinderkopf_R"),VLOOKUP(AW267,'Verbindung Schrauben'!AW6:BC48,7,FALSE)))))))))) -> 21500
AG274: Fließmoiment | AU274: My,k | AV274: = | AW274: =IF(AND(AW265="Würth",AW266="TeilgewindeSenkkopf"),VLOOKUP(AW267,'Verbindung Schrauben'!B6:H34,6,FALSE),IF(AND(AW265="Würth",AW266="TeilgewindeScheibenkopf"),VLOOKUP(AW267,'Verbindung Schrauben'!B61:H97,6,FALSE),IF(AND(AW265="Würth",AW266="VollgewindeSenkkopf"),VLOOKUP(AW267,'Verbindung Schrauben'!J6:P27,6,FALSE),IF(AND(AW265="Würth",AW266="VollgewindeZylinderkopf"),VLOOKUP(AW267,'Verbindung Schrauben'!J61:P111,6,FALSE),IF(AND(AW265="Spax",AW266="TeilgewindeSenkkopf_S"),VLOOKUP(AW267,'Verbindung Schrauben'!B161:H196,6,FALSE),IF(AND(AW265="Spax",AW266="TeilgewindeTellerkopf_S"),VLOOKUP(AW267,'Verbindung Schrauben'!J161:P211,6,FALSE),IF(AND(AW265="Rothoblaas",AW266="TeilgewindeTellerkopf_R"),VLOOKUP(AW267,'Verbindung Schrauben'!AE6:AK64,6,FALSE),IF(AND(AW265="Rothoblaas",AW266="TeilgewindeSenkkopf_R"),VLOOKUP(AW267,'Verbindung Schrauben'!AN6:AT101,6,FALSE),IF(AND(AW265="Rothoblaas",AW266="VollgewindeZylinderkopf_R"),VLOOKUP(AW267,'Verbindung Schrauben'!AW6:BC48,6,FALSE)))))))))) -> 23000
AG275: Tragfähigkeitsklasse Kopf | AV275: = | AW275: 3
AG276: Tragfähigkeitsklasse Schaft | AV276: = | AW276: B
AG278: (Zulassung Würth und Zulassung Z-9.1-614)
AG279: (Zulassung Spax und Zulassung Z-9.1-519)
AG280: (Zulassung Rothoblass ETA-11/0030)
C281: Angaben zum Seitenholz 1: Element | AG281: Angaben zur Zwischenschicht [Blaß]
C282: Dicke | T282: t1 | U282: = | V282: ='Eingabe und Ergebnis'!Q46 -> 190 | AG282: Dicke | AU282: tzw | AV282: = | AW282: ='Eingabe und Ergebnis'!BB15 -> 0
C283: Rohdichte | T283: ρk1 | U283: = | V283: ='Eingabe und Ergebnis'!Q47 -> 380 | AG283: Rohdichte | AU283: ρkzw | AV283: = | AW283: ='Eingabe und Ergebnis'!BB16 -> 380
C284: Dicke minimum | T284: t1 min | U284: = | V284: ='Eingabe und Ergebnis'!Q48 -> 51.51956905 | AG284: Kraft-Faser-Winkel | AU284: αzw | AV284: =
C285: Kraft-Faser-Winkel | T285: α1 | U285: = | V285: 90
C286: Eindringtiefe Gewinde [t1 - (lSch - lG) ] | T286: lef,1 | U286: = | V286: =IF((dicket1-(lSch-lG))<=0,0,dicket1-(lSch-lG)) -> 0 | AG286: bei Elementen mit Akustiklage muss die Abminderung durch eine Zwischenschicht nach blaß berücksichtigt werden
C288: Angaben zum Seitenholz 2: Randgurt | AV288: EC 5, N. Anhang (NA.103) & (NA.104)
C289: Dicke | T289: t2,H | U289: = | V289: ='Eingabe und Ergebnis'!Q51 -> 240
C290: Rohdichte | T290: ρk2 | U290: = | V290: ='Eingabe und Ergebnis'!Q52 -> 380
C291: Dicke minimum | T291: t2 min | U291: = | V291: ='Eingabe und Ergebnis'!Q53 -> 51.51956905
C292: Kraft-Faser-Winkel | T292: α2 | U292: = | V292: 90
C293: Eindringtiefe Schraube [ lSch - t1 - tzw ] | T293: t2 | U293: = | V293: =lSch-(dicket1+dicket) -> 110
C294: Eindringtiefe Gewinde [ Wenn (lG < t2; lG , t2 ) ] | T294: lef,2 | U294: = | V294: =IF(lG<dicket2,lG,dicket2) -> 100
A295: Statik Dachscheibe | U295: =U1 -> Fall 2 : Erdbeben | AL295: =TODAY() -> 2023-11-20
AL296: Seite 8/12
A297: 4 - Seitig gelagert | AL297: Bauvorhaben: | AR297: =AR255 -> Beispiel Holzhaus
AL298: Position: | AR298: =AR256 -> Beispiel 3. Stock Küche
A301: Landstraße 25, D - 79809 Weilheim - Bannholz
C303: Berechnung nach Eurocode 5 - EN 1995
C306: Tragfähigkeit auf Abscheren je Scherfuge/ [Johannsengleichungen] | AM306: Schubtragfähigkeit VM*2 | AU306: γm,lat | AY306: Bruchtyp
C307: Koefficient | W307: k90 | X307: = | Y307: =IF(d<8,1.35+0.015*d,1) -> 1 | AM307: R1 | AN307: = | AO307: =((fh2vk*beta0)/(1+beta0))*(-2*dicket-dicket1-dicket2+((4+delta+(delta/beta0))*dicket^2+(2+1/beta0)*dicket1^2+(2+beta0)*dicket2^2+4*dicket*dicket2+4*dicket*dicket1+2*dicket1*dicket2)^0.5)*d -> 8799.343846 | AU307: 1.3 | AY307: Holz
C308: Lochleibungsfestigkeit in Seitenholz 1 | W308: fh,1,v,k | X308: = | Y308: =(0.082*d^-0.3*rohk1)/(koefficientk90*(SIN(V285)^2)+(COS(V285)^2)) -> 16.69823055 | AM308: R2 | AN308: = | AO308: =fh2vk*d*dicket2 -> 14694.44288 | AU308: 1.3 | AY308: Holz
C309: Lochleibungsfestigkeit in zwischenschicht | W309: fh,zw,v,k | X309: = | Y309: =(0.082*d^-0.3*rohkzw)/(koefficientk90*(SIN(alphazw)^2)+(COS(alphazw)^2)) -> 16.69823055 | AM309: R3 | AN309: = | AO309: =fh1vk*d*dicket1 -> 25381.31043 | AU309: 1.3 | AY309: Holz
C310: Lochleibungsfestigkeit in Seitenholz 2 | W310: fh,2,v,k | X310: = | Y310: =(0.082*d^-0.3*rohk2)/(koefficientk90*(SIN(V292)^2)+(COS(V292)^2)) -> 16.69823055 | AM310: R4 | AN310: = | AO310: =fh2vk*(beta0/(0.5+beta0))*(-dicket-dicket2/2+(dicket^2+dicket*dicket2+dicket2^2/2+delta*dicket^2/(2*beta0)+dicket2^2/(2*beta0)+2*Myk/(fh2vk*d)+delta*dicket^2/4+Myk/(fh2vk*d))^0.5)*d -> 5105.053524 | AU310: 1.2 | AY310: Holz/Stahl
C311: Koefficient beta0 = fh,1,k / fh,2,k | W311: β0 | X311: = | Y311: =fh1vk/fh2vk -> 1 | AM311: R5 | AN311: = | AO311: =fh2vk*(beta0/(0.5+beta0))*(-dicket-dicket1/2+((1+delta/(4*beta0)+delta/2)*dicket^2+(0.5+0.5*beta0)*dicket1^2+dicket*dicket1+(Myk/(fh2vk*d*beta0))+(2*Myk/(fh2vk*d)))^0.5)*d -> 8581.059504 | AU311: 1.2 | AY311: Holz/Stahl
C312: Koefficient beta1 = fh,2,k / fh,zw,k | W312: β1 | X312: = | Y312: =IF(fhzwvk=0,0,fh2vk/fhzwvk) -> 1 | AM312: R6 | AN312: = | AO312: =fh2vk*1/(1+beta0)*(-beta0*dicket+(beta0^2*dicket^2+4*beta0*(beta0+1)*Myk/(fh2vk*d)+beta0*(beta0+1)/2*delta*dicket^2)^0.5)*d -> 2478.900732 | AU312: 1.1 | AY312: Stahl
C313: Koefficient beta2 = fh,zw,k / fh,1,k | W313: β2 | X313: = | Y313: =fhzwvk/fh1vk -> 1 | AM313: R7 | AN313: = | AO313: =fh1vk*dicket1*d/(2+beta2)*(((2*beta2)*(1+beta2)+4*beta2*(2+beta2)*Myk/(fh1vk*dicket1^2*d))^0.5-beta2) -> 8581.059504 | AU313: 1.2 | AY313: Holz/Stahl
C314: Koefficient delta = fh,zw,k / fh,1,k | W314: δ | X314: = | Y314: =fhzwvk/fh1vk -> 1 | AM314: R8 | AN314: = | AO314: =(2*beta2/(1+beta2))^0.5*(2*Myk*fh1vk*d)^0.5 -> 2478.900732 | AU314: 1.1 | AY314: Stahl
C315: Modifikationsbeiwert VM | W315: kmod,lat | X315: = | Y315: =kmoderd -> 1.1 | AM315: R9 | AN315: = | AO315: =fhzwvk*dicket2*d/(1+2*beta1)*((2*beta1^2*(1+beta1)+4*beta1*(1+2*beta1)*Myk/(dicket2^2*d*IF(fhzwvk=0,1,fhzwvk)))^0.5-beta1) -> 5105.053524 | AU315: 1.2 | AY315: Holz/Stahl | BG315: Rkmin | BH315: γm,lat
C316: Teilsicherheitsbeiwert VM | W316: γm,lat | X316: = | Y316: =BH316 -> 1.1 | AM316: R10 | AN316: = | AO316: =(2*beta1/(1+beta1))^0.5*(2*Myk*fhzwvk*d)^0.5 -> 2478.900732 | AU316: 1.1 | AY316: Stahl | BG316: =IF(rohkzw=0,MIN(AO307:AT312),MIN(AO313:AT316)) -> 2478.900732 | BH316: =VLOOKUP(BG316,AO307:AX316,7,FALSE) -> 1.1
C318: Schubtragfähigkeit = min(R1-R10) | W318: Rlat,k | X318: = | Y318: =IF(rohkzw=0,MIN(BG318:BG323),MIN(BG318:BG327)) -> 2478.900732 | AM318: *2 Hypothese: Verwendung von Holz vorgebohrt | BG318: =ABS(AO307) -> 8799.343846
BG319: =ABS(AO308) -> 14694.44288
C320: Tragfähigkeit in Richtung der Stiftachse | BG320: 25381.31043
C321: Seitenholz 1: Element | AK321: Tragfähigkeit in Richtung der Scherfuge | BG321: 5105.053524
C322: Char. Wert des Ausziehparameters | W322: f1,k | X322: = | Y322: =80*10^-6*rohk1^2 -> 11.552 | AK322: Char. Wert = (Rlat,k + ΔRk) . kmod,lat / γM,lat | BG322: 8581.059504
C323: Char. Wert des Kopfdurchziehparameters | W323: f2,k | X323: = | Y323: =80*10^-6*rohk1^2 -> 11.552 | AM323: Rlat,d | AN323: = | AO323: =(Rlatk+deltaRk)*(Y315/gammamlat) -> 3876.692732 | BG323: 2478.900732
C324: Schraubenkopf | W324: Rax,k,Kopf | X324: = | Y324: =f2k*dk^2 -> 5591.168 | BG324: 8581.059504
C325: Gewindeteil | W325: Rax,k,Gew | X325: = | Y325: =(f1k*langeef1*d)/((SIN(RADIANS(V285)))^2+(4/3)*(COS(RADIANS(V285)))^2) -> 0 | AJ325: dabei: | BG325: 2478.900732
C326: Tragfähigkeit Seitenholz 1 | W326: Rax,α,Rk,1 | X326: = | Y326: =MAX(Y324:AD325) -> 5591.168 | BG326: 5105.053524
BG327: 2478.900732
C328: Seitenholz 2: Randgurt
C329: Char. Wert des Ausziehparameters | W329: f1,k | X329: = | Y329: =80*10^-6*rohk2^2 -> 11.552
C330: Char. Wert des Kopfdurchziehparameters | W330: f2,k | X330: = | Y330: =80*10^-6*rohk2^2 -> 11.552
C331: Tragfähigkeit Seitenholz 2 | W331: Rax,α,Rk,2 | X331: = | Y331: =(f1k*langeef2*d)/((SIN(RADIANS(V292)))^2+(4/3)*(COS(RADIANS(V292)))^2) -> 9241.6
C333: Tragfähigkeit in Richtung der Stiftachse | W333: Rax,α,Rk | X333: = | Y333: =MIN(Y326,Y331) -> 5591.168
AJ334: EC 5, 8.7 formeln (8.40a) & (8.40b)
C335: Seilwirkung = MIN ( Rlat,k ; Rax,k/4*1 ) | W335: ΔRk | X335: = | Y335: =MIN(Y318,Y333/4) -> 1397.792
C336: *1 weil Φschrauben > 8mm
A337: Statik Dachscheibe | U337: =U1 -> Fall 2 : Erdbeben | AL337: =TODAY() -> 2023-11-20
AL338: Seite 9/12
A339: 4 - Seitig gelagert | AL339: Bauvorhaben: | AR339: =AR297 -> Beispiel Holzhaus
AL340: Position: | AR340: =AR298 -> Beispiel 3. Stock Küche
A343: Landstraße 25, D - 79809 Weilheim - Bannholz
C345: Berechnung nach Eurocode 5 - EN 1995
C348: Nachweis der Verbindungsmittel Scheibe an Randgurt parallel zur Elementspannrichtung
C349: Tragfähigkeit in Richtung der Scherfuge | W349: Rlat,d | X349: = | Y349: =AO323 -> 3876.692732
C351: Länge Rangurt parallel zur Elementspannrichtung* | W351: lr,|| | X351: = | Y351: ='Eingabe und Ergebnis'!Q41 -> 6
C352: Abstand der Verbindungsmittel | W352: eV,|| | X352: = | Y352: ='Eingabe und Ergebnis'!Q43 -> 0.25
C354: Kraft = Aed,1 | W354: Aed,1 | X354: = | Y354: =MAX(AU18) -> 0
C355: Auflagerlast = Max ( Aed,1 ; bd,2 ) | W355: bd,res | X355: = | Y355: =MAX(Aed1erd,bd2erd) -> 0
C356: Längefaktor = ls / lr,|| | W356: lf | X356: = | Y356: =ls/lrparallel -> 1
C357: Kraft VM = bd,res * eV,|| * 1000 * lf | W357: Fv,b,d | X357: = | Y357: =bdreserd*evparallel*1000*lf -> 0
C359: Nachweis | AV359: dabei
... 68 more rows

Sheet Fall 3. Stabilisierung
A1: Statik Dachscheibe | U1: Fall 3 : Stabilisierung | AL1: =TODAY() -> 2023-11-20
AL2: Seite 1/12
A3: 4 - Seitig gelagert | AL3: Bauvorhaben: | AR3: ='Eingabe und Ergebnis'!X3 -> Beispiel Holzhaus
AL4: Position: | AR4: ='Eingabe und Ergebnis'!X4 -> Beispiel 3. Stock Küche
A7: Landstraße 25, D - 79809 Weilheim - Bannholz
C9: Berechnung nach Eurocode 5 - EN 1995
C12: 1 | D12: Geometrie
AI13: 3 | AJ13: Lastfall
AH15: Kraft rechtwinklig zur Elementspannrichtung
AH18: Verteilte Kraft | AS18: qd1 | AT18: = | AU18: ='Eingabe und Ergebnis'!BA43 -> 0
AH22: Kraft parallel zur Elementspannrichtung
AH25: Verteilte Kraft | AS25: qd2 | AT25: = | AU25: ='Eingabe und Ergebnis'!BA46 -> 0
C28: Scheibenbreite | T28: bs | U28: = | V28: ='Eingabe und Ergebnis'!N12 -> 10
C29: Scheibenlänge | T29: ls | U29: = | V29: ='Eingabe und Ergebnis'!N13 -> 6
C30: Elementbreite | T30: bElement | U30: = | V30: ='Eingabe und Ergebnis'!N14 -> 0.625
C31: Anzahl der Elemente | T31: nElement | U31: = | V31: =V28/V30 -> 16
C33: 2 | D33: Holzeigenschaft
C35: Baustoff: | V35: ='Eingabe und Ergebnis'!N16 -> Brettschichtholz | AC35: für Kombination mit
C36: Festigkeitsklasse: | V36: ='Eingabe und Ergebnis'!N17 -> GL 24h | AC36: Wind | AH36: Erdbeben
C37: Modifikationsbeiwert | T37: kmod | U37: = | V37: =T63 -> 0.9 | AC37: =IF(MIN('Eingabe und Ergebnis'!BI22,'Eingabe und Ergebnis'!BI40)=0,MAX('Eingabe und Ergebnis'!BI22,'Eingabe und Ergebnis'!BI40),MIN('Eingabe und Ergebnis'!BI22,'Eingabe und Ergebnis'!BI40)) -> 0.9 | AH37: =IF(MIN('Eingabe und Ergebnis'!BI33,'Eingabe und Ergebnis'!BI40)=0,MAX('Eingabe und Ergebnis'!BI33,'Eingabe und Ergebnis'!BI40),MIN('Eingabe und Ergebnis'!BI33,'Eingabe und Ergebnis'!BI40)) -> 0.9
C38: Teilsicherheitsbeiwert | T38: γm | U38: = | V38: 1.25
T39: γQ | U39: = | V39: 1
A43: Statik Dachscheibe | U43: =U1 -> Fall 3 : Stabilisierung | AL43: =TODAY() -> 2023-11-20
AL44: Seite 2/12
A45: 4 - Seitig gelagert | AL45: Bauvorhaben: | AR45: =AR3 -> Beispiel Holzhaus
AL46: Position: | AR46: =AR4 -> Beispiel 3. Stock Küche
A49: Landstraße 25, D - 79809 Weilheim - Bannholz
C51: Berechnung nach Eurocode 5 - EN 1995
D55: Nutzungsklasse | N55: ='Eingabe und Ergebnis'!N15 -> 1
D57: Klasse der Lasteinwirkungsdauer | N57: ='Eingabe und Ergebnis'!BA41 -> Kurz
AC58: EC 5, Tabelle 3.1
D59: Zeit | N59: =VLOOKUP(N57,'kmod+gamma+Trag.keit'!C26:H31,2,FALSE) -> Kürzer als 1 Woche
D61: Beispiel | N61: =VLOOKUP(N57,'kmod+gamma+Trag.keit'!C26:H31,3,FALSE) -> Schnee
D63: Widerstandabänderung Koeffizient | N63: kmod = | T63: =IF(N55=3,VLOOKUP(N57,'kmod+gamma+Trag.keit'!C26:H31,6,FALSE),VLOOKUP(N57,'kmod+gamma+Trag.keit'!C26:H31,5,FALSE)) -> 0.9
A85: Statik Dachscheibe | U85: =U1 -> Fall 3 : Stabilisierung | AL85: =TODAY() -> 2023-11-20
AL86: Seite 3/12
A87: 4 - Seitig gelagert | AL87: Bauvorhaben: | AR87: =AR45 -> Beispiel Holzhaus
AL88: Position: | AR88: =AR46 -> Beispiel 3. Stock Küche
A91: Landstraße 25, D - 79809 Weilheim - Bannholz
C93: Berechnung nach Eurocode 5 - EN 1995
C96: 4 | D96: Ermittlung der Schittgrößen
C98: Kombinationen :
D103: Lastfall 1 (Rechtwinklig zur Elementspannrichtung) | AD103: Lastfall 2 (Parallel zur Elementspannrichtung)
C105: Horizontallasten | T105: qs,1 | U105: = | V105: =AU18 -> 0 | AD105: Horizontallasten | AS105: qs,2 | AT105: = | AU105: =AU25 -> 0
A127: Statik Dachscheibe | U127: =U1 -> Fall 3 : Stabilisierung | AL127: =TODAY() -> 2023-11-20
AL128: Seite 4/12
A129: 4 - Seitig gelagert | AL129: Bauvorhaben: | AR129: =AR87 -> Beispiel Holzhaus
AL130: Position: | AR130: =AR88 -> Beispiel 3. Stock Küche
A133: Landstraße 25, D - 79809 Weilheim - Bannholz
C135: Berechnung nach Eurocode 5 - EN 1995
AT139: dabei | AV139: a = | AW139: bs
AV140: b = | AW140: l,r,||*
AV141: c = | AW141: bs
AV142: d = | AW142: ls
C149: Horizontale Belastungen
C151: Moment Lastfall 1 | T151: Md,z,1 | U151: = | V151: =(qs1kraftst*(ls*ls)/8) -> 0 | AD151: Moment Lastfall 2 | AS151: Md,z,2 | AT151: = | AU151: =(qs2kraftst*(bs*bs)/8) -> 0
C152: Schub Lastfall 1 | T152: Vd,z,1 | U152: = | V152: =(qs1kraftst*(ls)/2) -> 0 | AD152: Schub Lastfall 2 | AS152: Vd,z,2 | AT152: = | AU152: =(qs2kraftst*(bs)/2) -> 0
C154: Aufgerkraft charakteristisch | T154: ak,1 | U154: = | V154: =V155 -> 0 | AD154: Aufgerkraft charakteristisch | AS154: bk,2 | AT154: = | AU154: =AU155 -> 0
C155: Auflagerkraft Design | T155: ad,1 | U155: = | V155: =vdz1st/bs -> 0 | AD155: Auflagerkraft Design | AS155: bd,2 | AT155: = | AU155: =vdz2st/ls -> 0
C157: Schubfluss [ Vd,z,1 / bs ] | T157: td,1 | U157: = | V157: =vdz1st/bs -> 0 | AD157: Schubfluss [ Vd,z,2 / ls ] | AS157: td,2 | AT157: = | AU157: =vdz2st/ls -> 0
C160: Lastfall 1 | AD160: Zugkraft beziehungsweise Druckkraft in den Randgurten quer zur Elementspannrichtung:
D163: ad,1 = | E163: =V155 -> 0 | AD163: Max Zd | AS163: Zd | AT163: = | AU163: =mdz2st/ls -> 0
C165: Lastfall 2
S167: bd,2 = | T167: =AU155 -> 0
AG168: * Falls die Rangurtlänge kürzer als die Scheibenlänge ist!
A169: Statik Dachscheibe | U169: =U1 -> Fall 3 : Stabilisierung | AL169: =TODAY() -> 2023-11-20
AL170: Seite 5/12
A171: 4 - Seitig gelagert | AL171: Bauvorhaben: | AR171: =AR129 -> Beispiel Holzhaus
AL172: Position: | AR172: =AR130 -> Beispiel 3. Stock Küche
A175: Landstraße 25, D - 79809 Weilheim - Bannholz
C177: Berechnung nach Eurocode 5 - EN 1995
C180: Lignotrend Element: | V180: ='Eingabe und Ergebnis'!K24 -> LIGNO Rippe Q3 Akustik WT Z26P0 - 190 | AQ180: für Kombination mit
AQ181: Wind | AV181: Erdbeben
C182: Elementtragfähigkeit
C183: Schubtragfähigkeit charakteristisch | T183: VR,k,y | U183: = | V183: =_xlfn.XLOOKUP('Eingabe und Ergebnis'!DM18,INDIRECT("tab_H1"&'Eingabe und Ergebnis'!DM16),(_xlfn.XLOOKUP('Eingabe und Ergebnis'!DM17,INDIRECT("tab_Z1"&'Eingabe und Ergebnis'!DM16),INDIRECT("tab_"&'Eingabe und Ergebnis'!DM16)))) -> 49 | AO183: VR,k,y | AP183: =
C184: Schubtragfähigkeit design | T184: VR,d,y | U184: = | V184: =V183*V37/gammamsta -> 35.28 | AF184: (~gl Technishe Daten) | AO184: VR,d,y | AP184: = | AQ184: =V183*AC37/gammamsta -> 35.28 | AU184: =V183*AH37/gammamsta -> 35.28
C185: Momenttragfähigkeit charakteristisch | T185: MR,k,y | U185: = | V185: =_xlfn.XLOOKUP('Eingabe und Ergebnis'!DM18,INDIRECT("tab_H1"&'Eingabe und Ergebnis'!DM16),(_xlfn.XLOOKUP("M "&'Eingabe und Ergebnis'!DM17,INDIRECT("tab_Z1"&'Eingabe und Ergebnis'!DM16),INDIRECT("tab_"&'Eingabe und Ergebnis'!DM16)))) -> 91.71544949 | AO185: MR,k,y | AP185: =
C186: Momenttragfähigkeit design | T186: MR,d,y | U186: = | V186: =V185*V37/gammam -> 63.49531118 | AO186: MR,d,y | AP186: = | AQ186: =V185*AC37/gammamsta -> 66.03512363 | AU186: =V185*AH37/gammamsta -> 66.03512363
C189: 5 | D189: Nachweis
D191: Nachweis der Quertragfähigkeit
D192: ηv | T192: [ MAX(td1;td2)/(Vrdy/belement) ] | U192: = | V192: =MAX(tdeinst,tdzweist)/(V184/belement) -> 0 | AH192: =IF(V192>1,"> 1 NEIN !","< 1 OK !") -> < 1 OK ! | AO192: ηv | AP192: = | AR192: =MAX(tdeinst,tdzweist)/(AQ184/belement) -> 0 | AV192: =MAX(tdeinst,tdzweist)/(AU184/belement) -> 0
D194: Nachweis der Momenttragfähigkeit beim Lastfall 1
D195: ηM1 | T195: [ Md,z,1/(nelement*MR,d,z) ] | U195: = | V195: =mdz1st/(nelement*V186) -> 0 | AH195: =IF(V195>1,"> 1 NEIN !","< 1 OK !") -> < 1 OK ! | AO195: ηM1 | AP195: = | AR195: =mdz1st/(nelement*AQ186) -> 0 | AV195: =mdz1st/(nelement*AU186) -> 0
D197: Nachweis der Momenttragfähigkeit beim Lastfall 2
D199: Zur Aufnahme des Momentes aus LF 2 dient der Randgurt quer zur Elementspannrichtung.
D201: Randgurt: BSH 24h
D203: Querschnittsfläche Randgurt | T203: Aef | U203: = | V203: =('Eingabe und Ergebnis'!N33*'Eingabe und Ergebnis'!N34)/100 -> 240
D204: Charakteristischer Wert der Zugfestigkeit | T204: ft,k | U204: = | V204: 1.65
D205: Bemessungswert der Zugfestigkeit | T205: ft,d | U205: = | V205: =ftk*V37/gammam -> 1.142307692 | AO205: ft,d | AP205: = | AR205: =V204*AC37/gammamsta -> 1.188 | AV205: =V204*AH37/gammamsta -> 1.188
D207: ηM2 | T207: [ Zd/(Aef*ft,d) ] | U207: = | V207: =Zdst/(Aef*(ftd)) -> 0 | AH207: =IF(V207>1,"> 1 NEIN !","< 1 OK !") -> < 1 OK ! | AO207: ηM2 | AP207: = | AR207: =Zdst/(Aef*(AR205)) -> 0 | AV207: =Zdst/(Aef*(AV205)) -> 0
A211: Statik Dachscheibe | U211: =U1 -> Fall 3 : Stabilisierung | AL211: =TODAY() -> 2023-11-20
AL212: Seite 6/12
A213: 4 - Seitig gelagert | AL213: Bauvorhaben: | AR213: =AR171 -> Beispiel Holzhaus
AL214: Position: | AR214: =AR172 -> Beispiel 3. Stock Küche
A217: Landstraße 25, D - 79809 Weilheim - Bannholz
C219: Berechnung nach Eurocode 5 - EN 1995
C222: Nachweis der Koppelfuge
AQ230: für Kombination mit
AQ231: Wind | AV231: Erdbeben
C233: Nachweis der Schubtragfähigkeit des Koppelbretts
D234: Material : | AC234: ='Eingabe und Ergebnis'!N27 -> Sperrholz
D235: Dicke Koppelbrett | AC235: d | AD235: = | AE235: ='Eingabe und Ergebnis'!N28 -> 26
D236: Characteristischswert der Schubfestigkeit | AC236: fv,k | AD236: = | AE236: =IF(AC234="Nadelholz C 24",2,IF(AC234="Sperrholz",3.5,2.7)) -> 3.5
D237: Bemessungswert der Schubfestigkeit | AC237: fv,d | AD237: = | AE237: =AE236*V37/gammam -> 2.423076923 | AO237: fv,d | AP237: = | AQ237: =fvk*AC37/gammam -> 2.423076923 | AU237: =fvk*AH37/gammam -> 2.423076923
D238: Schubfluss in der Koppelbrett | AC238: tR,d,Koppelbrett | AD238: = | AE238: =fvd*dbrett -> 70 | AO238: tR,d,Koppelbrett | AP238: = | AQ238: =AQ237*AE235 -> 63 | AU238: =AU237*AE235 -> 63
C240: Nachweis
D241: ηKoppelbrett | AC241: [ td,2 / tR,d,Koppelbrett ] | AD241: = | AE241: =tdzweist/AE238 -> 0 | AP241: =IF(AE241>1,"> 1 NEIN !","< 1 OK !") -> < 1 OK !
AP242: [ td,2 / tR,d,Koppelbrett ] | AQ242: = | AR242: =tdzweist/AQ238 -> 0 | AV242: =tdzweist/AU238 -> 0
C243: Nachweis der Klammern im Koppelbretts
D244: Gewählter Klammetyp : | AC244: ='Eingabe und Ergebnis'!N29 -> 1,83 x 63mm
D245: Gewählter Klammerabstand | AC245: eKlammer | AD245: = | AE245: ='Eingabe und Ergebnis'!N30 -> 100
D246: Durchmesser | AC246: dKl | AD246: = | AE246: =IF(AC244="1,83 x 63mm",1.83,1.53) -> 1.83
D247: Characteristische Wert der Klammerntragfähigkeit | AC247: Rk,klammer | AD247: = | AE247: =IF(AC244="1,83 x 63mm",0.72,0.55) -> 0.72
D248: Bemessung Wert der Klammerntragfähigkeit | AC248: Rd,klammer | AD248: = | AE248: =AE247*V37/gammam -> 0.4984615385 | AO248: Rd,klammer | AP248: = | AQ248: =AE247*AC37/gammam -> 0.4984615385 | AU248: =AE247*AH37/gammam -> 0.4984615385
C250: Nachweis
D251: ηKlammer | AC251: [ td,2 /((Rd,Klammer* 1000)/eKlammer) ] | AD251: = | AE251: =tdzweist/((AE248*1000)/eklammerw) -> 0 | AP251: =IF(AE251>1,"> 1 NEIN !","< 1 OK !") -> < 1 OK !
AM252: ηKlammer | AP252: = | AQ252: =tdzweist/((AQ248*1000)/eklammerw) -> 0 | AU252: =tdzweist/((AU248*1000)/eklammerw) -> 0
A253: Statik Dachscheibe | U253: =U1 -> Fall 3 : Stabilisierung | AL253: =TODAY() -> 2023-11-20
AL254: Seite 7/12
A255: 4 - Seitig gelagert | AL255: Bauvorhaben: | AR255: =AR213 -> Beispiel Holzhaus
AL256: Position: | AR256: =AR214 -> Beispiel 3. Stock Küche
A259: Landstraße 25, D - 79809 Weilheim - Bannholz
C261: Berechnung nach Eurocode 5 - EN 1995
D264: Nachweis der Verbindunggsmittel Deckenscheibe an Randgurt | AG264: Angaben zur Schraube laut
AG265: Firma | AV265: = | AW265: ='Eingabe und Ergebnis'!AC46 -> Würth
AG266: Art | AV266: = | AW266: ='Eingabe und Ergebnis'!AC47 -> TeilgewindeScheibenkopf
AG267: Typ | AV267: = | AW267: ='Eingabe und Ergebnis'!AC48 -> 8,0 x 300
AG268: Produkt | AV268: = | AW268: ='Eingabe und Ergebnis'!AD49 -> Assy Plus
AG269: Durchmesser | AU269: d | AV269: = | AW269: ='Eingabe und Ergebnis'!AD51 -> 8
AG270: Länge | AU270: lSch | AV270: = | AW270: ='Eingabe und Ergebnis'!AD52 -> 300
AG271: Gewinde | AU271: lG | AV271: = | AW271: ='Eingabe und Ergebnis'!AD53 -> 100
AG272: Kopfdurchmesser | AU272: dK | AV272: = | AW272: ='Eingabe und Ergebnis'!AD54 -> 22
AG273: Zugtragfähigkeit | AU273: Rt,u,k | AV273: = | AW273: =IF(AND(AW265="Würth",AW266="TeilgewindeSenkkopf"),VLOOKUP(AW267,'Verbindung Schrauben'!B6:H34,7,FALSE),IF(AND(AW265="Würth",AW266="TeilgewindeScheibenkopf"),VLOOKUP(AW267,'Verbindung Schrauben'!B61:H97,7,FALSE),IF(AND(AW265="Würth",AW266="VollgewindeSenkkopf"),VLOOKUP(AW267,'Verbindung Schrauben'!J6:P27,7,FALSE),IF(AND(AW265="Würth",AW266="VollgewindeZylinderkopf"),VLOOKUP(AW267,'Verbindung Schrauben'!J61:P111,7,FALSE),IF(AND(AW265="Spax",AW266="TeilgewindeSenkkopf_S"),VLOOKUP(AW267,'Verbindung Schrauben'!B161:H196,7,FALSE),IF(AND(AW265="Spax",AW266="TeilgewindeTellerkopf_S"),VLOOKUP(AW267,'Verbindung Schrauben'!J161:P211,7,FALSE),IF(AND(AW265="Rothoblaas",AW266="TeilgewindeTellerkopf_R"),VLOOKUP(AW267,'Verbindung Schrauben'!AE6:AK64,7,FALSE),IF(AND(AW265="Rothoblaas",AW266="TeilgewindeSenkkopf_R"),VLOOKUP(AW267,'Verbindung Schrauben'!AN6:AT101,7,FALSE),IF(AND(AW265="Rothoblaas",AW266="VollgewindeZylinderkopf_R"),VLOOKUP(AW267,'Verbindung Schrauben'!AW6:BC48,7,FALSE)))))))))) -> 21500
AG274: Fließmoiment | AU274: My,k | AV274: = | AW274: =IF(AND(AW265="Würth",AW266="TeilgewindeSenkkopf"),VLOOKUP(AW267,'Verbindung Schrauben'!B6:H34,6,FALSE),IF(AND(AW265="Würth",AW266="TeilgewindeScheibenkopf"),VLOOKUP(AW267,'Verbindung Schrauben'!B61:H97,6,FALSE),IF(AND(AW265="Würth",AW266="VollgewindeSenkkopf"),VLOOKUP(AW267,'Verbindung Schrauben'!J6:P27,6,FALSE),IF(AND(AW265="Würth",AW266="VollgewindeZylinderkopf"),VLOOKUP(AW267,'Verbindung Schrauben'!J61:P111,6,FALSE),IF(AND(AW265="Spax",AW266="TeilgewindeSenkkopf_S"),VLOOKUP(AW267,'Verbindung Schrauben'!B161:H196,6,FALSE),IF(AND(AW265="Spax",AW266="TeilgewindeTellerkopf_S"),VLOOKUP(AW267,'Verbindung Schrauben'!J161:P211,6,FALSE),IF(AND(AW265="Rothoblaas",AW266="TeilgewindeTellerkopf_R"),VLOOKUP(AW267,'Verbindung Schrauben'!AE6:AK64,6,FALSE),IF(AND(AW265="Rothoblaas",AW266="TeilgewindeSenkkopf_R"),VLOOKUP(AW267,'Verbindung Schrauben'!AN6:AT101,6,FALSE),IF(AND(AW265="Rothoblaas",AW266="VollgewindeZylinderkopf_R"),VLOOKUP(AW267,'Verbindung Schrauben'!AW6:BC48,6,FALSE)))))))))) -> 23000
AG275: Tragfähigkeitsklasse Kopf | AV275: = | AW275: 3
AG276: Tragfähigkeitsklasse Schaft | AV276: = | AW276: B
AG278: (Zulassung Würth und Zulassung Z-9.1-614)
AG279: (Zulassung Spax und Zulassung Z-9.1-519)
AG280: (Zulassung Rothoblass ETA-11/0030)
C281: Angaben zum Seitenholz 1: Element | AG281: Angaben zur Zwischenschicht [Blaß]
C282: Dicke | T282: t1 | U282: = | V282: ='Eingabe und Ergebnis'!Q46 -> 190 | AG282: Dicke | AU282: tzw | AV282: = | AW282: ='Eingabe und Ergebnis'!BB15 -> 0
C283: Rohdichte | T283: ρk1 | U283: = | V283: ='Eingabe und Ergebnis'!Q47 -> 380 | AG283: Rohdichte | AU283: ρkzw | AV283: = | AW283: ='Eingabe und Ergebnis'!BB16 -> 380
C284: Dicke minimum | T284: t1 min | U284: = | V284: ='Eingabe und Ergebnis'!Q48 -> 51.51956905 | AG284: Kraft-Faser-Winkel | AU284: αzw | AV284: = | AW284: ='Eingabe und Ergebnis'!AU54 -> 0
C285: Kraft-Faser-Winkel | T285: α1 | U285: = | V285: 90
C286: Eindringtiefe Gewinde [t1 - (lSch - lG) ] | T286: lef,1 | U286: = | V286: =IF((dicket1-(lSch-lG))<=0,0,dicket1-(lSch-lG)) -> 0 | AG286: bei Elementen mit Akustiklage muss die Abminderung durch eine Zwischenschicht nach Blaß berücksichtigt werden
C288: Angaben zum Seitenholz 2: Randgurt | AV288: EC 5, N. Anhang (NA.103) & (NA.104)
C289: Dicke | T289: t2,H | U289: = | V289: ='Eingabe und Ergebnis'!Q51 -> 240
C290: Rohdichte | T290: ρk2 | U290: = | V290: ='Eingabe und Ergebnis'!Q52 -> 380
C291: Dicke minimum | T291: t2 min | U291: = | V291: ='Eingabe und Ergebnis'!Q53 -> 51.51956905
C292: Kraft-Faser-Winkel | T292: α2 | U292: = | V292: 90
C293: Eindringtiefe Schraube [ lSch - t1 - tzw ] | T293: t2 | U293: = | V293: =lSch-(dicket1+dicket) -> 110
C294: Eindringtiefe Gewinde [ Wenn (lG < t2; lG , t2 ) ] | T294: lef,2 | U294: = | V294: =IF(lG<dicket2,lG,dicket2) -> 100
A295: Statik Dachscheibe | U295: =U1 -> Fall 3 : Stabilisierung | AL295: =TODAY() -> 2023-11-20
AL296: Seite 8/12
A297: 4 - Seitig gelagert | AL297: Bauvorhaben: | AR297: =AR255 -> Beispiel Holzhaus
AL298: Position: | AR298: =AR256 -> Beispiel 3. Stock Küche
A301: Landstraße 25, D - 79809 Weilheim - Bannholz
C303: Berechnung nach Eurocode 5 - EN 1995
C306: Tragfähigkeit auf Abscheren je Scherfuge/ [Johannsengleichungen] | AM306: Schubtragfähigkeit VM*2 | AU306: γm,lat | AY306: Bruchtyp
C307: Koefficient | W307: k90 | X307: = | Y307: =IF(d<8,1.35+0.015*d,1) -> 1 | AM307: R1 | AN307: = | AO307: =((fh2vk*beta0)/(1+beta0))*(-2*dicket-dicket1-dicket2+((4+delta+(delta/beta0))*dicket^2+(2+1/beta0)*dicket1^2+(2+beta0)*dicket2^2+4*dicket*dicket2+4*dicket*dicket1+2*dicket1*dicket2)^0.5)*d -> 8799.343846 | AU307: 1.3 | AY307: Holz
C308: Lochleibungsfestigkeit in Seitenholz 1 | W308: fh,1,v,k | X308: = | Y308: =(0.082*d^-0.3*rohk1)/(koefficientk90*(SIN(V285)^2)+(COS(V285)^2)) -> 16.69823055 | AM308: R2 | AN308: = | AO308: =fh2vk*d*dicket2 -> 14694.44288 | AU308: 1.3 | AY308: Holz
C309: Lochleibungsfestigkeit in zwischenschicht | W309: fh,zw,v,k | X309: = | Y309: =(0.082*d^-0.3*rohkzw)/(koefficientk90*(SIN(alphazw)^2)+(COS(alphazw)^2)) -> 16.69823055 | AM309: R3 | AN309: = | AO309: =fh1vk*d*dicket1 -> 25381.31043 | AU309: 1.3 | AY309: Holz
C310: Lochleibungsfestigkeit in Seitenholz 2 | W310: fh,2,v,k | X310: = | Y310: =(0.082*d^-0.3*rohk2)/(koefficientk90*(SIN(V292)^2)+(COS(V292)^2)) -> 16.69823055 | AM310: R4 | AN310: = | AO310: =fh2vk*(beta0/(0.5+beta0))*(-dicket-dicket2/2+(dicket^2+dicket*dicket2+dicket2^2/2+delta*dicket^2/(2*beta0)+dicket2^2/(2*beta0)+2*Myk/(fh2vk*d)+delta*dicket^2/4+Myk/(fh2vk*d))^0.5)*d -> 5105.053524 | AU310: 1.2 | AY310: Holz/Stahl
C311: Koefficient beta0 = fh,1,k / fh,2,k | W311: β0 | X311: = | Y311: =fh1vk/fh2vk -> 1 | AM311: R5 | AN311: = | AO311: =fh2vk*(beta0/(0.5+beta0))*(-dicket-dicket1/2+((1+delta/(4*beta0)+delta/2)*dicket^2+(0.5+0.5*beta0)*dicket1^2+dicket*dicket1+(Myk/(fh2vk*d*beta0))+(2*Myk/(fh2vk*d)))^0.5)*d -> 8581.059504 | AU311: 1.2 | AY311: Holz/Stahl
C312: Koefficient beta1 = fh,2,k / fh,zw,k | W312: β1 | X312: = | Y312: =IF(fhzwvk=0,0,fh2vk/fhzwvk) -> 1 | AM312: R6 | AN312: = | AO312: =fh2vk*1/(1+beta0)*(-beta0*dicket+(beta0^2*dicket^2+4*beta0*(beta0+1)*Myk/(fh2vk*d)+beta0*(beta0+1)/2*delta*dicket^2)^0.5)*d -> 2478.900732 | AU312: 1.1 | AY312: Stahl
C313: Koefficient beta2 = fh,zw,k / fh,1,k | W313: β2 | X313: = | Y313: =fhzwvk/fh1vk -> 1 | AM313: R7 | AN313: = | AO313: =fh1vk*dicket1*d/(2+beta2)*(((2*beta2)*(1+beta2)+4*beta2*(2+beta2)*Myk/(fh1vk*dicket1^2*d))^0.5-beta2) -> 8581.059504 | AU313: 1.2 | AY313: Holz/Stahl
C314: Koefficient delta = fh,zw,k / fh,1,k | W314: δ | X314: = | Y314: =fhzwvk/fh1vk -> 1 | AM314: R8 | AN314: = | AO314: =(2*beta2/(1+beta2))^0.5*(2*Myk*fh1vk*d)^0.5 -> 2478.900732 | AU314: 1.1 | AY314: Stahl
C315: Modifikationsbeiwert VM | W315: kmod,lat | X315: = | Y315: =V37 -> 0.9 | AM315: R9 | AN315: = | AO315: =fhzwvk*dicket2*d/(1+2*beta1)*((2*beta1^2*(1+beta1)+4*beta1*(1+2*beta1)*Myk/(dicket2^2*d*IF(fhzwvk=0,1,fhzwvk)))^0.5-beta1) -> 5105.053524 | AU315: 1.2 | AY315: Holz/Stahl | BG315: Rkmin | BH315: γm,lat
C316: Teilsicherheitsbeiwert VM | W316: γm,lat | X316: = | Y316: =BH316 -> 1.1 | AM316: R10 | AN316: = | AO316: =(2*beta1/(1+beta1))^0.5*(2*Myk*fhzwvk*d)^0.5 -> 2478.900732 | AU316: 1.1 | AY316: Stahl | BG316: =IF(rohkzw=0,MIN(AO307:AT312),MIN(AO313:AT316)) -> 2478.900732 | BH316: =VLOOKUP(BG316,AO307:AX316,7,FALSE) -> 1.1
C318: Schubtragfähigkeit = min(R1-R10) | W318: Rlat,k | X318: = | Y318: =IF(rohkzw=0,MIN(BG318:BG323),MIN(BG318:BG327)) -> 2478.900732 | AM318: *2 Hypothese: Verwendung von Holz vorgebohrt | BG318: =ABS(AO307) -> 8799.343846
BG319: =ABS(AO308) -> 14694.44288
C320: Tragfähigkeit in Richtung der Stiftachse | BG320: 25381.31043
C321: Seitenholz 1: Element | AK321: Tragfähigkeit in Richtung der Scherfuge | BG321: 5105.053524
C322: Char. Wert des Ausziehparameters | W322: f1,k | X322: = | Y322: =80*10^-6*rohk1^2 -> 11.552 | AK322: Char. Wert = (Rlat,k + ΔRk) . kmod,lat / γM,lat | BG322: 8581.059504
C323: Char. Wert des Kopfdurchziehparameters | W323: f2,k | X323: = | Y323: =80*10^-6*rohk1^2 -> 11.552 | AM323: Rlat,d | AN323: = | AO323: =(Rlatk+deltaRk)*(Y315/gammamlat) -> 3171.839508 | BG323: 2478.900732
C324: Schraubenkopf | W324: Rax,k,Kopf | X324: = | Y324: =f2k*dk^2 -> 5591.168 | BG324: 8581.059504
C325: Gewindeteil | W325: Rax,k,Gew | X325: = | Y325: =(f1k*langeef1*d)/((SIN(RADIANS(V285)))^2+(4/3)*(COS(RADIANS(V285)))^2) -> 0 | AJ325: dabei: | BG325: 2478.900732
C326: Tragfähigkeit Seitenholz 1 | W326: Rax,α,Rk,1 | X326: = | Y326: =MAX(Y324:AD325) -> 5591.168 | BG326: 5105.053524
BG327: 2478.900732
C328: Seitenholz 2: Randgurt
C329: Char. Wert des Ausziehparameters | W329: f1,k | X329: = | Y329: =80*10^-6*rohk2^2 -> 11.552
C330: Char. Wert des Kopfdurchziehparameters | W330: f2,k | X330: = | Y330: =80*10^-6*rohk2^2 -> 11.552
C331: Tragfähigkeit Seitenholz 2 | W331: Rax,α,Rk,2 | X331: = | Y331: =(f1k*langeef2*d)/((SIN(RADIANS(V292)))^2+(4/3)*(COS(RADIANS(V292)))^2) -> 9241.6
C333: Tragfähigkeit in Richtung der Stiftachse | W333: Rax,α,Rk | X333: = | Y333: =MIN(Y326,Y331) -> 5591.168
AJ334: EC 5, 8.7 formeln (8.40a) & (8.40b)
C335: Seilwirkung = MIN ( Rlat,k ; Rax,k/4*1 ) | W335: ΔRk | X335: = | Y335: =MIN(Y318,Y333/4) -> 1397.792
C336: *1 weil Φschrauben > 8mm
A337: Statik Dachscheibe | U337: =U1 -> Fall 3 : Stabilisierung | AL337: =TODAY() -> 2023-11-20
AL338: Seite 9/12
A339: 4 - Seitig gelagert | AL339: Bauvorhaben: | AR339: =AR297 -> Beispiel Holzhaus
AL340: Position: | AR340: =AR298 -> Beispiel 3. Stock Küche
A343: Landstraße 25, D - 79809 Weilheim - Bannholz
C345: Berechnung nach Eurocode 5 - EN 1995
C348: Nachweis der Verbindungsmittel Scheibe an Randgurt parallel zur Elementspannrichtung
C349: Tragfähigkeit in Richtung der Scherfuge | W349: Rlat,d | X349: = | Y349: =AO323 -> 3171.839508
C351: Länge Rangurt parallel zur Elementspannrichtung* | W351: lr,|| | X351: = | Y351: ='Eingabe und Ergebnis'!Q41 -> 6
C352: Abstand der Verbindungsmittel | W352: eV,|| | X352: = | Y352: ='Eingabe und Ergebnis'!Q43 -> 0.25
C354: Kraft = qs,1 | W354: qs,1 | X354: = | Y354: =MAX(AU18) -> 0
C355: Auflagerlast = Max ( qs,1 ; bd,2 ) | W355: bd,res | X355: = | Y355: =MAX(qs1kraftst,bd2st) -> 0
C356: Längefaktor = ls / lr,|| | W356: lf | X356: = | Y356: =ls/lrparallel -> 1
... 70 more rows

Sheet Block 3S (hidden)

Sheet Akustik 2S Ausklinkung (hidden)

Sheet Block 2S Ausklinkung (hidden)

Sheet Akustik 3S Ausklinkung (hidden)

Sheet Block 3S Ausklinkung (hidden)

Sheet Rippe 2S Ausklinkung (hidden)

Sheet Rippe 3S Ausklinkung (hidden)

Sheet Block 3S Füllholz (hidden)

Sheet Block 2S (hidden)

Sheet Block 2S Füllholz (hidden)

Sheet Rippe 3S (hidden)

Sheet Rippe 3S Füllholz (hidden)

Sheet Rippe Q2i 2S (hidden)

Sheet Rippe 2S (hidden)

Sheet Rippe 2S Füllholz (hidden)

Sheet Akustik 3S (hidden)

Sheet Akustik 2S (hidden)
